{"text_format":"1","workbook":"xlsx","n_sheets":6,"sheets":["ToAnki","Irre","Sheet1","Sheet3","Sheet1 (2)","all"],"not_rendered":{"charts":0,"images":0,"macros":1,"external_links":0,"defined_names":0,"comments":0,"pivot_tables":0},"unopened":[],"bounds":{"document_bytes":16777216,"sheet_cells":100000,"rows_first":2000,"rows_last":500,"rows_between":2000,"halvings":0,"cell_chars":16384,"cell_head_chars":4096},"cells_cut":0,"cells_raw":0,"read":"whole","date_system":"1900"}

{"sheet":"ToAnki","index":0,"n_rows":214,"n_cols":2,"rows_kept":214,"cut":false,"hidden":false,"merged":[]}
[{"$f":"Irre!B3","v":"arise"},{"$f":"CONCATENATE( Irre!B3, \"/\", Irre!D3, \"/\", Irre!E3, \"/\", Irre!F3, \" - \",  Irre!C3)","v":"arise/arose/arisen/arising - எழு , எழுந்திரு , மேலேழுந்து வளர், தோன்று உண்டாகு, மனத்தில் தோன்று"}]
[{"$f":"Irre!B4","v":"awake"},{"$f":"CONCATENATE( Irre!B4, \"/\", Irre!D4, \"/\", Irre!E4, \"/\", Irre!F4, \" - \",  Irre!C4)","v":"awake/awoke/awoken/awaking - விழி , தூக்கத்திலிருந்து எந்திரு , உறக்கத்தினின்று எழுப்பு , எழு"}]
[{"$f":"Irre!B5","v":"bear"},{"$f":"CONCATENATE( Irre!B5, \"/\", Irre!D5, \"/\", Irre!E5, \"/\", Irre!F5, \" - \",  Irre!C5)","v":"bear/bore/borne/bearing - bear  கரடி , பெறு, தாங்கு"}]
[{"$f":"Irre!B6","v":"beat"},{"$f":"CONCATENATE( Irre!B6, \"/\", Irre!D6, \"/\", Irre!E6, \"/\", Irre!F6, \" - \",  Irre!C6)","v":"beat/beat/beaten/beating - beat  முரசொலி , முரசறைவு"}]
[{"$f":"Irre!B7","v":"arise"},{"$f":"CONCATENATE( Irre!B7, \"/\", Irre!D7, \"/\", Irre!E7, \"/\", Irre!F7, \" - \",  Irre!C7)","v":"arise/arose/arisen/arising - arise  எழு , எழுந்திரு , மேலேழுந்து வளர், தோன்று உண்டாகு, மனத்தில் தோன்று"}]
[{"$f":"Irre!B8","v":"awake"},{"$f":"CONCATENATE( Irre!B8, \"/\", Irre!D8, \"/\", Irre!E8, \"/\", Irre!F8, \" - \",  Irre!C8)","v":"awake/awoke/awoken/awaking - awake  விழி , தூக்கத்திலிருந்து எந்திரு , உறக்கத்தினின்று எழுப்பு , எழு"}]
[{"$f":"Irre!B9","v":"bear"},{"$f":"CONCATENATE( Irre!B9, \"/\", Irre!D9, \"/\", Irre!E9, \"/\", Irre!F9, \" - \",  Irre!C9)","v":"bear/bore/borne/bearing - bear  கரடி , பெறு, தாங்கு"}]
[{"$f":"Irre!B10","v":"beat"},{"$f":"CONCATENATE( Irre!B10, \"/\", Irre!D10, \"/\", Irre!E10, \"/\", Irre!F10, \" - \",  Irre!C10)","v":"beat/beat/beaten/beating - beat  முரசொலி , முரசறைவு"}]
[{"$f":"Irre!B11","v":"become"},{"$f":"CONCATENATE( Irre!B11, \"/\", Irre!D11, \"/\", Irre!E11, \"/\", Irre!F11, \" - \",  Irre!C11)","v":"become/became/became/becoming - become  உண்டாகு , நேர் , ஆகத்தொடங்கு , பொருந்து , தகுதியாயிரு , அணிசெய் , நயம்படத்தோன்று"}]
[{"$f":"Irre!B12","v":"befall"},{"$f":"CONCATENATE( Irre!B12, \"/\", Irre!D12, \"/\", Irre!E12, \"/\", Irre!F12, \" - \",  Irre!C12)","v":"befall/befell/befallen/befalling - befall  நிகழ், நேரீடு"}]
[{"$f":"Irre!B13","v":"begin"},{"$f":"CONCATENATE( Irre!B13, \"/\", Irre!D13, \"/\", Irre!E13, \"/\", Irre!F13, \" - \",  Irre!C13)","v":"begin/began/begun/beginning - begin  தொடங்கிவை , முதற்செயல் நிகழ்த்து , முதற்கண் எடுத்துக்கொள் , புகுமுகஞ்செய்"}]
[{"$f":"Irre!B14","v":"behold"},{"$f":"CONCATENATE( Irre!B14, \"/\", Irre!D14, \"/\", Irre!E14, \"/\", Irre!F14, \" - \",  Irre!C14)","v":"behold/beheld/beheld/beholding - behold  பார் , நோக்கித் தெரிந்துகொள் , அறி , கவனி"}]
[{"$f":"Irre!B15","v":"bend"},{"$f":"CONCATENATE( Irre!B15, \"/\", Irre!D15, \"/\", Irre!E15, \"/\", Irre!F15, \" - \",  Irre!C15)","v":"bend/bent/bent/bending - bend  வளைத்தல் , வளைவு , வளைந்தபகுதி , கொக்கி , கொளுவி , குனி , திருப்பம்"}]
[{"$f":"Irre!B16","v":"beseech"},{"$f":"CONCATENATE( Irre!B16, \"/\", Irre!D16, \"/\", Irre!E16, \"/\", Irre!F16, \" - \",  Irre!C16)","v":"beseech/besought/besought/beseeching - beseech  கெஞ்சிக் கேள்"}]
[{"$f":"Irre!B17","v":"beset"},{"$f":"CONCATENATE( Irre!B17, \"/\", Irre!D17, \"/\", Irre!E17, \"/\", Irre!F17, \" - \",  Irre!C17)","v":"beset/beset/beset/besetting - beset  குழப்பமடையச் செய்"}]
[{"$f":"Irre!B18","v":"bespeak"},{"$f":"CONCATENATE( Irre!B18, \"/\", Irre!D18, \"/\", Irre!E18, \"/\", Irre!F18, \" - \",  Irre!C18)","v":"bespeak/bespoke/bespoken/bespeaking - bespeak  முன்கூட்டியே கேட்டு வை"}]
[{"$f":"Irre!B19","v":"bestride"},{"$f":"CONCATENATE( Irre!B19, \"/\", Irre!D19, \"/\", Irre!E19, \"/\", Irre!F19, \" - \",  Irre!C19)","v":"bestride/bestrode/bestrode/bestriding - bestride  உட்கார்"}]
[{"$f":"Irre!B20","v":"betake"},{"$f":"CONCATENATE( Irre!B20, \"/\", Irre!D20, \"/\", Irre!E20, \"/\", Irre!F20, \" - \",  Irre!C20)","v":"betake/betook/betaken/betaking - betake  முயற்சி செய்"}]
[{"$f":"Irre!B21","v":"bethink"},{"$f":"CONCATENATE( Irre!B21, \"/\", Irre!D21, \"/\", Irre!E21, \"/\", Irre!F21, \" - \",  Irre!C21)","v":"bethink/bethought/bethought/bethinking - bethink  நினைவுக்கு கொண்டு வா"}]
[{"$f":"Irre!B22","v":"bid"},{"$f":"CONCATENATE( Irre!B22, \"/\", Irre!D22, \"/\", Irre!E22, \"/\", Irre!F22, \" - \",  Irre!C22)","v":"bid/bade/bidden/bidding - bid  ஏலம் கூறு , ஏலங்கேள், ஏலத்தில் கூறப்படும் விலை , ஏலத்தில் வைக்கபடும் விலை"}]
[{"$f":"Irre!B23","v":"bind"},{"$f":"CONCATENATE( Irre!B23, \"/\", Irre!D23, \"/\", Irre!E23, \"/\", Irre!F23, \" - \",  Irre!C23)","v":"bind/bound/bound/binding - bind  கட்டு , கட்டுப்படுத்து"}]
[{"$f":"Irre!B24","v":"bite"},{"$f":"CONCATENATE( Irre!B24, \"/\", Irre!D24, \"/\", Irre!E24, \"/\", Irre!F24, \" - \",  Irre!C24)","v":"bite/bit/bitten/biting - bite  கடி , கடித்தல் , கௌவுதல் , பற்றுதல் , பிடி , கடிகாயம்"}]
[{"$f":"Irre!B25","v":"blow"},{"$f":"CONCATENATE( Irre!B25, \"/\", Irre!D25, \"/\", Irre!E25, \"/\", Irre!F25, \" - \",  Irre!C25)","v":"blow/blew/blown/blowing - blow  அடி : இடி , தட்டு , குத்து , இடர் , அதிர்ச்சி"}]
[{"$f":"Irre!B26","v":"break"},{"$f":"CONCATENATE( Irre!B26, \"/\", Irre!D26, \"/\", Irre!E26, \"/\", Irre!F26, \" - \",  Irre!C26)","v":"break/broke/broken/breaking - break  முறி, உடை, தகர்த்தெறி"}]
[{"$f":"Irre!B27","v":"bring"},{"$f":"CONCATENATE( Irre!B27, \"/\", Irre!D27, \"/\", Irre!E27, \"/\", Irre!F27, \" - \",  Irre!C27)","v":"bring/brought/brought/bringing - bring  கொண்டு வா, வருவி, ஈட்டு"}]
[{"$f":"Irre!B28","v":"broadcast"},{"$f":"CONCATENATE( Irre!B28, \"/\", Irre!D28, \"/\", Irre!E28, \"/\", Irre!F28, \" - \",  Irre!C28)","v":"broadcast/broadcast/broadcast/broadcating - broadcast  ஒளி / ஒலி பரப்ப செய்"}]
[{"$f":"Irre!B29","v":"brow"},{"$f":"CONCATENATE( Irre!B29, \"/\", Irre!D29, \"/\", Irre!E29, \"/\", Irre!F29, \" - \",  Irre!C29)","v":"brow/browbeat/browbeaten/browbeating - brow beat  அதட்டி அடக்கு"}]
[{"$f":"Irre!B30","v":"build"},{"$f":"CONCATENATE( Irre!B30, \"/\", Irre!D30, \"/\", Irre!E30, \"/\", Irre!F30, \" - \",  Irre!C30)","v":"build/built/built/building - build  வீடு கட்டு, அமை, எழுப்பு"}]
[{"$f":"Irre!B31","v":"burn"},{"$f":"CONCATENATE( Irre!B31, \"/\", Irre!D31, \"/\", Irre!E31, \"/\", Irre!F31, \" - \",  Irre!C31)","v":"burn/burned / burnt/burned / burnt/burning - burn  கொளுத்து, எரி, விளக்கேற்று"}]
[{"$f":"Irre!B32","v":"burst"},{"$f":"CONCATENATE( Irre!B32, \"/\", Irre!D32, \"/\", Irre!E32, \"/\", Irre!F32, \" - \",  Irre!C32)","v":"burst/burst/burst/bursting - burst  உடைத்து திற, சிதறு, வெடி"}]
[{"$f":"Irre!B33","v":"buy"},{"$f":"CONCATENATE( Irre!B33, \"/\", Irre!D33, \"/\", Irre!E33, \"/\", Irre!F33, \" - \",  Irre!C33)","v":"buy/bought/bought/buying - buy  விலைக்கு வாங்கு"}]
[{"$f":"Irre!B34","v":"cast"},{"$f":"CONCATENATE( Irre!B34, \"/\", Irre!D34, \"/\", Irre!E34, \"/\", Irre!F34, \" - \",  Irre!C34)","v":"cast/cast/cast/casting - cast  எறி, வார்ப்பு உருவம் செய்"}]
[{"$f":"Irre!B35","v":"catch"},{"$f":"CONCATENATE( Irre!B35, \"/\", Irre!D35, \"/\", Irre!E35, \"/\", Irre!F35, \" - \",  Irre!C35)","v":"catch/caught/caught/catching - catch  பிடி , கைப்பற்று, சிக்கவை"}]
[{"$f":"Irre!B36","v":"choose"},{"$f":"CONCATENATE( Irre!B36, \"/\", Irre!D36, \"/\", Irre!E36, \"/\", Irre!F36, \" - \",  Irre!C36)","v":"choose/chose/chosen/choosing - choose  தேர்ந்தெடு, விரும்பு"}]
[{"$f":"Irre!B37","v":"cleave"},{"$f":"CONCATENATE( Irre!B37, \"/\", Irre!D37, \"/\", Irre!E37, \"/\", Irre!F37, \" - \",  Irre!C37)","v":"cleave/cleft / clove/cleft / cloven/cleaving - cleave  பிளவு, பிரி, வெட்டு"}]
[{"$f":"Irre!B38","v":"cling"},{"$f":"CONCATENATE( Irre!B38, \"/\", Irre!D38, \"/\", Irre!E38, \"/\", Irre!F38, \" - \",  Irre!C38)","v":"cling/clung/clung/clinging - cling  பற்றிக்கொள், ஒட்டிக்கொள்"}]
[{"$f":"Irre!B39","v":"come"},{"$f":"CONCATENATE( Irre!B39, \"/\", Irre!D39, \"/\", Irre!E39, \"/\", Irre!F39, \" - \",  Irre!C39)","v":"come/came/come/coming - come  வா, ஆகு, நிகழ், எட்டு, அடை"}]
[{"$f":"Irre!B40","v":"cost"},{"$f":"CONCATENATE( Irre!B40, \"/\", Irre!D40, \"/\", Irre!E40, \"/\", Irre!F40, \" - \",  Irre!C40)","v":"cost/cost/cost/costing - cost  விலை, மதிப்பு, செலவு"}]
[{"$f":"Irre!B41","v":"creep"},{"$f":"CONCATENATE( Irre!B41, \"/\", Irre!D41, \"/\", Irre!E41, \"/\", Irre!F41, \" - \",  Irre!C41)","v":"creep/crept/crept/creeping - creep  ஊர்ந்து செல்"}]
[{"$f":"Irre!B42","v":"cut"},{"$f":"CONCATENATE( Irre!B42, \"/\", Irre!D42, \"/\", Irre!E42, \"/\", Irre!F42, \" - \",  Irre!C42)","v":"cut/cut/cut/cutting - cut  வெட்டு, செதுக்கு, குறைவாக்கு"}]
[{"$f":"Irre!B43","v":"deal"},{"$f":"CONCATENATE( Irre!B43, \"/\", Irre!D43, \"/\", Irre!E43, \"/\", Irre!F43, \" - \",  Irre!C43)","v":"deal/dealt/dealt/dealing - deal  வியாபாரம் செய், கையாளு"}]
[{"$f":"Irre!B44","v":"dig"},{"$f":"CONCATENATE( Irre!B44, \"/\", Irre!D44, \"/\", Irre!E44, \"/\", Irre!F44, \" - \",  Irre!C44)","v":"dig/dug/dug/digging - dig  குழி தோண்டு, குத்து, குடை"}]
[{"$f":"Irre!B45","v":"do"},{"$f":"CONCATENATE( Irre!B45, \"/\", Irre!D45, \"/\", Irre!E45, \"/\", Irre!F45, \" - \",  Irre!C45)","v":"do/did/done/doing - do  செய், ஆக்கு, நடத்து, முடி"}]
[{"$f":"Irre!B46","v":"draw"},{"$f":"CONCATENATE( Irre!B46, \"/\", Irre!D46, \"/\", Irre!E46, \"/\", Irre!F46, \" - \",  Irre!C46)","v":"draw/drew/drawn/drawing - draw  இழு, படம் வரை, கவர், பிடுங்கு"}]
[{"$f":"Irre!B47","v":"dream"},{"$f":"CONCATENATE( Irre!B47, \"/\", Irre!D47, \"/\", Irre!E47, \"/\", Irre!F47, \" - \",  Irre!C47)","v":"dream/dreamed / dreamt/dreamed / dreamt/dreaming - dream  கனவு, கற்பனை"}]
[{"$f":"Irre!B48","v":"drink"},{"$f":"CONCATENATE( Irre!B48, \"/\", Irre!D48, \"/\", Irre!E48, \"/\", Irre!F48, \" - \",  Irre!C48)","v":"drink/drank/drunk/drinking - drink  குடி, பருகு"}]
[{"$f":"Irre!B49","v":"drive"},{"$f":"CONCATENATE( Irre!B49, \"/\", Irre!D49, \"/\", Irre!E49, \"/\", Irre!F49, \" - \",  Irre!C49)","v":"drive/drove/driven/driving - drive  ஒட்டு, செலுத்து, சவாரி"}]
[{"$f":"Irre!B50","v":"eat"},{"$f":"CONCATENATE( Irre!B50, \"/\", Irre!D50, \"/\", Irre!E50, \"/\", Irre!F50, \" - \",  Irre!C50)","v":"eat/ate/eaten/eating - eat  உண், தின், சாப்பிடு, அரித்தழி"}]
[{"$f":"Irre!B51","v":"fall"},{"$f":"CONCATENATE( Irre!B51, \"/\", Irre!D51, \"/\", Irre!E51, \"/\", Irre!F51, \" - \",  Irre!C51)","v":"fall/fell/fallen/falling - fall  விழு, குறை, நிகழ்"}]
[{"$f":"Irre!B52","v":"feel"},{"$f":"CONCATENATE( Irre!B52, \"/\", Irre!D52, \"/\", Irre!E52, \"/\", Irre!F52, \" - \",  Irre!C52)","v":"feel/felt/felt/feeling - feel  உணர், துயரப்படு, நினை"}]
[{"$f":"Irre!B53","v":"fight"},{"$f":"CONCATENATE( Irre!B53, \"/\", Irre!D53, \"/\", Irre!E53, \"/\", Irre!F53, \" - \",  Irre!C53)","v":"fight/fought/fought/fighting - fight  சண்டையிடு, போராடு"}]
[{"$f":"Irre!B54","v":"fling"},{"$f":"CONCATENATE( Irre!B54, \"/\", Irre!D54, \"/\", Irre!E54, \"/\", Irre!F54, \" - \",  Irre!C54)","v":"fling/flung/flung/flinging - fling  தூக்கி வீசு, தூர எறி"}]
[{"$f":"Irre!B55","v":"fly"},{"$f":"CONCATENATE( Irre!B55, \"/\", Irre!D55, \"/\", Irre!E55, \"/\", Irre!F55, \" - \",  Irre!C55)","v":"fly/flew/flown/flying - fly  பற, விமானத்தில் செல்"}]
[{"$f":"Irre!B56","v":"forbear"},{"$f":"CONCATENATE( Irre!B56, \"/\", Irre!D56, \"/\", Irre!E56, \"/\", Irre!F56, \" - \",  Irre!C56)","v":"forbear/forbore/forborne/forbearing - forbear  பொறுத்திரு, அடங்கு"}]
[{"$f":"Irre!B57","v":"forbid"},{"$f":"CONCATENATE( Irre!B57, \"/\", Irre!D57, \"/\", Irre!E57, \"/\", Irre!F57, \" - \",  Irre!C57)","v":"forbid/forbade/forbidden/forbidding - forbid  கூடாது என உத்தரவிடு"}]
[{"$f":"Irre!B58","v":"forecast"},{"$f":"CONCATENATE( Irre!B58, \"/\", Irre!D58, \"/\", Irre!E58, \"/\", Irre!F58, \" - \",  Irre!C58)","v":"forecast/forecast/forecast/forecasting - forecast  முன்னரே யூகித்துக்கூறு"}]
[{"$f":"Irre!B59","v":"forego"},{"$f":"CONCATENATE( Irre!B59, \"/\", Irre!D59, \"/\", Irre!E59, \"/\", Irre!F59, \" - \",  Irre!C59)","v":"forego/forewent/foregone/foregoing - forego  முன்னே செல்"}]
[{"$f":"Irre!B60","v":"foresee"},{"$f":"CONCATENATE( Irre!B60, \"/\", Irre!D60, \"/\", Irre!E60, \"/\", Irre!F60, \" - \",  Irre!C60)","v":"foresee/foresaw/foreseen/foreseeing - foresee  முன்னறி, முன்னரே காண்"}]
[{"$f":"Irre!B61","v":"foretell"},{"$f":"CONCATENATE( Irre!B61, \"/\", Irre!D61, \"/\", Irre!E61, \"/\", Irre!F61, \" - \",  Irre!C61)","v":"foretell/foretold/foretold/foretelling - foretell  முன்கூட்டியே சொல்"}]
[{"$f":"Irre!B62","v":"forget"},{"$f":"CONCATENATE( Irre!B62, \"/\", Irre!D62, \"/\", Irre!E62, \"/\", Irre!F62, \" - \",  Irre!C62)","v":"forget/forgot/fotgotten/forgetting - forget  மறந்து போ, புறக்கணி"}]
[{"$f":"Irre!B63","v":"forgive"},{"$f":"CONCATENATE( Irre!B63, \"/\", Irre!D63, \"/\", Irre!E63, \"/\", Irre!F63, \" - \",  Irre!C63)","v":"forgive/forgave/forgiven/forgiving - forgive  மன்னித்து விடு, குறை கூறு"}]
[{"$f":"Irre!B64","v":"forsake"},{"$f":"CONCATENATE( Irre!B64, \"/\", Irre!D64, \"/\", Irre!E64, \"/\", Irre!F64, \" - \",  Irre!C64)","v":"forsake/forsook/forsaken/forsaking - forsake  கைவிடு, துற, உதவி மறு"}]
[{"$f":"Irre!B65","v":"forswear"},{"$f":"CONCATENATE( Irre!B65, \"/\", Irre!D65, \"/\", Irre!E65, \"/\", Irre!F65, \" - \",  Irre!C65)","v":"forswear/forswore/forsworm/forswearing - forswear  பொய் சத்தியம் செய்"}]
[{"$f":"Irre!B66","v":"freeze"},{"$f":"CONCATENATE( Irre!B66, \"/\", Irre!D66, \"/\", Irre!E66, \"/\", Irre!F66, \" - \",  Irre!C66)","v":"freeze/froze/forzen/freezing - freeze  உருகு, பனிக்கட்டியாக"}]
[{"$f":"Irre!B67","v":"gainsay"},{"$f":"CONCATENATE( Irre!B67, \"/\", Irre!D67, \"/\", Irre!E67, \"/\", Irre!F67, \" - \",  Irre!C67)","v":"gainsay/gainsaid/gainsaid/gainsaying - gainsay  மறுத்துப் பேசு, மறு"}]
[{"$f":"Irre!B68","v":"get"},{"$f":"CONCATENATE( Irre!B68, \"/\", Irre!D68, \"/\", Irre!E68, \"/\", Irre!F68, \" - \",  Irre!C68)","v":"get/got/got / gotten/getting - get  பெறு, ஆகு, செய்வி, சேர், அடை"}]
[{"$f":"Irre!B69","v":"give"},{"$f":"CONCATENATE( Irre!B69, \"/\", Irre!D69, \"/\", Irre!E69, \"/\", Irre!F69, \" - \",  Irre!C69)","v":"give/gave/given/giving - give  கொடு, விலை கொடு, ஈனு"}]
[{"$f":"Irre!B70","v":"go"},{"$f":"CONCATENATE( Irre!B70, \"/\", Irre!D70, \"/\", Irre!E70, \"/\", Irre!F70, \" - \",  Irre!C70)","v":"go/went/gone/going - go  செல், போ, நட, ஆகு, இற, இயங்கு"}]
[{"$f":"Irre!B71","v":"grind"},{"$f":"CONCATENATE( Irre!B71, \"/\", Irre!D71, \"/\", Irre!E71, \"/\", Irre!F71, \" - \",  Irre!C71)","v":"grind/ground/ground/grinding - grind  மாவு அரை, வருத்து"}]
[{"$f":"Irre!B72","v":"grow"},{"$f":"CONCATENATE( Irre!B72, \"/\", Irre!D72, \"/\", Irre!E72, \"/\", Irre!F72, \" - \",  Irre!C72)","v":"grow/grew/grown/growing - grow  கோபத்தில் உறுமு"}]
[{"$f":"Irre!B73","v":"hagride"},{"$f":"CONCATENATE( Irre!B73, \"/\", Irre!D73, \"/\", Irre!E73, \"/\", Irre!F73, \" - \",  Irre!C73)","v":"hagride/hagrode/hagridden/hagriding - hagride  கவலை, வறுமையில்"}]
[{"$f":"Irre!B74","v":"hang"},{"$f":"CONCATENATE( Irre!B74, \"/\", Irre!D74, \"/\", Irre!E74, \"/\", Irre!F74, \" - \",  Irre!C74)","v":"hang/hung/hung/hanging - hang  தூக்கிலிடு"}]
[{"$f":"Irre!B75","v":"has"},{"$f":"CONCATENATE( Irre!B75, \"/\", Irre!D75, \"/\", Irre!E75, \"/\", Irre!F75, \" - \",  Irre!C75)","v":"has/had/had/having - has  வைத்திரு"}]
[{"$f":"Irre!B76","v":"have"},{"$f":"CONCATENATE( Irre!B76, \"/\", Irre!D76, \"/\", Irre!E76, \"/\", Irre!F76, \" - \",  Irre!C76)","v":"have/had/had/having - have  வைத்திரு"}]
[{"$f":"Irre!B77","v":"hear"},{"$f":"CONCATENATE( Irre!B77, \"/\", Irre!D77, \"/\", Irre!E77, \"/\", Irre!F77, \" - \",  Irre!C77)","v":"hear/heard/heard/hearing - hear  காதால் கேள், அறியப்பெறு"}]
[{"$f":"Irre!B78","v":"hide"},{"$f":"CONCATENATE( Irre!B78, \"/\", Irre!D78, \"/\", Irre!E78, \"/\", Irre!F78, \" - \",  Irre!C78)","v":"hide/hid/hidden/hiding - hide  மறை, ஒளித்து வை"}]
[{"$f":"Irre!B79","v":"hit"},{"$f":"CONCATENATE( Irre!B79, \"/\", Irre!D79, \"/\", Irre!E79, \"/\", Irre!F79, \" - \",  Irre!C79)","v":"hit/hit/hit/hitting - hit  அடி, இடி, மோது, இலாபமடை"}]
[{"$f":"Irre!B80","v":"hold"},{"$f":"CONCATENATE( Irre!B80, \"/\", Irre!D80, \"/\", Irre!E80, \"/\", Irre!F80, \" - \",  Irre!C80)","v":"hold/held/held/holding - hold  கையில் பிடி, தழுவு, நம்பு"}]
[{"$f":"Irre!B81","v":"hurt"},{"$f":"CONCATENATE( Irre!B81, \"/\", Irre!D81, \"/\", Irre!E81, \"/\", Irre!F81, \" - \",  Irre!C81)","v":"hurt/hurt/hurt/hurting - hurt  புண்படுத்து, துன்புறுத்து"}]
[{"$f":"Irre!B82","v":"inlay"},{"$f":"CONCATENATE( Irre!B82, \"/\", Irre!D82, \"/\", Irre!E82, \"/\", Irre!F82, \" - \",  Irre!C82)","v":"inlay/inlaid/inlaid/inlaying - inlay  பதித்து வை"}]
[{"$f":"Irre!B83","v":"interweave"},{"$f":"CONCATENATE( Irre!B83, \"/\", Irre!D83, \"/\", Irre!E83, \"/\", Irre!F83, \" - \",  Irre!C83)","v":"interweave/interwove/interwoven/interweaving - interweave  இணைத்து நெசவு செய்"}]
[{"$f":"Irre!B84","v":"keep"},{"$f":"CONCATENATE( Irre!B84, \"/\", Irre!D84, \"/\", Irre!E84, \"/\", Irre!F84, \" - \",  Irre!C84)","v":"keep/kept/kept/keeping - keep  பேணு, ஈடேற்று , நிறைவேற்று, வை, வைத்திரு"}]
[{"$f":"Irre!B85","v":"kneel"},{"$f":"CONCATENATE( Irre!B85, \"/\", Irre!D85, \"/\", Irre!E85, \"/\", Irre!F85, \" - \",  Irre!C85)","v":"kneel/knelt/knelt/kneeling - kneel  மண்டியிடு, வணங்கு"}]
[{"$f":"Irre!B86","v":"know"},{"$f":"CONCATENATE( Irre!B86, \"/\", Irre!D86, \"/\", Irre!E86, \"/\", Irre!F86, \" - \",  Irre!C86)","v":"know/knew/knew/knowing - know  அறி, தெரிந்துகோள்"}]
[{"$f":"Irre!B87","v":"lay"},{"$f":"CONCATENATE( Irre!B87, \"/\", Irre!D87, \"/\", Irre!E87, \"/\", Irre!F87, \" - \",  Irre!C87)","v":"lay/laid/laid/laying - lay  இடு, தயார் செய், படுக்க வை"}]
[{"$f":"Irre!B88","v":"lean"},{"$f":"CONCATENATE( Irre!B88, \"/\", Irre!D88, \"/\", Irre!E88, \"/\", Irre!F88, \" - \",  Irre!C88)","v":"lean/leaned / leant/leaned / leant/leaning - lean  ஒருபுறமாக சாய்"}]
[{"$f":"Irre!B89","v":"leap"},{"$f":"CONCATENATE( Irre!B89, \"/\", Irre!D89, \"/\", Irre!E89, \"/\", Irre!F89, \" - \",  Irre!C89)","v":"leap/leaped / leapt/leaped / leapt/leaping - leap  குதி, பாய், தாண்டு, துள்ளு"}]
[{"$f":"Irre!B90","v":"learn"},{"$f":"CONCATENATE( Irre!B90, \"/\", Irre!D90, \"/\", Irre!E90, \"/\", Irre!F90, \" - \",  Irre!C90)","v":"learn/learned / learnt/learned / learnt/learning - learn  கற்றுகொள், அறிந்துகொள்"}]
[{"$f":"Irre!B91","v":"leave"},{"$f":"CONCATENATE( Irre!B91, \"/\", Irre!D91, \"/\", Irre!E91, \"/\", Irre!F91, \" - \",  Irre!C91)","v":"leave/left/left/leaving - leave  விட்டுச்செல், விட்டுவிடு"}]
[{"$f":"Irre!B92","v":"lend"},{"$f":"CONCATENATE( Irre!B92, \"/\", Irre!D92, \"/\", Irre!E92, \"/\", Irre!F92, \" - \",  Irre!C92)","v":"lend/lent/lent/lending - lend  கடன் கொடு, இரவல் கொடு"}]
[{"$f":"Irre!B93","v":"let"},{"$f":"CONCATENATE( Irre!B93, \"/\", Irre!D93, \"/\", Irre!E93, \"/\", Irre!F93, \" - \",  Irre!C93)","v":"let/let/let/letting - let  வாடகை வீடு, விடு, போகவிடு, வாடகைக்கு விடு"}]
[{"$f":"Irre!B94","v":"lie"},{"$f":"CONCATENATE( Irre!B94, \"/\", Irre!D94, \"/\", Irre!E94, \"/\", Irre!F94, \" - \",  Irre!C94)","v":"lie/lied / lay/lied / lain/liying - lie  பொய், புளுகு, படு, கிட, இரு, அசையாதிரு"}]
[{"$f":"Irre!B95","v":"light"},{"$f":"CONCATENATE( Irre!B95, \"/\", Irre!D95, \"/\", Irre!E95, \"/\", Irre!F95, \" - \",  Irre!C95)","v":"light/lighted / lit/lighted / lit/lighting - light  விளக்கு, தீ"}]
[{"$f":"Irre!B96","v":"lose"},{"$f":"CONCATENATE( Irre!B96, \"/\", Irre!D96, \"/\", Irre!E96, \"/\", Irre!F96, \" - \",  Irre!C96)","v":"lose/lost/lost/losing - lose  இழ, தோல்வியடை, நஷ்டமடை"}]
[{"$f":"Irre!B97","v":"make"},{"$f":"CONCATENATE( Irre!B97, \"/\", Irre!D97, \"/\", Irre!E97, \"/\", Irre!F97, \" - \",  Irre!C97)","v":"make/made/made/making - make  உருவாக்கு, செய், ஈட்டு"}]
[{"$f":"Irre!B98","v":"mean"},{"$f":"CONCATENATE( Irre!B98, \"/\", Irre!D98, \"/\", Irre!E98, \"/\", Irre!F98, \" - \",  Irre!C98)","v":"mean/meant/meant/meaning - mean  பொருள்படு, நினை, கருது"}]
[{"$f":"Irre!B99","v":"meet"},{"$f":"CONCATENATE( Irre!B99, \"/\", Irre!D99, \"/\", Irre!E99, \"/\", Irre!F99, \" - \",  Irre!C99)","v":"meet/met/met/meeting - meet  சந்தித்தல், எதிர்ப்படு"}]
[{"$f":"Irre!B100","v":"misdeal"},{"$f":"CONCATENATE( Irre!B100, \"/\", Irre!D100, \"/\", Irre!E100, \"/\", Irre!F100, \" - \",  Irre!C100)","v":"misdeal/misdealt/misdealt/misdealing - misdeal  பங்கீடு செய்வதில் தவறு செய்"}]
[{"$f":"Irre!B101","v":"misgive"},{"$f":"CONCATENATE( Irre!B101, \"/\", Irre!D101, \"/\", Irre!E101, \"/\", Irre!F101, \" - \",  Irre!C101)","v":"misgive/misgave/misgiven/misgiving - misgive  ஐயமூட்டு"}]
[{"$f":"Irre!B102","v":"misspend"},{"$f":"CONCATENATE( Irre!B102, \"/\", Irre!D102, \"/\", Irre!E102, \"/\", Irre!F102, \" - \",  Irre!C102)","v":"misspend/misspent/misspent/misspending - misspend  தவறாக செலவு செய்"}]
[{"$f":"Irre!B103","v":"mistake"},{"$f":"CONCATENATE( Irre!B103, \"/\", Irre!D103, \"/\", Irre!E103, \"/\", Irre!F103, \" - \",  Irre!C103)","v":"mistake/mistook/mistaken/mistaking - mistake  தவறு, தவறுதல்"}]
[{"$f":"Irre!B104","v":"misunderstand"},{"$f":"CONCATENATE( Irre!B104, \"/\", Irre!D104, \"/\", Irre!E104, \"/\", Irre!F104, \" - \",  Irre!C104)","v":"misunderstand/misunderstood/misunderstood/misunderstanding - misunderstand  தவறாக புரிந்து கொள்ளுதல்"}]
[{"$f":"Irre!B105","v":"out"},{"$f":"CONCATENATE( Irre!B105, \"/\", Irre!D105, \"/\", Irre!E105, \"/\", Irre!F105, \" - \",  Irre!C105)","v":"out/out ran/out run/out running - out run  அதிகமாக ஓடு"}]
[{"$f":"Irre!B106","v":"out"},{"$f":"CONCATENATE( Irre!B106, \"/\", Irre!D106, \"/\", Irre!E106, \"/\", Irre!F106, \" - \",  Irre!C106)","v":"out/out sold/out sold/outselling - out sell  அதிகமாக செலவிடு"}]
[{"$f":"Irre!B107","v":"out"},{"$f":"CONCATENATE( Irre!B107, \"/\", Irre!D107, \"/\", Irre!E107, \"/\", Irre!F107, \" - \",  Irre!C107)","v":"out/out shone/out shone/out shining - out shine  அதிகமாக பிரகாசி"}]
[{"$f":"Irre!B108","v":"outbid"},{"$f":"CONCATENATE( Irre!B108, \"/\", Irre!D108, \"/\", Irre!E108, \"/\", Irre!F108, \" - \",  Irre!C108)","v":"outbid/outbid/outbid/outbidding - outbid  ஏலத்தில் அதிக தொகைக்கு கூறு"}]
[{"$f":"Irre!B109","v":"outgo"},{"$f":"CONCATENATE( Irre!B109, \"/\", Irre!D109, \"/\", Irre!E109, \"/\", Irre!F109, \" - \",  Irre!C109)","v":"outgo/outgrew/outgrown/outgrowing - outgo  விஞ்சு"}]
[{"$f":"Irre!B110","v":"over"},{"$f":"CONCATENATE( Irre!B110, \"/\", Irre!D110, \"/\", Irre!E110, \"/\", Irre!F110, \" - \",  Irre!C110)","v":"over/over bore/over bome/overbearing - over bear  அதிகமாக ஈனு"}]
[{"$f":"Irre!B111","v":"over"},{"$f":"CONCATENATE( Irre!B111, \"/\", Irre!D111, \"/\", Irre!E111, \"/\", Irre!F111, \" - \",  Irre!C111)","v":"over/overcame/overcome/overcoming - over come  தோல்வியுறச் செய்"}]
[{"$f":"Irre!B112","v":"over"},{"$f":"CONCATENATE( Irre!B112, \"/\", Irre!D112, \"/\", Irre!E112, \"/\", Irre!F112, \" - \",  Irre!C112)","v":"over/overlaid/overlaid/overlaying - over lay  அதிகமான மேற்பரப்பு"}]
[{"$f":"Irre!B113","v":"over"},{"$f":"CONCATENATE( Irre!B113, \"/\", Irre!D113, \"/\", Irre!E113, \"/\", Irre!F113, \" - \",  Irre!C113)","v":"over/over ran/over run/over running - over run  எல்லையை மீறிச் செல்"}]
[{"$f":"Irre!B114","v":"over"},{"$f":"CONCATENATE( Irre!B114, \"/\", Irre!D114, \"/\", Irre!E114, \"/\", Irre!F114, \" - \",  Irre!C114)","v":"over/over saw/over seen/over seeing - over see  மேற்பார்வையிடு"}]
[{"$f":"Irre!B115","v":"over"},{"$f":"CONCATENATE( Irre!B115, \"/\", Irre!D115, \"/\", Irre!E115, \"/\", Irre!F115, \" - \",  Irre!C115)","v":"over/over slept/over slept/over sleeping - over shoo  எல்லையை மீறிச்சுடு"}]
[{"$f":"Irre!B116","v":"overcast"},{"$f":"CONCATENATE( Irre!B116, \"/\", Irre!D116, \"/\", Irre!E116, \"/\", Irre!F116, \" - \",  Irre!C116)","v":"overcast/overcast/overcast/overcasting - overcast  இருளாக்கு"}]
[{"$f":"Irre!B117","v":"overdo"},{"$f":"CONCATENATE( Irre!B117, \"/\", Irre!D117, \"/\", Irre!E117, \"/\", Irre!F117, \" - \",  Irre!C117)","v":"overdo/overdid/overdone/overdoing - overdo  அளவுக்கு மேல் செய்"}]
[{"$f":"Irre!B118","v":"overdrew"},{"$f":"CONCATENATE( Irre!B118, \"/\", Irre!D118, \"/\", Irre!E118, \"/\", Irre!F118, \" - \",  Irre!C118)","v":"overdrew/overdrew/overdrawn/overdrawing - overdrew  அதிகமாக எடு"}]
[{"$f":"Irre!B119","v":"overhang"},{"$f":"CONCATENATE( Irre!B119, \"/\", Irre!D119, \"/\", Irre!E119, \"/\", Irre!F119, \" - \",  Irre!C119)","v":"overhang/overhung/overhung/overhunging - overhang  மேலே தொங்கிக்கொண்டிரு"}]
[{"$f":"Irre!B120","v":"overpay"},{"$f":"CONCATENATE( Irre!B120, \"/\", Irre!D120, \"/\", Irre!E120, \"/\", Irre!F120, \" - \",  Irre!C120)","v":"overpay/overpaid/overpaid/over paying - overpay  அதிகமாக பணம் செலுத்து"}]
[{"$f":"Irre!B121","v":"override"},{"$f":"CONCATENATE( Irre!B121, \"/\", Irre!D121, \"/\", Irre!E121, \"/\", Irre!F121, \" - \",  Irre!C121)","v":"override/overrode/overridden/over riding - override  படையெடு"}]
[{"$f":"Irre!B122","v":"oversee"},{"$f":"CONCATENATE( Irre!B122, \"/\", Irre!D122, \"/\", Irre!E122, \"/\", Irre!F122, \" - \",  Irre!C122)","v":"oversee/oversaw/overseen/overseeing - oversee  கவனி, கண்காணி"}]
[{"$f":"Irre!B123","v":"overthrow"},{"$f":"CONCATENATE( Irre!B123, \"/\", Irre!D123, \"/\", Irre!E123, \"/\", Irre!F123, \" - \",  Irre!C123)","v":"overthrow/overthrew/overthrown/overthrowing - overthrow  கீழே தள்ளு, தோற்கடி"}]
[{"$f":"Irre!B124","v":"partake"},{"$f":"CONCATENATE( Irre!B124, \"/\", Irre!D124, \"/\", Irre!E124, \"/\", Irre!F124, \" - \",  Irre!C124)","v":"partake/partook/partaken/partaking - partake  பங்கெடுத்துக்கொள்"}]
[{"$f":"Irre!B125","v":"pay"},{"$f":"CONCATENATE( Irre!B125, \"/\", Irre!D125, \"/\", Irre!E125, \"/\", Irre!F125, \" - \",  Irre!C125)","v":"pay/paid/paid/paying - pay  கூலி, விலை கொடு,"}]
[{"$f":"Irre!B126","v":"put"},{"$f":"CONCATENATE( Irre!B126, \"/\", Irre!D126, \"/\", Irre!E126, \"/\", Irre!F126, \" - \",  Irre!C126)","v":"put/put/put/putting - put  இடத்தில், அமர்த்து"}]
[{"$f":"Irre!B127","v":"read"},{"$f":"CONCATENATE( Irre!B127, \"/\", Irre!D127, \"/\", Irre!E127, \"/\", Irre!F127, \" - \",  Irre!C127)","v":"read/read/read/reading - read  வாசி, படி, கல்வி கல்"}]
[{"$f":"Irre!B128","v":"rebuild"},{"$f":"CONCATENATE( Irre!B128, \"/\", Irre!D128, \"/\", Irre!E128, \"/\", Irre!F128, \" - \",  Irre!C128)","v":"rebuild/rebuilt/rebuilt/rebuilding - rebuild  திரும்பக்கட்டு"}]
[{"$f":"Irre!B129","v":"rend"},{"$f":"CONCATENATE( Irre!B129, \"/\", Irre!D129, \"/\", Irre!E129, \"/\", Irre!F129, \" - \",  Irre!C129)","v":"rend/rent/rent/rending - rend  கிழி, பிள, தகர்த்தெறி"}]
[{"$f":"Irre!B130","v":"repay"},{"$f":"CONCATENATE( Irre!B130, \"/\", Irre!D130, \"/\", Irre!E130, \"/\", Irre!F130, \" - \",  Irre!C130)","v":"repay/repaid/repaid/repaying - repay  திருப்பிக் கொடு, ஈடு செய்"}]
[{"$f":"Irre!B131","v":"retake"},{"$f":"CONCATENATE( Irre!B131, \"/\", Irre!D131, \"/\", Irre!E131, \"/\", Irre!F131, \" - \",  Irre!C131)","v":"retake/retook/retaken/retaking - retake  மீண்டும் படம் எடு"}]
[{"$f":"Irre!B132","v":"rethink"},{"$f":"CONCATENATE( Irre!B132, \"/\", Irre!D132, \"/\", Irre!E132, \"/\", Irre!F132, \" - \",  Irre!C132)","v":"rethink/rethought/rethought/rethinking - rethink  மீண்டும் நினை"}]
[{"$f":"Irre!B133","v":"rewind"},{"$f":"CONCATENATE( Irre!B133, \"/\", Irre!D133, \"/\", Irre!E133, \"/\", Irre!F133, \" - \",  Irre!C133)","v":"rewind/rewound/rewound/rewinding - rewind  மீண்டும் முன்னோக்கி செல்"}]
[{"$f":"Irre!B134","v":"rewrite"},{"$f":"CONCATENATE( Irre!B134, \"/\", Irre!D134, \"/\", Irre!E134, \"/\", Irre!F134, \" - \",  Irre!C134)","v":"rewrite/rewrote/rewritten/rewriting - rewrite  திரும்பவும் எழுது"}]
[{"$f":"Irre!B135","v":"ride"},{"$f":"CONCATENATE( Irre!B135, \"/\", Irre!D135, \"/\", Irre!E135, \"/\", Irre!F135, \" - \",  Irre!C135)","v":"ride/rode/ridden/riding - ride  சவாரி ,ஒட்டு, தவிழ்ந்து மித"}]
[{"$f":"Irre!B136","v":"ring"},{"$f":"CONCATENATE( Irre!B136, \"/\", Irre!D136, \"/\", Irre!E136, \"/\", Irre!F136, \" - \",  Irre!C136)","v":"ring/rang/rung/ringing - ring  மணியோசை, மோதிரம்"}]
[{"$f":"Irre!B137","v":"rise"},{"$f":"CONCATENATE( Irre!B137, \"/\", Irre!D137, \"/\", Irre!E137, \"/\", Irre!F137, \" - \",  Irre!C137)","v":"rise/rose/risen/rising - rise  எழுந்திரு, உயர், தோன்று, துள்ளு,"}]
[{"$f":"Irre!B138","v":"run"},{"$f":"CONCATENATE( Irre!B138, \"/\", Irre!D138, \"/\", Irre!E138, \"/\", Irre!F138, \" - \",  Irre!C138)","v":"run/ran/run/running - run  ஓடு, திரவம் பாய், நடத்து, கல"}]
[{"$f":"Irre!B139","v":"say"},{"$f":"CONCATENATE( Irre!B139, \"/\", Irre!D139, \"/\", Irre!E139, \"/\", Irre!F139, \" - \",  Irre!C139)","v":"say/said/said/saying - say  சொல், கூறு, இயம்பு, தெரிவி"}]
[{"$f":"Irre!B140","v":"see"},{"$f":"CONCATENATE( Irre!B140, \"/\", Irre!D140, \"/\", Irre!E140, \"/\", Irre!F140, \" - \",  Irre!C140)","v":"see/saw/seen/seeing - see  பார், தெரிந்து கொள், கவனி"}]
[{"$f":"Irre!B141","v":"seek"},{"$f":"CONCATENATE( Irre!B141, \"/\", Irre!D141, \"/\", Irre!E141, \"/\", Irre!F141, \" - \",  Irre!C141)","v":"seek/sought/sought/seeking - seek  தேடு, அடைய முயலு"}]
[{"$f":"Irre!B142","v":"sell"},{"$f":"CONCATENATE( Irre!B142, \"/\", Irre!D142, \"/\", Irre!E142, \"/\", Irre!F142, \" - \",  Irre!C142)","v":"sell/sold/sold/selling - sell  விற்பனை செய், விலையாகு"}]
[{"$f":"Irre!B143","v":"send"},{"$f":"CONCATENATE( Irre!B143, \"/\", Irre!D143, \"/\", Irre!E143, \"/\", Irre!F143, \" - \",  Irre!C143)","v":"send/sent/sent/sending - send  அனுப்பு, செல்லச்செய், எறி"}]
[{"$f":"Irre!B144","v":"set"},{"$f":"CONCATENATE( Irre!B144, \"/\", Irre!D144, \"/\", Irre!E144, \"/\", Irre!F144, \" - \",  Irre!C144)","v":"set/set/set/setting - set  வை, நிர்ணயி, அமை"}]
[{"$f":"Irre!B145","v":"shake"},{"$f":"CONCATENATE( Irre!B145, \"/\", Irre!D145, \"/\", Irre!E145, \"/\", Irre!F145, \" - \",  Irre!C145)","v":"shake/shook/shaken/shaking - shake  குலுக்கு, ஆட்டு, நடுங்கு,"}]
[{"$f":"Irre!B146","v":"shear"},{"$f":"CONCATENATE( Irre!B146, \"/\", Irre!D146, \"/\", Irre!E146, \"/\", Irre!F146, \" - \",  Irre!C146)","v":"shear/shorn/shorn/shoing - shear  கத்தரி"}]
[{"$f":"Irre!B147","v":"shoe"},{"$f":"CONCATENATE( Irre!B147, \"/\", Irre!D147, \"/\", Irre!E147, \"/\", Irre!F147, \" - \",  Irre!C147)","v":"shoe/shod/shod/shoeing - shoe  இலாடம் பொருத்து, பூண் இடு"}]
[{"$f":"Irre!B148","v":"shoot"},{"$f":"CONCATENATE( Irre!B148, \"/\", Irre!D148, \"/\", Irre!E148, \"/\", Irre!F148, \" - \",  Irre!C148)","v":"shoot/shot/shot/shooting - shoot  துப்பாக்கியால் சுடு, அம்பு எய், புகைப்படம் எடு"}]
[{"$f":"Irre!B149","v":"shrink"},{"$f":"CONCATENATE( Irre!B149, \"/\", Irre!D149, \"/\", Irre!E149, \"/\", Irre!F149, \" - \",  Irre!C149)","v":"shrink/shrank/shrunk/shrinking - shrink  சுருங்கு, சுருக்கு, பின்னிடு"}]
[{"$f":"Irre!B150","v":"shrive"},{"$f":"CONCATENATE( Irre!B150, \"/\", Irre!D150, \"/\", Irre!E150, \"/\", Irre!F150, \" - \",  Irre!C150)","v":"shrive/shrove/shriven/shriving - shrive  பாவங்களிலிருந்து விடுவி"}]
[{"$f":"Irre!B151","v":"shut"},{"$f":"CONCATENATE( Irre!B151, \"/\", Irre!D151, \"/\", Irre!E151, \"/\", Irre!F151, \" - \",  Irre!C151)","v":"shut/shut/shut/shutting - shut  மூடு, கதவு அடை, தாளிடு"}]
[{"$f":"Irre!B152","v":"sing"},{"$f":"CONCATENATE( Irre!B152, \"/\", Irre!D152, \"/\", Irre!E152, \"/\", Irre!F152, \" - \",  Irre!C152)","v":"sing/sang/sung/singing - sing  பாடு, கவி, புகழ் பாடு"}]
[{"$f":"Irre!B153","v":"sink"},{"$f":"CONCATENATE( Irre!B153, \"/\", Irre!D153, \"/\", Irre!E153, \"/\", Irre!F153, \" - \",  Irre!C153)","v":"sink/sank/sunk/sinking - sink  அமிழ்த்து, மூழ்கு"}]
[{"$f":"Irre!B154","v":"sit"},{"$f":"CONCATENATE( Irre!B154, \"/\", Irre!D154, \"/\", Irre!E154, \"/\", Irre!F154, \" - \",  Irre!C154)","v":"sit/sat/sat/sitting - sit  உட்கார்,"}]
[{"$f":"Irre!B155","v":"slay"},{"$f":"CONCATENATE( Irre!B155, \"/\", Irre!D155, \"/\", Irre!E155, \"/\", Irre!F155, \" - \",  Irre!C155)","v":"slay/slew/slain/slaying - slay  கொல்லு, வேட்டையாடி அழி"}]
[{"$f":"Irre!B156","v":"sleep"},{"$f":"CONCATENATE( Irre!B156, \"/\", Irre!D156, \"/\", Irre!E156, \"/\", Irre!F156, \" - \",  Irre!C156)","v":"sleep/slept/slept/sleeping - sleep  தூங்கு, செயலற்றிரு"}]
[{"$f":"Irre!B157","v":"slide"},{"$f":"CONCATENATE( Irre!B157, \"/\", Irre!D157, \"/\", Irre!E157, \"/\", Irre!F157, \" - \",  Irre!C157)","v":"slide/slid/slid/sliding - slide  வழுக்கிச் செல், சறுக்கு"}]
[{"$f":"Irre!B158","v":"slit"},{"$f":"CONCATENATE( Irre!B158, \"/\", Irre!D158, \"/\", Irre!E158, \"/\", Irre!F158, \" - \",  Irre!C158)","v":"slit/slit/slit/slitting - slit  சிறு வெடிப்புச் செய்"}]
[{"$f":"Irre!B159","v":"smell"},{"$f":"CONCATENATE( Irre!B159, \"/\", Irre!D159, \"/\", Irre!E159, \"/\", Irre!F159, \" - \",  Irre!C159)","v":"smell/smelled / smelt/smelled / smelt/smelling - smell  வாசனை பார், மணம் கொண்டிரு"}]
[{"$f":"Irre!B160","v":"smite"},{"$f":"CONCATENATE( Irre!B160, \"/\", Irre!D160, \"/\", Irre!E160, \"/\", Irre!F160, \" - \",  Irre!C160)","v":"smite/smote/smitten/smiting - smite  பலமாக அடி, தாக்கு, வீழ்த்து"}]
[{"$f":"Irre!B161","v":"speak"},{"$f":"CONCATENATE( Irre!B161, \"/\", Irre!D161, \"/\", Irre!E161, \"/\", Irre!F161, \" - \",  Irre!C161)","v":"speak/spoke/spoken/speaking - speak  பேசு, சொற்பொழிவு ஆற்று"}]
[{"$f":"Irre!B162","v":"spell"},{"$f":"CONCATENATE( Irre!B162, \"/\", Irre!D162, \"/\", Irre!E162, \"/\", Irre!F162, \" - \",  Irre!C162)","v":"spell/spelled / spelt/spelled / spelt/spelling - spell  எழுத்துக் கூட்டு, விளைவாகு"}]
[{"$f":"Irre!B163","v":"spend"},{"$f":"CONCATENATE( Irre!B163, \"/\", Irre!D163, \"/\", Irre!E163, \"/\", Irre!F163, \" - \",  Irre!C163)","v":"spend/spent/spent/spending - spend  செலவு செய், உபயோகி"}]
[{"$f":"Irre!B164","v":"spill"},{"$f":"CONCATENATE( Irre!B164, \"/\", Irre!D164, \"/\", Irre!E164, \"/\", Irre!F164, \" - \",  Irre!C164)","v":"spill/spilled / spilt/spilled / spilt/spilling - spill  சிந்து, வீணாக்கு, வழிந்தோடு"}]
[{"$f":"Irre!B165","v":"spin"},{"$f":"CONCATENATE( Irre!B165, \"/\", Irre!D165, \"/\", Irre!E165, \"/\", Irre!F165, \" - \",  Irre!C165)","v":"spin/span/spun/spining - spin  நீர் சிதறச் செய், வாரி இறை"}]
[{"$f":"Irre!B166","v":"spit"},{"$f":"CONCATENATE( Irre!B166, \"/\", Irre!D166, \"/\", Irre!E166, \"/\", Irre!F166, \" - \",  Irre!C166)","v":"spit/spat / spit/spat / spit/spitting - spit  நெடுக்காகப் பிள, பிரி, வகு"}]
[{"$f":"Irre!B167","v":"split"},{"$f":"CONCATENATE( Irre!B167, \"/\", Irre!D167, \"/\", Irre!E167, \"/\", Irre!F167, \" - \",  Irre!C167)","v":"split/split/split/splitting - split  பிள, பிரி"}]
[{"$f":"Irre!B168","v":"spoil"},{"$f":"CONCATENATE( Irre!B168, \"/\", Irre!D168, \"/\", Irre!E168, \"/\", Irre!F168, \" - \",  Irre!C168)","v":"spoil/spoiled / spoilt/spoiled / spoilt/spoiling - spoil  கெடு, பாழாக்கு,"}]
[{"$f":"Irre!B169","v":"spring"},{"$f":"CONCATENATE( Irre!B169, \"/\", Irre!D169, \"/\", Irre!E169, \"/\", Irre!F169, \" - \",  Irre!C169)","v":"spring/sprang/sprung/springing - spring  துள்ளு, பாய்ந்து செல்"}]
[{"$f":"Irre!B170","v":"stand"},{"$f":"CONCATENATE( Irre!B170, \"/\", Irre!D170, \"/\", Irre!E170, \"/\", Irre!F170, \" - \",  Irre!C170)","v":"stand/stood/stood/standing - stand  நில், உறுதியாய் இரு, நிமிர்த்து வை"}]
[{"$f":"Irre!B171","v":"steal"},{"$f":"CONCATENATE( Irre!B171, \"/\", Irre!D171, \"/\", Irre!E171, \"/\", Irre!F171, \" - \",  Irre!C171)","v":"steal/stole/stolen/stealing - steal  திருடு, ஓசையின்றிச்செல்"}]
[{"$f":"Irre!B172","v":"stick"},{"$f":"CONCATENATE( Irre!B172, \"/\", Irre!D172, \"/\", Irre!E172, \"/\", Irre!F172, \" - \",  Irre!C172)","v":"stick/stuck/stuck/sticking - stick  ஒட்டு, ஒட்டிக்கொள், துருத்தி நில்"}]
[{"$f":"Irre!B173","v":"sting"},{"$f":"CONCATENATE( Irre!B173, \"/\", Irre!D173, \"/\", Irre!E173, \"/\", Irre!F173, \" - \",  Irre!C173)","v":"sting/stung/stung/stinging - sting  கொடுக்கினால் கொட்டு,"}]
[{"$f":"Irre!B174","v":"stink"},{"$f":"CONCATENATE( Irre!B174, \"/\", Irre!D174, \"/\", Irre!E174, \"/\", Irre!F174, \" - \",  Irre!C174)","v":"stink/stuck/stuck/sticking - stink  கெட்ட நாற்றம் வீசு"}]
[{"$f":"Irre!B175","v":"strew"},{"$f":"CONCATENATE( Irre!B175, \"/\", Irre!D175, \"/\", Irre!E175, \"/\", Irre!F175, \" - \",  Irre!C175)","v":"strew/strow/strewn/strewing - strew  சிதறு,தூவு"}]
[{"$f":"Irre!B176","v":"stride"},{"$f":"CONCATENATE( Irre!B176, \"/\", Irre!D176, \"/\", Irre!E176, \"/\", Irre!F176, \" - \",  Irre!C176)","v":"stride/strode/stridden/striding - stride  நீண்டு நட"}]
[{"$f":"Irre!B177","v":"strike"},{"$f":"CONCATENATE( Irre!B177, \"/\", Irre!D177, \"/\", Irre!E177, \"/\", Irre!F177, \" - \",  Irre!C177)","v":"strike/struck/struck/striking - strike  அடி, மோது, வேலை நிறுத்தம் செய், மணியடி, விளக்கேற்று"}]
[{"$f":"Irre!B178","v":"string"},{"$f":"CONCATENATE( Irre!B178, \"/\", Irre!D178, \"/\", Irre!E178, \"/\", Irre!F178, \" - \",  Irre!C178)","v":"string/strung/strung/stringing - string  ஒட்டு"}]
[{"$f":"Irre!B179","v":"strive"},{"$f":"CONCATENATE( Irre!B179, \"/\", Irre!D179, \"/\", Irre!E179, \"/\", Irre!F179, \" - \",  Irre!C179)","v":"strive/strove/striven/striving - strive  கடுமையாக முயற்சி செய்"}]
[{"$f":"Irre!B180","v":"swear"},{"$f":"CONCATENATE( Irre!B180, \"/\", Irre!D180, \"/\", Irre!E180, \"/\", Irre!F180, \" - \",  Irre!C180)","v":"swear/swore/sworn/swearing - swear  பிரயாணம் செய், உறுதி செய்"}]
[{"$f":"Irre!B181","v":"sweep"},{"$f":"CONCATENATE( Irre!B181, \"/\", Irre!D181, \"/\", Irre!E181, \"/\", Irre!F181, \" - \",  Irre!C181)","v":"sweep/swept/swept/sweeping - sweep  துடைப்பத்தால் பெருக்கு, அடித்து செல், சுற்றி நோக்கு"}]
[{"$f":"Irre!B182","v":"swim"},{"$f":"CONCATENATE( Irre!B182, \"/\", Irre!D182, \"/\", Irre!E182, \"/\", Irre!F182, \" - \",  Irre!C182)","v":"swim/swam/sum/swimming - swim  நீந்து, தலை சுற்றப்பெறு"}]
[{"$f":"Irre!B183","v":"swing"},{"$f":"CONCATENATE( Irre!B183, \"/\", Irre!D183, \"/\", Irre!E183, \"/\", Irre!F183, \" - \",  Irre!C183)","v":"swing/swung/swung/swinging - swing  ஊஞ்சலாடு"}]
[{"$f":"Irre!B184","v":"take"},{"$f":"CONCATENATE( Irre!B184, \"/\", Irre!D184, \"/\", Irre!E184, \"/\", Irre!F184, \" - \",  Irre!C184)","v":"take/took/taken/taking - take  எடு, அகற்று, தேர்ந்தெடு"}]
[{"$f":"Irre!B185","v":"teach"},{"$f":"CONCATENATE( Irre!B185, \"/\", Irre!D185, \"/\", Irre!E185, \"/\", Irre!F185, \" - \",  Irre!C185)","v":"teach/taught/taught/teaching - teach  கற்பி, உபதேசி, பழக்கு"}]
[{"$f":"Irre!B186","v":"tear"},{"$f":"CONCATENATE( Irre!B186, \"/\", Irre!D186, \"/\", Irre!E186, \"/\", Irre!F186, \" - \",  Irre!C186)","v":"tear/tore/torn/tearing - tear  கிழி, பிளவு, பிடித்திழு, கண்ணீர்"}]
[{"$f":"Irre!B187","v":"tell"},{"$f":"CONCATENATE( Irre!B187, \"/\", Irre!D187, \"/\", Irre!E187, \"/\", Irre!F187, \" - \",  Irre!C187)","v":"tell/told/told/telling - tell  சொல், அறிவி, விவரி, உறுதியளி"}]
[{"$f":"Irre!B188","v":"think"},{"$f":"CONCATENATE( Irre!B188, \"/\", Irre!D188, \"/\", Irre!E188, \"/\", Irre!F188, \" - \",  Irre!C188)","v":"think/thought/thought/thinking - think  நினை, கருது, ஆலோசனை செய்"}]
[{"$f":"Irre!B189","v":"throw"},{"$f":"CONCATENATE( Irre!B189, \"/\", Irre!D189, \"/\", Irre!E189, \"/\", Irre!F189, \" - \",  Irre!C189)","v":"throw/threw/thrown/throwing - throw  எறி, வீழ்த்து, வீசு"}]
[{"$f":"Irre!B190","v":"tread"},{"$f":"CONCATENATE( Irre!B190, \"/\", Irre!D190, \"/\", Irre!E190, \"/\", Irre!F190, \" - \",  Irre!C190)","v":"tread/trod/trodden/treading - tread  அடியிட்டு நட, காலால் மிதி"}]
[{"$f":"Irre!B191","v":"typewrite"},{"$f":"CONCATENATE( Irre!B191, \"/\", Irre!D191, \"/\", Irre!E191, \"/\", Irre!F191, \" - \",  Irre!C191)","v":"typewrite/typewrote/typewritten/typewriting - typewrite  தட்டச்சுப்பொறியில் அச்சடி"}]
[{"$f":"Irre!B192","v":"undergo"},{"$f":"CONCATENATE( Irre!B192, \"/\", Irre!D192, \"/\", Irre!E192, \"/\", Irre!F192, \" - \",  Irre!C192)","v":"undergo/underwent/undergone/undergoing - undergo  அனுபவி, தாங்கு"}]
[{"$f":"Irre!B193","v":"undersell"},{"$f":"CONCATENATE( Irre!B193, \"/\", Irre!D193, \"/\", Irre!E193, \"/\", Irre!F193, \" - \",  Irre!C193)","v":"undersell/undersold/undersold/underselling - undersell  குறைந்தவிலைக்கு விற்பனை செய்"}]
[{"$f":"Irre!B194","v":"undershoot"},{"$f":"CONCATENATE( Irre!B194, \"/\", Irre!D194, \"/\", Irre!E194, \"/\", Irre!F194, \" - \",  Irre!C194)","v":"undershoot/undershot/undershot/undershooting - undershoot  நிலப்பரப்போடு சுடு"}]
[{"$f":"Irre!B195","v":"understand"},{"$f":"CONCATENATE( Irre!B195, \"/\", Irre!D195, \"/\", Irre!E195, \"/\", Irre!F195, \" - \",  Irre!C195)","v":"understand/understood/understood/understanding - understand  தெரிந்து கொள், விஷயம் அறி, கேள்விப்படு"}]
[{"$f":"Irre!B196","v":"undertake"},{"$f":"CONCATENATE( Irre!B196, \"/\", Irre!D196, \"/\", Irre!E196, \"/\", Irre!F196, \" - \",  Irre!C196)","v":"undertake/undertook/undertaken/undertaking - undertake  செய்ய மேற்கொள்"}]
[{"$f":"Irre!B197","v":"underwrite"},{"$f":"CONCATENATE( Irre!B197, \"/\", Irre!D197, \"/\", Irre!E197, \"/\", Irre!F197, \" - \",  Irre!C197)","v":"underwrite/underwrote/underwritten/underwriting - underwrite  வரன்முறையை ஒத்துக்கொள்"}]
[{"$f":"Irre!B198","v":"undo"},{"$f":"CONCATENATE( Irre!B198, \"/\", Irre!D198, \"/\", Irre!E198, \"/\", Irre!F198, \" - \",  Irre!C198)","v":"undo/undid/undone/undoing - undo  அவிழ், பாழாக்கு, பிதிர்விடுவி"}]
[{"$f":"Irre!B199","v":"unsay"},{"$f":"CONCATENATE( Irre!B199, \"/\", Irre!D199, \"/\", Irre!E199, \"/\", Irre!F199, \" - \",  Irre!C199)","v":"unsay/unsaid/unsaid/unsaying - unsay  சொன்னதை திரும்பப்பெறு"}]
[{"$f":"Irre!B200","v":"unspeak"},{"$f":"CONCATENATE( Irre!B200, \"/\", Irre!D200, \"/\", Irre!E200, \"/\", Irre!F200, \" - \",  Irre!C200)","v":"unspeak/unspoke/unspoken/unspeaking - unspeak  சொன்னதை திரும்ப பேசு"}]
[{"$f":"Irre!B201","v":"unwind"},{"$f":"CONCATENATE( Irre!B201, \"/\", Irre!D201, \"/\", Irre!E201, \"/\", Irre!F201, \" - \",  Irre!C201)","v":"unwind/unwound/unwound/unwinding - unwind  கற்றைப்பிரி"}]
[{"$f":"Irre!B202","v":"uphold"},{"$f":"CONCATENATE( Irre!B202, \"/\", Irre!D202, \"/\", Irre!E202, \"/\", Irre!F202, \" - \",  Irre!C202)","v":"uphold/upheld/upheld/upholding - uphold  ஆதரி, காப்பாற்று"}]
[{"$f":"Irre!B203","v":"upset"},{"$f":"CONCATENATE( Irre!B203, \"/\", Irre!D203, \"/\", Irre!E203, \"/\", Irre!F203, \" - \",  Irre!C203)","v":"upset/upset/upset/upsetting - upset  தலைகீழாக்கு, நிலை குலையச்செய், மன அமைதி கெடு"}]
[{"$f":"Irre!B204","v":"waylay"},{"$f":"CONCATENATE( Irre!B204, \"/\", Irre!D204, \"/\", Irre!E204, \"/\", Irre!F204, \" - \",  Irre!C204)","v":"waylay/waylaid/waylaid/waylaying - waylay  ஒளிந்துதாக்கு"}]
[{"$f":"Irre!B205","v":"wear"},{"$f":"CONCATENATE( Irre!B205, \"/\", Irre!D205, \"/\", Irre!E205, \"/\", Irre!F205, \" - \",  Irre!C205)","v":"wear/wore/worn/wearing - wear  அணி , உடு , தாங்கு , உபயோகி"}]
[{"$f":"Irre!B206","v":"weave"},{"$f":"CONCATENATE( Irre!B206, \"/\", Irre!D206, \"/\", Irre!E206, \"/\", Irre!F206, \" - \",  Irre!C206)","v":"weave/wove/woven/weaving - weave  நெசவு நெய் , வலை பின்னு"}]
[{"$f":"Irre!B207","v":"weep"},{"$f":"CONCATENATE( Irre!B207, \"/\", Irre!D207, \"/\", Irre!E207, \"/\", Irre!F207, \" - \",  Irre!C207)","v":"weep/wept/wept/weeping - weep  அழு, கண்ணீர் விடு , புலம்பு"}]
[{"$f":"Irre!B208","v":"wet"},{"$f":"CONCATENATE( Irre!B208, \"/\", Irre!D208, \"/\", Irre!E208, \"/\", Irre!F208, \" - \",  Irre!C208)","v":"wet/wetted / wet/wetted / wet/wetting - wet  ஈரமாக்கு , நனை"}]
[{"$f":"Irre!B209","v":"whip"},{"$f":"CONCATENATE( Irre!B209, \"/\", Irre!D209, \"/\", Irre!E209, \"/\", Irre!F209, \" - \",  Irre!C209)","v":"whip/whipped / whipt/whipped / whipt/whipping - whip  கசையால் அடி"}]
[{"$f":"Irre!B210","v":"win"},{"$f":"CONCATENATE( Irre!B210, \"/\", Irre!D210, \"/\", Irre!E210, \"/\", Irre!F210, \" - \",  Irre!C210)","v":"win/won/won/winning - win  முயன்று பெறு , வெற்றியடை"}]
[{"$f":"Irre!B211","v":"wind"},{"$f":"CONCATENATE( Irre!B211, \"/\", Irre!D211, \"/\", Irre!E211, \"/\", Irre!F211, \" - \",  Irre!C211)","v":"wind/wound/wound/winding - wind  சுற்று , வளைந்து"}]
[{"$f":"Irre!B212","v":"withdraw"},{"$f":"CONCATENATE( Irre!B212, \"/\", Irre!D212, \"/\", Irre!E212, \"/\", Irre!F212, \" - \",  Irre!C212)","v":"withdraw/withdrew/withdrawn/withdrawing - withdraw  பின்வாங்கு, திரும்ப எடு"}]
[{"$f":"Irre!B213","v":"withhold"},{"$f":"CONCATENATE( Irre!B213, \"/\", Irre!D213, \"/\", Irre!E213, \"/\", Irre!F213, \" - \",  Irre!C213)","v":"withhold/withheld/withheld/withholding - withhold  தொடாமல் வைத்துக் கொள், தடுத்து நிறுத்து"}]
[{"$f":"Irre!B214","v":"withstand"},{"$f":"CONCATENATE( Irre!B214, \"/\", Irre!D214, \"/\", Irre!E214, \"/\", Irre!F214, \" - \",  Irre!C214)","v":"withstand/withstood/withstood/withstanding - withstand  எதிர்த்து நில், தடை செய்"}]
[{"$f":"Irre!B215","v":"wring"},{"$f":"CONCATENATE( Irre!B215, \"/\", Irre!D215, \"/\", Irre!E215, \"/\", Irre!F215, \" - \",  Irre!C215)","v":"wring/wrung/wrung/wringing - wring  அழுத்திப் பிழி, கை பிசை"}]
[{"$f":"Irre!B216","v":"write"},{"$f":"CONCATENATE( Irre!B216, \"/\", Irre!D216, \"/\", Irre!E216, \"/\", Irre!F216, \" - \",  Irre!C216)","v":"write/wrote/written/writing - write  எழுது, நூல் எழுது, பதியச் செய்"}]

{"sheet":"Irre","index":1,"n_rows":216,"n_cols":6,"rows_kept":216,"cut":false,"hidden":false,"merged":[]}
[]
[null,"Present Tense","Meanings","Past Tense","Past Participle","Present Participle"]
[null,"arise","எழு , எழுந்திரு , மேலேழுந்து வளர், தோன்று உண்டாகு, மனத்தில் தோன்று","arose","arisen","arising"]
[null,"awake","விழி , தூக்கத்திலிருந்து எந்திரு , உறக்கத்தினின்று எழுப்பு , எழு","awoke","awoken","awaking"]
[null,"bear","bear  கரடி , பெறு, தாங்கு","bore","borne","bearing"]
[null,"beat","beat  முரசொலி , முரசறைவு","beat","beaten","beating"]
[null,"arise","arise  எழு , எழுந்திரு , மேலேழுந்து வளர், தோன்று உண்டாகு, மனத்தில் தோன்று","arose","arisen","arising"]
[null,"awake","awake  விழி , தூக்கத்திலிருந்து எந்திரு , உறக்கத்தினின்று எழுப்பு , எழு","awoke","awoken","awaking"]
[null,"bear","bear  கரடி , பெறு, தாங்கு","bore","borne","bearing"]
[null,"beat","beat  முரசொலி , முரசறைவு","beat","beaten","beating"]
[null,"become","become  உண்டாகு , நேர் , ஆகத்தொடங்கு , பொருந்து , தகுதியாயிரு , அணிசெய் , நயம்படத்தோன்று","became","became","becoming"]
[null,"befall","befall  நிகழ், நேரீடு","befell","befallen","befalling"]
[null,"begin","begin  தொடங்கிவை , முதற்செயல் நிகழ்த்து , முதற்கண் எடுத்துக்கொள் , புகுமுகஞ்செய்","began","begun","beginning"]
[null,"behold","behold  பார் , நோக்கித் தெரிந்துகொள் , அறி , கவனி","beheld","beheld","beholding"]
[null,"bend","bend  வளைத்தல் , வளைவு , வளைந்தபகுதி , கொக்கி , கொளுவி , குனி , திருப்பம்","bent","bent","bending"]
[null,"beseech","beseech  கெஞ்சிக் கேள்","besought","besought","beseeching"]
[null,"beset","beset  குழப்பமடையச் செய்","beset","beset","besetting"]
[null,"bespeak","bespeak  முன்கூட்டியே கேட்டு வை","bespoke","bespoken","bespeaking"]
[null,"bestride","bestride  உட்கார்","bestrode","bestrode","bestriding"]
[null,"betake","betake  முயற்சி செய்","betook","betaken","betaking"]
[null,"bethink","bethink  நினைவுக்கு கொண்டு வா","bethought","bethought","bethinking"]
[null,"bid","bid  ஏலம் கூறு , ஏலங்கேள், ஏலத்தில் கூறப்படும் விலை , ஏலத்தில் வைக்கபடும் விலை","bade","bidden","bidding"]
[null,"bind","bind  கட்டு , கட்டுப்படுத்து","bound","bound","binding"]
[null,"bite","bite  கடி , கடித்தல் , கௌவுதல் , பற்றுதல் , பிடி , கடிகாயம்","bit","bitten","biting"]
[null,"blow","blow  அடி : இடி , தட்டு , குத்து , இடர் , அதிர்ச்சி","blew","blown","blowing"]
[null,"break","break  முறி, உடை, தகர்த்தெறி","broke","broken","breaking"]
[null,"bring","bring  கொண்டு வா, வருவி, ஈட்டு","brought","brought","bringing"]
[null,"broadcast","broadcast  ஒளி / ஒலி பரப்ப செய்","broadcast","broadcast","broadcating"]
[null,"brow","brow beat  அதட்டி அடக்கு","browbeat","browbeaten","browbeating"]
[null,"build","build  வீடு கட்டு, அமை, எழுப்பு","built","built","building"]
[null,"burn","burn  கொளுத்து, எரி, விளக்கேற்று","burned / burnt","burned / burnt","burning"]
[null,"burst","burst  உடைத்து திற, சிதறு, வெடி","burst","burst","bursting"]
[null,"buy","buy  விலைக்கு வாங்கு","bought","bought","buying"]
[null,"cast","cast  எறி, வார்ப்பு உருவம் செய்","cast","cast","casting"]
[null,"catch","catch  பிடி , கைப்பற்று, சிக்கவை","caught","caught","catching"]
[null,"choose","choose  தேர்ந்தெடு, விரும்பு","chose","chosen","choosing"]
[null,"cleave","cleave  பிளவு, பிரி, வெட்டு","cleft / clove","cleft / cloven","cleaving"]
[null,"cling","cling  பற்றிக்கொள், ஒட்டிக்கொள்","clung","clung","clinging"]
[null,"come","come  வா, ஆகு, நிகழ், எட்டு, அடை","came","come","coming"]
[null,"cost","cost  விலை, மதிப்பு, செலவு","cost","cost","costing"]
[null,"creep","creep  ஊர்ந்து செல்","crept","crept","creeping"]
[null,"cut","cut  வெட்டு, செதுக்கு, குறைவாக்கு","cut","cut","cutting"]
[null,"deal","deal  வியாபாரம் செய், கையாளு","dealt","dealt","dealing"]
[null,"dig","dig  குழி தோண்டு, குத்து, குடை","dug","dug","digging"]
[null,"do","do  செய், ஆக்கு, நடத்து, முடி","did","done","doing"]
[null,"draw","draw  இழு, படம் வரை, கவர், பிடுங்கு","drew","drawn","drawing"]
[null,"dream","dream  கனவு, கற்பனை","dreamed / dreamt","dreamed / dreamt","dreaming"]
[null,"drink","drink  குடி, பருகு","drank","drunk","drinking"]
[null,"drive","drive  ஒட்டு, செலுத்து, சவாரி","drove","driven","driving"]
[null,"eat","eat  உண், தின், சாப்பிடு, அரித்தழி","ate","eaten","eating"]
[null,"fall","fall  விழு, குறை, நிகழ்","fell","fallen","falling"]
[null,"feel","feel  உணர், துயரப்படு, நினை","felt","felt","feeling"]
[null,"fight","fight  சண்டையிடு, போராடு","fought","fought","fighting"]
[null,"fling","fling  தூக்கி வீசு, தூர எறி","flung","flung","flinging"]
[null,"fly","fly  பற, விமானத்தில் செல்","flew","flown","flying"]
[null,"forbear","forbear  பொறுத்திரு, அடங்கு","forbore","forborne","forbearing"]
[null,"forbid","forbid  கூடாது என உத்தரவிடு","forbade","forbidden","forbidding"]
[null,"forecast","forecast  முன்னரே யூகித்துக்கூறு","forecast","forecast","forecasting"]
[null,"forego","forego  முன்னே செல்","forewent","foregone","foregoing"]
[null,"foresee","foresee  முன்னறி, முன்னரே காண்","foresaw","foreseen","foreseeing"]
[null,"foretell","foretell  முன்கூட்டியே சொல்","foretold","foretold","foretelling"]
[null,"forget","forget  மறந்து போ, புறக்கணி","forgot","fotgotten","forgetting"]
[null,"forgive","forgive  மன்னித்து விடு, குறை கூறு","forgave","forgiven","forgiving"]
[null,"forsake","forsake  கைவிடு, துற, உதவி மறு","forsook","forsaken","forsaking"]
[null,"forswear","forswear  பொய் சத்தியம் செய்","forswore","forsworm","forswearing"]
[null,"freeze","freeze  உருகு, பனிக்கட்டியாக","froze","forzen","freezing"]
[null,"gainsay","gainsay  மறுத்துப் பேசு, மறு","gainsaid","gainsaid","gainsaying"]
[null,"get","get  பெறு, ஆகு, செய்வி, சேர், அடை","got","got / gotten","getting"]
[null,"give","give  கொடு, விலை கொடு, ஈனு","gave","given","giving"]
[null,"go","go  செல், போ, நட, ஆகு, இற, இயங்கு","went","gone","going"]
[null,"grind","grind  மாவு அரை, வருத்து","ground","ground","grinding"]
[null,"grow","grow  கோபத்தில் உறுமு","grew","grown","growing"]
[null,"hagride","hagride  கவலை, வறுமையில்","hagrode","hagridden","hagriding"]
[null,"hang","hang  தூக்கிலிடு","hung","hung","hanging"]
[null,"has","has  வைத்திரு","had","had","having"]
[null,"have","have  வைத்திரு","had","had","having"]
[null,"hear","hear  காதால் கேள், அறியப்பெறு","heard","heard","hearing"]
[null,"hide","hide  மறை, ஒளித்து வை","hid","hidden","hiding"]
[null,"hit","hit  அடி, இடி, மோது, இலாபமடை","hit","hit","hitting"]
[null,"hold","hold  கையில் பிடி, தழுவு, நம்பு","held","held","holding"]
[null,"hurt","hurt  புண்படுத்து, துன்புறுத்து","hurt","hurt","hurting"]
[null,"inlay","inlay  பதித்து வை","inlaid","inlaid","inlaying"]
[null,"interweave","interweave  இணைத்து நெசவு செய்","interwove","interwoven","interweaving"]
[null,"keep","keep  பேணு, ஈடேற்று , நிறைவேற்று, வை, வைத்திரு","kept","kept","keeping"]
[null,"kneel","kneel  மண்டியிடு, வணங்கு","knelt","knelt","kneeling"]
[null,"know","know  அறி, தெரிந்துகோள்","knew","knew","knowing"]
[null,"lay","lay  இடு, தயார் செய், படுக்க வை","laid","laid","laying"]
[null,"lean","lean  ஒருபுறமாக சாய்","leaned / leant","leaned / leant","leaning"]
[null,"leap","leap  குதி, பாய், தாண்டு, துள்ளு","leaped / leapt","leaped / leapt","leaping"]
[null,"learn","learn  கற்றுகொள், அறிந்துகொள்","learned / learnt","learned / learnt","learning"]
[null,"leave","leave  விட்டுச்செல், விட்டுவிடு","left","left","leaving"]
[null,"lend","lend  கடன் கொடு, இரவல் கொடு","lent","lent","lending"]
[null,"let","let  வாடகை வீடு, விடு, போகவிடு, வாடகைக்கு விடு","let","let","letting"]
[null,"lie","lie  பொய், புளுகு, படு, கிட, இரு, அசையாதிரு","lied / lay","lied / lain","liying"]
[null,"light","light  விளக்கு, தீ","lighted / lit","lighted / lit","lighting"]
[null,"lose","lose  இழ, தோல்வியடை, நஷ்டமடை","lost","lost","losing"]
[null,"make","make  உருவாக்கு, செய், ஈட்டு","made","made","making"]
[null,"mean","mean  பொருள்படு, நினை, கருது","meant","meant","meaning"]
[null,"meet","meet  சந்தித்தல், எதிர்ப்படு","met","met","meeting"]
[null,"misdeal","misdeal  பங்கீடு செய்வதில் தவறு செய்","misdealt","misdealt","misdealing"]
[null,"misgive","misgive  ஐயமூட்டு","misgave","misgiven","misgiving"]
[null,"misspend","misspend  தவறாக செலவு செய்","misspent","misspent","misspending"]
[null,"mistake","mistake  தவறு, தவறுதல்","mistook","mistaken","mistaking"]
[null,"misunderstand","misunderstand  தவறாக புரிந்து கொள்ளுதல்","misunderstood","misunderstood","misunderstanding"]
[null,"out","out run  அதிகமாக ஓடு","out ran","out run","out running"]
[null,"out","out sell  அதிகமாக செலவிடு","out sold","out sold","outselling"]
[null,"out","out shine  அதிகமாக பிரகாசி","out shone","out shone","out shining"]
[null,"outbid","outbid  ஏலத்தில் அதிக தொகைக்கு கூறு","outbid","outbid","outbidding"]
[null,"outgo","outgo  விஞ்சு","outgrew","outgrown","outgrowing"]
[null,"over","over bear  அதிகமாக ஈனு","over bore","over bome","overbearing"]
[null,"over","over come  தோல்வியுறச் செய்","overcame","overcome","overcoming"]
[null,"over","over lay  அதிகமான மேற்பரப்பு","overlaid","overlaid","overlaying"]
[null,"over","over run  எல்லையை மீறிச் செல்","over ran","over run","over running"]
[null,"over","over see  மேற்பார்வையிடு","over saw","over seen","over seeing"]
[null,"over","over shoo  எல்லையை மீறிச்சுடு","over slept","over slept","over sleeping"]
[null,"overcast","overcast  இருளாக்கு","overcast","overcast","overcasting"]
[null,"overdo","overdo  அளவுக்கு மேல் செய்","overdid","overdone","overdoing"]
[null,"overdrew","overdrew  அதிகமாக எடு","overdrew","overdrawn","overdrawing"]
[null,"overhang","overhang  மேலே தொங்கிக்கொண்டிரு","overhung","overhung","overhunging"]
[null,"overpay","overpay  அதிகமாக பணம் செலுத்து","overpaid","overpaid","over paying"]
[null,"override","override  படையெடு","overrode","overridden","over riding"]
[null,"oversee","oversee  கவனி, கண்காணி","oversaw","overseen","overseeing"]
[null,"overthrow","overthrow  கீழே தள்ளு, தோற்கடி","overthrew","overthrown","overthrowing"]
[null,"partake","partake  பங்கெடுத்துக்கொள்","partook","partaken","partaking"]
[null,"pay","pay  கூலி, விலை கொடு,","paid","paid","paying"]
[null,"put","put  இடத்தில், அமர்த்து","put","put","putting"]
[null,"read","read  வாசி, படி, கல்வி கல்","read","read","reading"]
[null,"rebuild","rebuild  திரும்பக்கட்டு","rebuilt","rebuilt","rebuilding"]
[null,"rend","rend  கிழி, பிள, தகர்த்தெறி","rent","rent","rending"]
[null,"repay","repay  திருப்பிக் கொடு, ஈடு செய்","repaid","repaid","repaying"]
[null,"retake","retake  மீண்டும் படம் எடு","retook","retaken","retaking"]
[null,"rethink","rethink  மீண்டும் நினை","rethought","rethought","rethinking"]
[null,"rewind","rewind  மீண்டும் முன்னோக்கி செல்","rewound","rewound","rewinding"]
[null,"rewrite","rewrite  திரும்பவும் எழுது","rewrote","rewritten","rewriting"]
[null,"ride","ride  சவாரி ,ஒட்டு, தவிழ்ந்து மித","rode","ridden","riding"]
[null,"ring","ring  மணியோசை, மோதிரம்","rang","rung","ringing"]
[null,"rise","rise  எழுந்திரு, உயர், தோன்று, துள்ளு,","rose","risen","rising"]
[null,"run","run  ஓடு, திரவம் பாய், நடத்து, கல","ran","run","running"]
[null,"say","say  சொல், கூறு, இயம்பு, தெரிவி","said","said","saying"]
[null,"see","see  பார், தெரிந்து கொள், கவனி","saw","seen","seeing"]
[null,"seek","seek  தேடு, அடைய முயலு","sought","sought","seeking"]
[null,"sell","sell  விற்பனை செய், விலையாகு","sold","sold","selling"]
[null,"send","send  அனுப்பு, செல்லச்செய், எறி","sent","sent","sending"]
[null,"set","set  வை, நிர்ணயி, அமை","set","set","setting"]
[null,"shake","shake  குலுக்கு, ஆட்டு, நடுங்கு,","shook","shaken","shaking"]
[null,"shear","shear  கத்தரி","shorn","shorn","shoing"]
[null,"shoe","shoe  இலாடம் பொருத்து, பூண் இடு","shod","shod","shoeing"]
[null,"shoot","shoot  துப்பாக்கியால் சுடு, அம்பு எய், புகைப்படம் எடு","shot","shot","shooting"]
[null,"shrink","shrink  சுருங்கு, சுருக்கு, பின்னிடு","shrank","shrunk","shrinking"]
[null,"shrive","shrive  பாவங்களிலிருந்து விடுவி","shrove","shriven","shriving"]
[null,"shut","shut  மூடு, கதவு அடை, தாளிடு","shut","shut","shutting"]
[null,"sing","sing  பாடு, கவி, புகழ் பாடு","sang","sung","singing"]
[null,"sink","sink  அமிழ்த்து, மூழ்கு","sank","sunk","sinking"]
[null,"sit","sit  உட்கார்,","sat","sat","sitting"]
[null,"slay","slay  கொல்லு, வேட்டையாடி அழி","slew","slain","slaying"]
[null,"sleep","sleep  தூங்கு, செயலற்றிரு","slept","slept","sleeping"]
[null,"slide","slide  வழுக்கிச் செல், சறுக்கு","slid","slid","sliding"]
[null,"slit","slit  சிறு வெடிப்புச் செய்","slit","slit","slitting"]
[null,"smell","smell  வாசனை பார், மணம் கொண்டிரு","smelled / smelt","smelled / smelt","smelling"]
[null,"smite","smite  பலமாக அடி, தாக்கு, வீழ்த்து","smote","smitten","smiting"]
[null,"speak","speak  பேசு, சொற்பொழிவு ஆற்று","spoke","spoken","speaking"]
[null,"spell","spell  எழுத்துக் கூட்டு, விளைவாகு","spelled / spelt","spelled / spelt","spelling"]
[null,"spend","spend  செலவு செய், உபயோகி","spent","spent","spending"]
[null,"spill","spill  சிந்து, வீணாக்கு, வழிந்தோடு","spilled / spilt","spilled / spilt","spilling"]
[null,"spin","spin  நீர் சிதறச் செய், வாரி இறை","span","spun","spining"]
[null,"spit","spit  நெடுக்காகப் பிள, பிரி, வகு","spat / spit","spat / spit","spitting"]
[null,"split","split  பிள, பிரி","split","split","splitting"]
[null,"spoil","spoil  கெடு, பாழாக்கு,","spoiled / spoilt","spoiled / spoilt","spoiling"]
[null,"spring","spring  துள்ளு, பாய்ந்து செல்","sprang","sprung","springing"]
[null,"stand","stand  நில், உறுதியாய் இரு, நிமிர்த்து வை","stood","stood","standing"]
[null,"steal","steal  திருடு, ஓசையின்றிச்செல்","stole","stolen","stealing"]
[null,"stick","stick  ஒட்டு, ஒட்டிக்கொள், துருத்தி நில்","stuck","stuck","sticking"]
[null,"sting","sting  கொடுக்கினால் கொட்டு,","stung","stung","stinging"]
[null,"stink","stink  கெட்ட நாற்றம் வீசு","stuck","stuck","sticking"]
[null,"strew","strew  சிதறு,தூவு","strow","strewn","strewing"]
[null,"stride","stride  நீண்டு நட","strode","stridden","striding"]
[null,"strike","strike  அடி, மோது, வேலை நிறுத்தம் செய், மணியடி, விளக்கேற்று","struck","struck","striking"]
[null,"string","string  ஒட்டு","strung","strung","stringing"]
[null,"strive","strive  கடுமையாக முயற்சி செய்","strove","striven","striving"]
[null,"swear","swear  பிரயாணம் செய், உறுதி செய்","swore","sworn","swearing"]
[null,"sweep","sweep  துடைப்பத்தால் பெருக்கு, அடித்து செல், சுற்றி நோக்கு","swept","swept","sweeping"]
[null,"swim","swim  நீந்து, தலை சுற்றப்பெறு","swam","sum","swimming"]
[null,"swing","swing  ஊஞ்சலாடு","swung","swung","swinging"]
[null,"take","take  எடு, அகற்று, தேர்ந்தெடு","took","taken","taking"]
[null,"teach","teach  கற்பி, உபதேசி, பழக்கு","taught","taught","teaching"]
[null,"tear","tear  கிழி, பிளவு, பிடித்திழு, கண்ணீர்","tore","torn","tearing"]
[null,"tell","tell  சொல், அறிவி, விவரி, உறுதியளி","told","told","telling"]
[null,"think","think  நினை, கருது, ஆலோசனை செய்","thought","thought","thinking"]
[null,"throw","throw  எறி, வீழ்த்து, வீசு","threw","thrown","throwing"]
[null,"tread","tread  அடியிட்டு நட, காலால் மிதி","trod","trodden","treading"]
[null,"typewrite","typewrite  தட்டச்சுப்பொறியில் அச்சடி","typewrote","typewritten","typewriting"]
[null,"undergo","undergo  அனுபவி, தாங்கு","underwent","undergone","undergoing"]
[null,"undersell","undersell  குறைந்தவிலைக்கு விற்பனை செய்","undersold","undersold","underselling"]
[null,"undershoot","undershoot  நிலப்பரப்போடு சுடு","undershot","undershot","undershooting"]
[null,"understand","understand  தெரிந்து கொள், விஷயம் அறி, கேள்விப்படு","understood","understood","understanding"]
[null,"undertake","undertake  செய்ய மேற்கொள்","undertook","undertaken","undertaking"]
[null,"underwrite","underwrite  வரன்முறையை ஒத்துக்கொள்","underwrote","underwritten","underwriting"]
[null,"undo","undo  அவிழ், பாழாக்கு, பிதிர்விடுவி","undid","undone","undoing"]
[null,"unsay","unsay  சொன்னதை திரும்பப்பெறு","unsaid","unsaid","unsaying"]
[null,"unspeak","unspeak  சொன்னதை திரும்ப பேசு","unspoke","unspoken","unspeaking"]
[null,"unwind","unwind  கற்றைப்பிரி","unwound","unwound","unwinding"]
[null,"uphold","uphold  ஆதரி, காப்பாற்று","upheld","upheld","upholding"]
[null,"upset","upset  தலைகீழாக்கு, நிலை குலையச்செய், மன அமைதி கெடு","upset","upset","upsetting"]
[null,"waylay","waylay  ஒளிந்துதாக்கு","waylaid","waylaid","waylaying"]
[null,"wear","wear  அணி , உடு , தாங்கு , உபயோகி","wore","worn","wearing"]
[null,"weave","weave  நெசவு நெய் , வலை பின்னு","wove","woven","weaving"]
[null,"weep","weep  அழு, கண்ணீர் விடு , புலம்பு","wept","wept","weeping"]
[null,"wet","wet  ஈரமாக்கு , நனை","wetted / wet","wetted / wet","wetting"]
[null,"whip","whip  கசையால் அடி","whipped / whipt","whipped / whipt","whipping"]
[null,"win","win  முயன்று பெறு , வெற்றியடை","won","won","winning"]
[null,"wind","wind  சுற்று , வளைந்து","wound","wound","winding"]
[null,"withdraw","withdraw  பின்வாங்கு, திரும்ப எடு","withdrew","withdrawn","withdrawing"]
[null,"withhold","withhold  தொடாமல் வைத்துக் கொள், தடுத்து நிறுத்து","withheld","withheld","withholding"]
[null,"withstand","withstand  எதிர்த்து நில், தடை செய்","withstood","withstood","withstanding"]
[null,"wring","wring  அழுத்திப் பிழி, கை பிசை","wrung","wrung","wringing"]
[null,"write","write  எழுது, நூல் எழுது, பதியச் செய்","wrote","written","writing"]

{"sheet":"Sheet1","index":2,"n_rows":1010,"n_cols":7,"rows_kept":1010,"cut":false,"hidden":false,"merged":[]}
[]
[null,"S.No.","Base Form","Past Form","Past Participle Form","s / es/ ies","‘ing’ form"]
[]
[]
[]
[]
[]
[]
[]
[]
[null,1,"abash","abashed","abashed","abashes","abashing"]
[null,2,"abate","abated","abated","abates","abating"]
[null,3,"abide","abode","abode","abides","abiding"]
[null,4,"absorb","absorbed","absorbed","absorbs","absorbing"]
[null,5,"accept","accepted","accepted","accepts","accepting"]
[null,6,"accompany","accompanied","accompanied","accompanies","accompanying"]
[null,7,"ache","ached","ached","aches","aching"]
[null,8,"achieve","achieved","achieved","achieves","achieving"]
[null,9,"acquire","acquired","acquired","acquires","acquiring"]
[null,10,"act","acted","acted","acts","acting"]
[null,11,"add","added","added","adds","adding"]
[null,12,"address","addressed","addressed","addresses","addressing"]
[null,13,"adjust","adjusted","adjusted","adjusts","adjusting"]
[null,14,"admire","admired","admired","admires","admiring"]
[null,15,"admit","admitted","admitted","admits","admitting"]
[null,16,"advise","advised","advised","advises","advising"]
[null,17,"afford","afforded","afforded","affords","affording"]
[null,18,"agree","agreed","agreed","agrees","agreeing"]
[null,19,"alight","alit","alit","alights","alighting"]
[null,20,"allow","allowed","allowed","allows","allowing"]
[null,21,"animate","animated","animated","animates","animating"]
[null,22,"announce","announced","announced","announces","announcing"]
[null,23,"answer","answered","answered","answers","answering"]
[null,24,"apologize","apologized","apologized","apologizes","apologizing"]
[null,25,"appear","appeared","appeared","appears","appearing"]
[null,26,"applaud","applauded","applauded","applauds","applauding"]
[null,27,"apply","applied","applied","applies","applying"]
[null,28,"approach","approached","approached","approaches","approaching"]
[null,29,"approve","approved","approved","approves","approving"]
[null,30,"argue","argued","argued","argues","arguing"]
[null,31,"arise","arose","arisen","arises","arising"]
[null,32,"arrange","arranged","arranged","arranges","arranging"]
[null,33,"arrest","arrested","arrested","arrests","arresting"]
[null,34,"ask","asked","asked","asks","asking"]
[null,35,"assert","asserted","asserted","asserts","asserting"]
[null,36,"assort","assorted","assorted","assorts","assorting"]
[null,37,"astonish","astonished","astonished","astonishes","astonishing"]
[null,38,"attack","attacked","attacked","attacks","attacking"]
[null,39,"attend","attended","attended","attends","attending"]
[null,40,"attract","attracted","attracted","attracts","attracting"]
[null,41,"audit","audited","audited","audits","auditing"]
[null,42,"avoid","avoided","avoided","avoids","avoiding"]
[null,43,"awake","awoke","awoken","awakes","awaking"]
[null,44,"bang","banged","banged","bangs","banging"]
[null,45,"banish","banished","banished","banishes","banishing"]
[null,46,"bash","bashed","bashed","bashes","bashing"]
[null,47,"bat","batted","batted","bats","batting"]
[null,48,"be (am,are)","was / were","been","is","being"]
[null,49,"bear","bore","born","bears","bearing"]
[null,50,"bear","bore","borne","bears","bearing"]
[null,51,"beat","beat","beaten","beats","beating"]
[null,52,"beautify","beautified","beautified","beautifies","beautifying"]
[null,53,"become","became","become","becomes","becoming"]
[null,54,"befall","befell","befallen","befalls","befalling"]
[null,55,"beg","begged","begged","begs","begging"]
[null,56,"begin","began","begun","begins","beginning"]
[null,57,"behave","behaved","behaved","behaves","behaving"]
[null,58,"behold","beheld","beheld","beholds","beholding"]
[null,59,"believe","believed","believed","believes","believing"]
[null,60,"belong","belonged","belonged","belongs","belonging"]
[null,61,"bend","bent","bent","bends","bending"]
[null,62,"bereave","bereft","bereft","bereaves","bereaving"]
[null,63,"beseech","besought","besought","beseeches","beseeching"]
[null,64,"bet","bet","bet","bets","betting"]
[null,65,"betray","betrayed","betrayed","betrays","betraying"]
[null,66,"bid","bade","bidden","bids","bidding"]
[null,67,"bid","bid","bid","bids","bidding"]
[null,68,"bind","bound","bound","binds","binding"]
[null,69,"bite","bit","bitten","bites","biting"]
[null,70,"bleed","bled","bled","bleeds","bleeding"]
[null,71,"bless","blessed","blessed","blesses","blessing"]
[null,72,"blossom","blossomed","blossomed","blossoms","blossoming"]
[null,73,"blow","blew","blown","blows","blowing"]
[null,74,"blur","blurred","blurred","blurs","blurring"]
[null,75,"blush","blushed","blushed","blushes","blushing"]
[null,76,"board","boarded","boarded","boards","boarding"]
[null,77,"boast","boasted","boasted","boasts","boasting"]
[null,78,"boil","boiled","boiled","boils","boiling"]
[null,79,"bow","bowed","bowed","bows","bowing"]
[null,80,"box","boxed","boxed","boxes","boxing"]
[null,81,"bray","brayed","brayed","brays","braying"]
[null,82,"break","broke","broken","breaks","breaking"]
[null,83,"breathe","breathed","breathed","breathes","breathing"]
[null,84,"breed","bred","bred","breeds","breeding"]
[null,85,"bring","brought","brought","brings","bringing"]
[null,86,"broadcast","broadcast","broadcast","broadcasts","broadcasting"]
[null,87,"brush","brushed","brushed","brushes","brushing"]
[null,88,"build","built","built","builds","building"]
[null,89,"burn","burnt","burnt","burns","burning"]
[null,90,"burst","burst","burst","bursts","bursting"]
[null,91,"bury","buried","buried","buries","burying"]
[null,92,"bust","bust","bust","busts","busting"]
[null,93,"buy","bought","bought","buys","buying"]
[null,94,"buzz","buzzed","buzzed","buzzes","buzzing"]
[null,95,"calculate","calculated","calculated","calculates","calculating"]
[null,96,"call","called","called","calls","calling"]
[null,97,"canvass","canvassed","canvassed","canvasses","canvassing"]
[null,98,"capture","captured","captured","captures","capturing"]
[null,99,"caress","caressed","caressed","caresses","caressing"]
[null,100,"carry","carried","carried","carries","carrying"]
[null,101,"carve","carved","carved","carves","carving"]
[null,102,"cash","cashed","cashed","cashes","cashing"]
[null,103,"cast","cast","cast","casts","casting"]
[null,104,"catch","caught","caught","catches","catching"]
[null,105,"cause","caused","caused","causes","causing"]
[null,106,"cease","ceased","ceased","ceases","ceasing"]
[null,107,"celebrate","celebrated","celebrated","celebrates","celebrating"]
[null,108,"challenge","challenged","challenged","challenges","challenging"]
[null,109,"change","changed","changed","changes","changing"]
[null,110,"charge","charged","charged","charges","charging"]
[null,111,"chase","chased","chased","chases","chasing"]
[null,112,"chat","chatted","chatted","chats","chatting"]
[null,113,"check","checked","checked","checks","checking"]
[null,114,"cheer","cheered","cheered","cheers","cheering"]
[null,115,"chew","chewed","chewed","chews","chewing"]
[null,116,"chide","chid","chid/chidden","chides","chiding"]
[null,117,"chip","chipped","chipped","chips","chipping"]
[null,118,"choke","choked","choked","chokes","choking"]
[null,119,"choose","chose","chosen","chooses","choosing"]
[null,120,"classify","classified","classified","classifies","classifying"]
[null,121,"clean","cleaned","cleaned","cleans","cleaning"]
[null,122,"cleave","clove/cleft","cloven/cleft","cleaves","cleaving"]
[null,123,"click","clicked","clicked","clicks","clicking"]
[null,124,"climb","climbed","climbed","climbs","climbing"]
[null,125,"cling","clung","clung","clings","clinging"]
[null,126,"close","closed","closed","closes","closing"]
[null,127,"clothe","clad","clad","clothes","clothing"]
[null,128,"clutch","clutched","clutched","clutches","clutching"]
[null,129,"collapse","collapsed","collapsed","collapses","collapsing"]
[null,130,"collect","collected","collected","collects","collecting"]
[null,131,"colour","coloured","coloured","colours","colouring"]
[null,132,"come","came","come","comes","coming"]
[null,133,"comment","commented","commented","comments","commenting"]
[null,134,"compare","compared","compared","compares","comparing"]
[null,135,"compel","compelled","compelled","compels","compelling"]
[null,136,"compete","competed","competed","competes","competing"]
[null,137,"complain","complained","complained","complains","complaining"]
[null,138,"complete","completed","completed","completes","completing"]
[null,139,"conclude","concluded","concluded","concludes","concluding"]
[null,140,"conduct","conducted","conducted","conducts","conducting"]
[null,141,"confess","confessed","confessed","confesses","confessing"]
[null,142,"confine","confined","confined","confines","confining"]
[null,143,"confiscate","confiscated","confiscated","confiscates","confiscating"]
[null,144,"confuse","confused","confused","confuses","confusing"]
[null,145,"congratulate","congratulated","congratulated","congratulates","congratulating"]
[null,146,"connect","connected","connected","connects","connecting"]
[null,147,"connote","connoted","connoted","connotes","connoting"]
[null,148,"conquer","conquered","conquered","conquers","conquering"]
[null,149,"consecrate","consecrated","consecrated","consecrates","consecrating"]
[null,150,"consent","consented","consented","consents","consenting"]
[null,151,"conserve","conserved","conserved","conserves","conserving"]
[null,152,"consider","considered","considered","considers","considering"]
[null,153,"consign","consigned","consigned","consigns","consigning"]
[null,154,"consist","consisted","consisted","consists","consisting"]
[null,155,"console","consoled","consoled","consoles","consoling"]
[null,156,"consort","consorted","consorted","consorts","consorting"]
[null,157,"conspire","conspired","conspired","conspires","conspiring"]
[null,158,"constitute","constituted","constituted","constitutes","constituting"]
[null,159,"constrain","constrained","constrained","constrains","constraining"]
[null,160,"construct","constructed","constructed","constructs","constructing"]
[null,161,"construe","construed","construed","construes","construing"]
[null,162,"consult","consulted","consulted","consults","consulting"]
[null,163,"contain","contained","contained","contains","containing"]
[null,164,"contemn","contemned","contemned","contemns","contemning"]
[null,165,"contend","contended","contended","contends","contending"]
[null,166,"contest","contested","contested","contests","contesting"]
[null,167,"continue","continued","continued","continues","continuing"]
[null,168,"contract","contracted","contracted","contracts","contracting"]
[null,169,"contradict","contradicted","contradicted","contradicts","contradicting"]
[null,170,"contrast","contrasted","contrasted","contrasts","contrasting"]
[null,171,"contribute","contributed","contributed","contributes","contributing"]
[null,172,"contrive","contrived","contrived","contrives","contriving"]
[null,173,"control","controlled","controlled","controls","controlling"]
[null,174,"convene","convened","convened","convenes","convening"]
[null,175,"converge","converged","converged","converges","converging"]
[null,176,"converse","conversed","conversed","converses","conversing"]
[null,177,"convert","converted","converted","converts","converting"]
[null,178,"convey","conveyed","conveyed","conveys","conveying"]
[null,179,"convict","convicted","convicted","convicts","convicting"]
[null,180,"convince","convinced","convinced","convinces","convincing"]
[null,181,"coo","cooed","cooed","coos","cooing"]
[null,182,"cook","cooked","cooked","cooks","cooking"]
[null,183,"cool","cooled","cooled","cools","cooling"]
[null,184,"co-operate","co-operated","co-operated","co-operates","co-operating"]
[null,185,"cope","coped","cope","copes","coping"]
[null,186,"copy","copied","copied","copies","copying"]
[null,187,"correct","corrected","corrected","corrects","correcting"]
[null,188,"correspond","corresponded","corresponded","corresponds","corresponding"]
[null,189,"corrode","corroded","corroded","corrodes","corroding"]
[null,190,"corrupt","corrupted","corrupted","corrupts","corrupting"]
[null,191,"cost","cost","cost","costs","costing"]
[null,192,"cough","coughed","coughed","coughs","coughing"]
[null,193,"counsel","counselled","counselled","counsels","counselling"]
[null,194,"count","counted","counted","counts","counting"]
[null,195,"course","coursed","coursed","courses","coursing"]
[null,196,"cover","covered","covered","covers","covering"]
[null,197,"cower","cowered","cowered","cowers","cowering"]
[null,198,"crack","cracked","cracked","cracks","cracking"]
[null,199,"crackle","crackled","crackled","crackles","crackling"]
[null,200,"crash","crashed","crashed","crashes","crashing"]
[null,201,"crave","craved","craved","craves","craving"]
[null,202,"create","created","created","creates","creating"]
[null,203,"creep","crept","crept","creeps","creeping"]
[null,204,"crib","cribbed","cribbed","cribs","cribbing"]
[null,205,"cross","crossed","crossed","crosses","crossing"]
[null,206,"crowd","crowded","crowded","crowds","crowding"]
[null,207,"crush","crushed","crushed","crushes","crushing"]
[null,208,"cry","cried","cried","cries","crying"]
[null,209,"curb","curbed","curbed","curbs","curbing"]
[null,210,"cure","cured","cured","cures","curing"]
[null,211,"curve","curved","curved","curves","curving"]
[null,212,"cut","cut","cut","cuts","cutting"]
[null,213,"cycle","cycled","cycled","cycles","cycling"]
[null,214,"damage","damaged","damaged","damages","damaging"]
[null,215,"damp","damped","damped","damps","damping"]
[null,216,"dance","danced","danced","dances","dancing"]
[null,217,"dare","dared","dared","dares","daring"]
[null,218,"dash","dashed","dashed","dashes","dashing"]
[null,219,"dazzle","dazzled","dazzled","dazzles","dazzling"]
[null,220,"deal","dealt","dealt","deals","dealing"]
[null,221,"decay","decayed","decayed","decays","decaying"]
[null,222,"decide","decided","decided","decides","deciding"]
[null,223,"declare","declared","declared","declares","declaring"]
[null,224,"decorate","decorated","decorated","decorates","decorating"]
[null,225,"decrease","decreased","decreased","decreases","decreasing"]
[null,226,"dedicate","dedicated","dedicated","dedicates","dedicating"]
[null,227,"delay","delayed","delayed","delays","delaying"]
[null,228,"delete","deleted","deleted","deletes","deleting"]
[null,229,"deny","denied","denied","denies","denying"]
[null,230,"depend","depended","depended","depends","depending"]
[null,231,"deprive","deprived","deprived","deprives","depriving"]
[null,232,"derive","derived","derived","derives","deriving"]
[null,233,"describe","described","described","describes","describing"]
[null,234,"desire","desired","desired","desires","desiring"]
[null,235,"destroy","destroyed","destroyed","destroys","destroying"]
[null,236,"detach","detached","detached","detaches","detaching"]
[null,237,"detect","detected","detected","detects","detecting"]
[null,238,"determine","determined","determined","determines","determining"]
[null,239,"develop","developed","developed","develops","developing"]
[null,240,"die","died","died","dies","dying"]
[null,241,"differ","differed","differed","differs","differing"]
[null,242,"dig","dug","dug","digs","digging"]
[null,243,"digest","digested","digested","digests","digesting"]
[null,244,"dim","dimmed","dimmed","dims","dimming"]
[null,245,"diminish","diminished","diminished","diminishes","diminishing"]
[null,246,"dine","dined","dined","dines","dining"]
[null,247,"dip","dipped","dipped","dips","dipping"]
[null,248,"direct","directed","directed","directs","directing"]
[null,249,"disappear","disappeared","disappeared","disappears","disappearing"]
[null,250,"discover","discovered","discovered","discovers","discovering"]
[null,251,"discuss","discussed","discussed","discusses","discussing"]
[null,252,"disobey","disobeyed","disobeyed","disobeys","disobeying"]
[null,253,"display","displayed","displayed","displays","displaying"]
[null,254,"dispose","disposed","disposed","disposes","disposing"]
[null,255,"distribute","distributed","distributed","distributes","distributing"]
[null,256,"disturb","disturbed","disturbed","disturbs","disturbing"]
[null,257,"disuse","disused","disused","disuses","disusing"]
[null,258,"dive","dived ","dived","dives","diving"]
[null,259,"divide","divided","divided","divides","dividing"]
[null,260,"do","did","done","does","doing"]
[null,261,"donate","donated","donated","donates","donating"]
[null,262,"download","downloaded","downloaded","downloads","downloading"]
[null,263,"drag","dragged","dragged","drags","dragging"]
[null,264,"draw","drew","drawn","draws","drawing"]
[null,265,"dream","dreamt","dreamt","dreams","dreaming"]
[null,266,"dress","dressed","dressed","dresses","dressing"]
[null,267,"drill","drilled","drilled","drills","drilling"]
[null,268,"drink","drank","drunk","drinks","drinking"]
[null,269,"drive","drove","driven","drives","driving"]
[null,270,"drop","dropped","dropped","drops","dropping"]
[null,271,"dry","dried","dried","dries","drying"]
[null,272,"dump","dumped","dumped","dumps","dumping"]
[null,273,"dwell","dwelt","dwelt","dwells","dwelling"]
[null,274,"dye","dyed","dyed","dyes","dyeing"]
[null,275,"earn","earned","earned","earns","earning"]
[null,276,"eat","ate","eaten","eats","eating"]
[null,277,"educate","educated","educated","educates","educating"]
[null,278,"empower","empowered","empowered","empowers","empowering"]
[null,279,"empty","emptied","emptied","empties","emptying"]
[null,280,"encircle","encircled","encircled","encircles","encircling"]
[null,281,"encourage","encouraged","encouraged","encourages","encouraging"]
[null,282,"encroach","encroached","encroached","encroaches","encroaching"]
[null,283,"endanger","endangered","endangered","endangers","entangling"]
[null,284,"endorse","endorsed","endorsed","endorses","endorsing"]
[null,285,"endure","endured","endured","endures","enduring"]
[null,286,"engrave","engraved","engraved","engraves","engraving"]
[null,287,"enjoy","enjoyed","enjoyed","enjoys","enjoying"]
[null,288,"enlarge","enlarged","enlarged","enlarges","enlarging"]
[null,289,"enlighten","enlightened","enlightened","enlightens","enlightening"]
[null,290,"enter","entered","entered","enters","entering"]
[null,291,"envy","envied","envied","envies","envying"]
[null,292,"erase","erased","erased","erases","erasing"]
[null,293,"escape","escaped","escaped","escapes","escaping"]
[null,294,"evaporate","evaporated","evaporated","evaporates","evaporating"]
[null,295,"exchange","exchanged","exchanged","exchanges","exchanging"]
[null,296,"exclaim","exclaimed","exclaimed","exclaims","exclaiming"]
[null,297,"exclude","excluded","excluded","excludes","excluding"]
[null,298,"exist","existed","existed","exists","existing"]
[null,299,"expand","expanded","expanded","expands","expanding"]
[null,300,"expect","expected","expected","expects","expecting"]
[null,301,"explain","explained","explained","explains","explaining"]
[null,302,"explore","explored","explored","explores","exploring"]
[null,303,"express","expressed","expressed","expresses","expressing"]
[null,304,"extend","extended","extended","extends","extending"]
[null,305,"eye","eyed","eyed","eyes","eyeing"]
[null,306,"face","faced","faced","faces","facing"]
[null,307,"fail","failed","failed","fails","failing"]
[null,308,"faint","fainted","fainted","faints","fainting"]
[null,309,"fall","fell","fallen","falls","falling"]
[null,310,"fan","fanned","fanned","fans","fanning"]
[null,311,"fancy","fancied","fancied","fancies","fancying"]
[null,312,"favour","favoured","favoured","favours","favouring"]
[null,313,"fax","faxed","faxed","faxes","faxing"]
[null,314,"feed","fed","fed","feeds","feeding"]
[null,315,"feel","felt","felt","feels","feeling"]
[null,316,"ferry","ferried","ferried","ferries","ferrying"]
[null,317,"fetch","fetched","fetched","fetches","fetching"]
[null,318,"fight","fought","fought","fights","fighting"]
[null,319,"fill","filled","filled","fills","filling"]
[null,320,"find","found","found","finds","finding"]
[null,321,"finish","finished","finished","finishes","finishing"]
[null,322,"fish","fished","fished","fishes","fishing"]
[null,323,"fit","fit/fitted","fit/fitted","fits","fitting"]
[null,324,"fix","fixed","fixed","fixes","fixing"]
[null,325,"fizz","fizzed","fizzed","fizzes","fizzing"]
[null,326,"flap","flapped","flapped","flaps","flapping"]
[null,327,"flash","flashed","flashed","flashes","flashing"]
[null,328,"flee","fled","fled","flees","fleeing"]
[null,329,"fling","flung","flung","flings","flinging"]
[null,330,"float","floated","floated","floats","floating"]
[null,331,"flop","flopped","flopped","flops","flopping"]
[null,332,"fly","flew","flown","flies","flying"]
[null,333,"fold","folded","folded","folds","folding"]
[null,334,"follow","followed","followed","follows","following"]
[null,335,"forbid","forbade","forbidden","forbids","forbidding"]
[null,336,"force","forced","forced","forces","forcing"]
[null,337,"forecast","forecast","forecast","forecasts","forecasting"]
[null,338,"foretell","foretold","foretold","foretells","foretelling"]
[null,339,"forget","forgot","forgotten","forgets","forgetting"]
[null,340,"forgive","forgave","forgiven","forgives","forgiving"]
[null,341,"forlese","forlore","forlorn","forlese","forlesing"]
[null,342,"form","formed","formed","forms","forming"]
[null,343,"forsake","forsook","forsaken","forsakes","forsaking"]
[null,344,"found","founded","founded","founds","founding"]
[null,345,"frame","framed","framed","frames","framing"]
[null,346,"free","freed","freed","frees","freeing"]
[null,347,"freeze","froze","frozen","freezes","freezing"]
[null,348,"frighten","frightened","frightened","frightens","frightening"]
[null,349,"fry","fried","fried","fries","frying"]
[null,350,"fulfil","fulfilled","fulfilled","fulfils","fulfilling"]
[null,351,"gag","gagged","gagged","gags","gagging"]
[null,352,"gain","gained","gained","gains","gaining"]
[null,353,"gainsay","gainsaid","gainsaid","gainsays","gainsaying"]
[null,354,"gash","gashed","gashed","gashes","gashing"]
[null,355,"gaze","gazed","gazed","gazes","gazing"]
[null,356,"get","got","got","gets","getting"]
[null,357,"give","gave","given","gives","giving"]
[null,358,"glance","glanced","glanced","glances","glancing"]
[null,359,"glitter","glittered","glittered","glitters","glittering"]
[null,360,"glow","glowed","glowed","glows","glowing"]
[null,361,"go","went","gone","goes","going"]
[null,362,"google","googled","googled","googles","googling"]
[null,363,"govern","governed","governed","governs","governing"]
[null,364,"grab","grabbed","grabbed","grabs","grabbing"]
[null,365,"grade","graded","graded","grades","grading"]
[null,366,"grant","granted","granted","grants","granting"]
[null,367,"greet","greeted","greeted","greets","greeting"]
[null,368,"grind","ground","ground","grinds","grinding"]
[null,369,"grip","gripped","gripped","grips","gripping"]
[null,370,"grow","grew","grown","grows","growing"]
[null,371,"guard","guarded","guarded","guards","guarding"]
[null,372,"guess","guessed","guessed","guesses","guessing"]
[null,373,"guide","guided","guided","guides","guiding"]
[null,374,"handle","handled","handled","handles","handling"]
[null,375,"hang","hung","hung","hangs","hanging"]
[null,376,"happen","happened","happened","happens","happening"]
[null,377,"harm","harmed","harmed","harms","harming"]
[null,378,"hatch","hatched","hatched","hatches","hatching"]
[null,379,"hate","hated","hated","hates","hating"]
[null,380,"have","had","had","has","having"]
[null,381,"heal","healed","healed","heals","healing"]
[null,382,"hear","heard","heard","hears","hearing"]
[null,383,"heave","hove","hove","heaves","heaving"]
[null,384,"help","helped","helped","helps","helping"]
[null,385,"hew","hewed","hewn","hews","hewing"]
[null,386,"hide","hid","hidden","hides","hiding"]
[null,387,"hinder","hindered","hindered","hinders","hindering"]
[null,388,"hiss","hissed","hissed","hisses","hissing"]
[null,389,"hit","hit","hit","hits","hitting"]
[null,390,"hoax","hoaxed","hoaxed","hoaxes","hoaxing"]
[null,391,"hold","held","held","holds","holding"]
[null,392,"hop","hopped","hopped","hops","hopping"]
[null,393,"hope","hoped","hoped","hopes","hoping"]
[null,394,"horrify","horrified","horrified","horrifies","horrifying"]
[null,395,"hug","hugged","hugged","hugs","hugging"]
[null,396,"hum","hummed","hummed","hums","humming"]
[null,397,"humiliate","humiliated","humiliated","humiliates","humiliating"]
[null,398,"hunt","hunted","hunted","hunts","hunting"]
[null,399,"hurl","hurled","hurled","hurls","hurling"]
[null,400,"hurry","hurried","hurried","hurries","hurrying"]
[null,401,"hurt","hurt","hurt","hurts","hurting"]
[null,402,"hush","hushed","hushed","hushes","hushing"]
[null,403,"hustle","hustled","hustled","hustles","hustling"]
[null,404,"hypnotize","hypnotized","hypnotized","hypnotizes","hypnotizing"]
[null,405,"idealize","idealized","idealized","idealizes","idealizing"]
[null,406,"identify","identified","identified","identifies","identifying"]
[null,407,"idolize","idolized","idolized","idolizes","idolizing"]
[null,408,"ignite","ignited","ignited","ignites","igniting"]
[null,409,"ignore","ignored","ignored","ignores","ignoring"]
[null,410,"ill-treat","ill-treated","ill-treated","ill-treats","ill-treating"]
[null,411,"illuminate","illuminated","illuminated","illuminates","illuminating"]
[null,412,"illumine","illumined","illumined","illumines","illumining"]
[null,413,"illustrate","illustrated","illustrated","illustrates","illustrating"]
[null,414,"imagine","imagined","imagined","imagines","imagining"]
[null,415,"imbibe","imbibed","imbibed","imbibes","imbibing"]
[null,416,"imitate","imitated","imitated","imitates","imitating"]
[null,417,"immerse","immersed","immersed","immerses","immersing"]
[null,418,"immolate","immolated","immolated","immolates","immolating"]
[null,419,"immure","immured","immured","immures","immuring"]
[null,420,"impair","impaired","impaired","impairs","impairing"]
[null,421,"impart","imparted","imparted","imparts","imparting"]
[null,422,"impeach","impeached","impeached","impeaches","impeaching"]
[null,423,"impede","impeded","impeded","impedes","impeding"]
[null,424,"impel","impelled","impelled","impels","impelling"]
[null,425,"impend","impended","impended","impends","impending"]
[null,426,"imperil","imperilled","imperilled","imperils","imperilling"]
[null,427,"impinge","impinged","impinged","impinges","impinging"]
[null,428,"implant","implanted","implanted","implants","implanting"]
[null,429,"implicate","implicated","implicated","implicates","implicating"]
[null,430,"implode","imploded","imploded","implodes","imploding"]
[null,431,"implore","implored","implored","implores","imploring"]
[null,432,"imply","implied","implied","implies","implying"]
[null,433,"import","imported","imported","imports","importing"]
[null,434,"impose","imposed","imposed","imposes","imposing"]
[null,435,"impress","impressed","impressed","impresses","impressing"]
[null,436,"imprint","imprinted","imprinted","imprints","imprinting"]
[null,437,"imprison","imprisoned","imprisoned","imprisons","imprisoning"]
[null,438,"improve","improved","improved","improves","improving"]
[null,439,"inaugurate","inaugurated","inaugurated","inaugurates","inaugurating"]
[null,440,"incise","incised","incised","incises","incising"]
[null,441,"include","included","included","includes","including"]
[null,442,"increase","increased","increased","increases","increasing"]
[null,443,"inculcate","inculcated","inculcated","inculcates","inculcating"]
[null,444,"indent","indented","indented","indents","indenting"]
[null,445,"indicate","indicated","indicated","indicates","indicating"]
[null,446,"induce","induced","induced","induces","inducing"]
[null,447,"indulge","indulged","indulged","indulges","indulging"]
[null,448,"infect","infected","infected","infects","infecting"]
[null,449,"infest","infested","infested","infests","infesting"]
[null,450,"inflame","inflamed","inflamed","inflames","inflaming"]
[null,451,"inflate","inflated","inflated","inflates","inflating"]
[null,452,"inflect","inflected","inflected","inflects","inflecting"]
[null,453,"inform","informed","informed","informs","informing"]
[null,454,"infringe","infringed","infringed","infringes","infringing"]
[null,455,"infuse","infused","infused","infuses","infusing"]
[null,456,"ingest","ingested","ingested","ingests","ingesting"]
[null,457,"inhabit","inhabited","inhabited","inhabits","inhabiting"]
[null,458,"inhale","inhaled","inhaled","inhales","inhaling"]
[null,459,"inherit","inherited","inherited","inherits","inheriting"]
[null,460,"initiate","initiated","initiated","initiates","initiating"]
[null,461,"inject","injected","injected","injects","injecting"]
[null,462,"injure","injured","injured","injures","injuring"]
[null,463,"inlay","inlaid","inlaid","inlays","inlaying"]
[null,464,"innovate","innovated","innovated","innovates","innovating"]
[null,465,"input","input","input","inputs","inputting"]
[null,466,"inquire","inquired","inquired","inquires","inquiring"]
[null,467,"inscribe","inscribed","inscribed","inscribes","inscribing"]
[null,468,"insert","inserted","inserted","inserts","inserting"]
[null,469,"inspect","inspected","inspected","inspects","inspecting"]
[null,470,"inspire","inspired","inspired","inspires","inspiring"]
[null,471,"install","installed","installed","installs","installing"]
[null,472,"insult","insulted","insulted","insults","insulting"]
[null,473,"insure","insured","insured","insures","insuring"]
[null,474,"integrate","integrated","integrated","integrates","integrating"]
[null,475,"introduce","introduced","introduced","introduces","introducing"]
[null,476,"invent","invented","invented","invents","inventing"]
[null,477,"invite","invited","invited","invites","inviting"]
[null,478,"join","joined","joined","joins","joining"]
[null,479,"jump","jumped","jumped","jumps","jumping"]
[null,480,"justify","justified","justified","justifies","justifying"]
[null,481,"keep","kept","kept","keeps","keeping"]
[null,482,"kick","kicked","kicked","kicks","kicking"]
[null,483,"kid","kidded","kidded","kids","kidding"]
[null,484,"kill","killed","killed","kills","killing"]
[null,485,"kiss","kissed","kissed","kisses","kissing"]
[null,486,"kneel","knelt","knelt","kneels","kneeling"]
[null,487,"knit","knit","knit","knits","knitting"]
[null,488,"knock","knocked","knocked","knocks","knocking"]
[null,489,"know","knew","known","knows","knowing"]
[null,490,"lade","laded","laden","lades","lading"]
[null,491,"land","landed","landed","lands","landing"]
[null,492,"last","lasted","lasted","lasts","lasting"]
[null,493,"latch","latched","latched","latches","latching"]
[null,494,"laugh","laughed","laughed","laughs","laughing"]
[null,495,"lay","laid","laid","lays","laying"]
[null,496,"lead","led","led","leads","leading"]
[null,497,"leak","leaked","leaked","leaks","leaking"]
[null,498,"lean","leant","leant","leans","leaning"]
[null,499,"leap","leapt","leapt","leaps","leaping"]
[null,500,"learn","learnt","learnt","learns","learning"]
[null,501,"leave","left","left","leaves","leaving"]
[null,502,"leer","leered","leered","leers","leering"]
[null,503,"lend","lent","lent","lends","lending"]
[null,504,"let","let","let","lets","letting"]
[null,505,"lick","licked","licked","licks","licking"]
[null,506,"lie","lay","lain","lies","lying"]
[null,507,"lie","lied","lied","lies","lying"]
[null,508,"lift","lifted","lifted","lifts","lifting"]
[null,509,"light","lit","lit","lights","lighting"]
[null,510,"like","liked","liked","likes","liking"]
[null,511,"limp","limped","limped","limps","limping"]
[null,512,"listen","listened","listened","listens","listening"]
[null,513,"live","lived","lived","lives","living"]
[null,514,"look","looked","looked","looks","looking"]
[null,515,"lose","lost","lost","loses","losing"]
[null,516,"love","loved","loved","loves","loving"]
[null,517,"magnify","magnified","magnified","magnifies","magnifying"]
[null,518,"maintain","maintained","maintained","maintains","maintaining"]
[null,519,"make","made","made","makes","making"]
[null,520,"manage","managed","managed","manages","managing"]
[null,521,"march","marched","marched","marches","marching"]
[null,522,"mark","marked","marked","marks","marking"]
[null,523,"marry","married","married","marries","marrying"]
[null,524,"mash","mashed","mashed","mashes","mashing"]
[null,525,"match","matched","matched","matches","matching"]
[null,526,"matter","mattered","mattered","matters","mattering"]
[null,527,"mean","meant","meant","means","meaning"]
[null,528,"measure","measured","measured","measures","measuring"]
[null,529,"meet","met","met","meets","meeting"]
[null,530,"melt","melted","melted","melts","melting"]
[null,531,"merge","merged","merged","merges","merging"]
[null,532,"mew","mewed","mewed","mews","mewing"]
[null,533,"migrate","migrated","migrated","migrates","migrating"]
[null,534,"milk","milked","milked","milks","milking"]
[null,535,"mind","minded","minded","minds","minding"]
[null,536,"mislead","misled","misled","misleads","misleading"]
[null,537,"miss","missed","missed","misses","missing"]
[null,538,"mistake","mistook","mistaken","mistakes","mistaking"]
[null,539,"misuse","misused","misused","misuses","misusing"]
[null,540,"mix","mixed","mixed","mixes","mixing"]
[null,541,"moan","moaned","moaned","moans","moaning"]
[null,542,"modify","modified","modified","modifies","modifying"]
[null,543,"moo","mooed","mooed","moos","mooing"]
[null,544,"motivate","motivated","motivated","motivates","motivating"]
[null,545,"mould","moulded","moulded","moulds","moulding"]
[null,546,"moult","moulted","moulted","moults","moulting"]
[null,547,"move","moved","moved","moves","moving"]
[null,548,"mow","mowed","mown","mows","mowing"]
[null,549,"multiply","multiplied","multiplied","multiplies","multiplying"]
[null,550,"murmur","murmured","murmured","murmurs","murmuring"]
[null,551,"nail","nailed","nailed","nails","nailing"]
[null,552,"nap","napped","napped","naps","napping"]
[null,553,"need","needed","needed","needs","needing"]
[null,554,"neglect","neglected","neglected","neglects","neglecting"]
[null,555,"nip","nipped","nipped","nips","nipping"]
[null,556,"nod","nodded","nodded","nods","nodding"]
[null,557,"note","noted","noted","notes","noting"]
[null,558,"notice","noticed","noticed","notices","noticing"]
[null,559,"notify","notified","notified","notifies","notifying"]
[null,560,"nourish","nourished","nourished","nourishes","nourishing"]
[null,561,"nurse","nursed","nursed","nurses","nursing"]
[null,562,"obey","obeyed","obeyed","obeys","obeying"]
[null,563,"oblige","obliged","obliged","obliges","obliging"]
[null,564,"observe","observed","observed","observes","observing"]
[null,565,"obstruct","obstructed","obstructed","obstructs","obstructing"]
[null,566,"obtain","obtained","obtained","obtains","obtaining"]
[null,567,"occupy","occupied","occupied","occupies","occupying"]
[null,568,"occur","occurred","occurred","occurs","occurring"]
[null,569,"offer","offered","offered","offers","offering"]
[null,570,"offset","offset","offset","offsets","offsetting"]
[null,571,"omit","omitted","omitted","omits","omitting"]
[null,572,"ooze","oozed","oozed","oozes","oozing"]
[null,573,"open","opened","opened","opens","opening"]
[null,574,"operate","operated","operated","operates","operating"]
[null,575,"opine","opined","opined","opines","opining"]
[null,576,"oppress","oppressed","oppressed","oppresses","oppressing"]
[null,577,"opt","opted","opted","opts","opting"]
[null,578,"optimize","optimized","optimized","optimizes","optimizing"]
[null,579,"order","ordered","ordered","orders","ordering"]
[null,580,"organize","organized","organized","organizes","organizing"]
[null,581,"originate","originated","originated","originates","originating"]
[null,582,"output","output","output","outputs","outputting"]
[null,583,"overflow","overflowed","overflowed","overflows","overflowing"]
[null,584,"overtake","overtook","overtaken","overtakes","overtaking"]
[null,585,"owe","owed","owed","owes","owing"]
[null,586,"own","owned","owned","owns","owning"]
[null,587,"pacify","pacified","pacified","pacifies","pacifying"]
[null,588,"paint","painted","painted","paints","painting"]
[null,589,"pardon","pardoned","pardoned","pardons","pardoning"]
[null,590,"part","parted","parted","parts","parting"]
[null,591,"partake","partook","partaken","partakes","partaking"]
[null,592,"participate","participated","participated","participates","participating"]
[null,593,"pass","passed","passed","passes","passing"]
[null,594,"paste","pasted","pasted","pastes","pasting"]
[null,595,"pat","patted","patted","pats","patting"]
[null,596,"patch","patched","patched","patches","patching"]
[null,597,"pause","paused","paused","pauses","pausing"]
[null,598,"pay","paid","paid","pays","paying"]
[null,599,"peep","peeped","peeped","peeps","peeping"]
[null,600,"perish","perished","perished","perishes","perishing"]
[null,601,"permit","permitted","permitted","permits","permitting"]
[null,602,"persuade","persuaded","persuaded","persuades","persuading"]
[null,603,"phone","phoned","phoned","phones","phoning"]
[null,604,"place","placed","placed","places","placing"]
[null,605,"plan","planned","planned","plans","planning"]
[null,606,"play","played","played","plays","playing"]
[null,607,"plead","pled","pled","pleads","pleading"]
[null,608,"please","pleased","pleased","pleases","pleasing"]
[null,609,"plod","plodded","plodded","plods","plodding"]
[null,610,"plot","plotted","plotted","plots","plotting"]
[null,611,"pluck","plucked","plucked","plucks","plucking"]
[null,612,"ply","plied","plied","plies","plying"]
[null,613,"point","pointed","pointed","points","pointing"]
[null,614,"polish","polished","polished","polishes","polishing"]
[null,615,"pollute","polluted","polluted","pollutes","polluting"]
[null,616,"ponder","pondered","pondered","ponders","pondering"]
[null,617,"pour","poured","poured","pours","pouring"]
[null,618,"pout","pouted","pouted","pouts","pouting"]
[null,619,"practise","practised","practised","practises","practising"]
[null,620,"praise","praised","praised","praises","praising"]
[null,621,"pray","prayed","prayed","prays","praying"]
[null,622,"preach","preached","preached","preaches","preaching"]
[null,623,"prefer","preferred","preferred","prefers","preferring"]
[null,624,"prepare","prepared","prepared","prepares","preparing"]
[null,625,"prescribe","prescribed","prescribed","prescribes","prescribing"]
[null,626,"present","presented","presented","presents","presenting"]
[null,627,"preserve","preserved","preserved","preserves","preserving"]
[null,628,"preset","preset","preset","presets","presetting"]
[null,629,"preside","presided","presided","presides","presiding"]
[null,630,"press","pressed","pressed","presses","pressing"]
[null,631,"pretend","pretended","pretended","pretends","pretending"]
[null,632,"prevent","prevented","prevented","prevents","preventing"]
[null,633,"print","printed","printed","prints","printing"]
[null,634,"proceed","proceeded","proceeded","proceeds","proceeding"]
[null,635,"produce","produced","produced","produces","producing"]
[null,636,"progress","progressed","progressed","progresses","progressing"]
[null,637,"prohibit","prohibited","prohibited","prohibits","prohibiting"]
[null,638,"promise","promised","promised","promises","promising"]
[null,639,"propose","proposed","proposed","proposes","proposing"]
[null,640,"prosecute","prosecuted","prosecuted","prosecutes","prosecuting"]
[null,641,"protect","protected","protected","protects","protecting"]
[null,642,"prove","proved","proved","proves","proving"]
[null,643,"provide","provided","provided","provides","providing"]
[null,644,"pull","pulled","pulled","pulls","pulling"]
[null,645,"punish","punished","punished","punishes","punishing"]
[null,646,"purify","purified","purified","purifies","purifying"]
[null,647,"push","pushed","pushed","pushes","pushing"]
[null,648,"put","put","put","puts","putting"]
[null,649,"qualify","qualified","qualified","qualifies","qualifying"]
[null,650,"quarrel","quarrelled","quarrelled","quarrels","quarrelling"]
[null,651,"question","questioned","questioned","questions","questioning"]
[null,652,"quit","quit","quit","quits","quitting"]
[null,653,"race","raced","raced","races","racing"]
[null,654,"rain","rained","rained","rains","raining"]
[null,655,"rattle","rattled","rattled","rattles","rattling"]
[null,656,"reach","reached","reached","reaches","reaching"]
[null,657,"read","read","read","reads","reading"]
[null,658,"realize","realized","realized","realizes","realizing"]
[null,659,"rebuild","rebuilt","rebuilt","rebuilds","rebuilding"]
[null,660,"recall","recalled","recalled","recalls","recalling"]
[null,661,"recast","recast","recast","recasts","recasting"]
[null,662,"receive","received","received","receives","receiving"]
[null,663,"recite","recited","recited","recites","reciting"]
[null,664,"recognize","recognized","recognized","recognizes","recognizing"]
[null,665,"recollect","recollected","recollected","recollects","recollecting"]
[null,666,"recur","recurred","recurred","recurs","recurring"]
[null,667,"redo","redid","redone","redoes","redoing"]
[null,668,"reduce","reduced","reduced","reduces","reducing"]
[null,669,"refer","referred","referred","refers","referring"]
[null,670,"reflect","reflected","reflected","reflects","reflecting"]
[null,671,"refuse","refused","refused","refuses","refusing"]
[null,672,"regard","regarded","regarded","regards","regarding"]
[null,673,"regret","regretted","regretted","regrets","regretting"]
[null,674,"relate","related","related","relates","relating"]
[null,675,"relax","relaxed","relaxed","relaxes","relaxing"]
[null,676,"rely","relied","relied","relies","relying"]
[null,677,"remain","remained","remained","remains","remaining"]
[null,678,"remake","remade","remade","remakes","remaking"]
[null,679,"remove","removed","removed","removes","removing"]
[null,680,"rend","rent","rent","rends","rending"]
[null,681,"renew","renewed","renewed","renews","renewing"]
[null,682,"renounce","renounced","renounced","renounces","renouncing"]
[null,683,"repair","repaired","repaired","repairs","repairing"]
[null,684,"repeat","repeated","repeated","repeats","repeating"]
[null,685,"replace","replaced","replaced","replaces","replacing"]
[null,686,"reply","replied","replied","replies","replying"]
[null,687,"report","reported","reported","reports","reporting"]
[null,688,"request","requested","requested","requests","requesting"]
[null,689,"resell","resold","resold","resells","reselling"]
[null,690,"resemble","resembled","resembled","resembles","resembling"]
[null,691,"reset","reset","reset","resets","resetting"]
[null,692,"resist","resisted","resisted","resists","resisting"]
[null,693,"resolve","resolved","resolved","resolves","resolving"]
[null,694,"respect","respected","respected","respects","respecting"]
[null,695,"rest","rested","rested","rests","resting"]
[null,696,"restrain","restrained","restrained","restrains","restraining"]
[null,697,"retain","retained","retained","retains","retaining"]
[null,698,"retch","retched","retched","retches","retching"]
[null,699,"retire","retired","retired","retires","retiring"]
[null,700,"return","returned","returned","returns","returning"]
[null,701,"reuse","reused","reused","reuses","reusing"]
[null,702,"review","reviewed","reviewed","reviews","reviewing"]
[null,703,"rewind","rewound","rewound","rewinds","rewinding"]
[null,704,"rid","rid","rid","rids","ridding"]
[null,705,"ride","rode","ridden","rides","riding"]
[null,706,"ring","rang","rung","rings","ringing"]
[null,707,"rise","rose","risen","rises","rising"]
[null,708,"roar","roared","roared","roars","roaring"]
[null,709,"rob","robbed","robbed","robs","robbing"]
[null,710,"roll","rolled","rolled","rolls","rolling"]
[null,711,"rot","rotted","rotted","rots","rotting"]
[null,712,"rub","rubbed","rubbed","rubs","rubbing"]
[null,713,"rule","ruled","ruled","rules","ruling"]
[null,714,"run","ran","run","runs","running"]
[null,715,"rush","rushed","rushed","rushes","rushing"]
[null,716,"sabotage","sabotaged","sabotaged","sabotages","sabotaging"]
[null,717,"sack","sacked","sacked","sacks","sacking"]
[null,718,"sacrifice","sacrificed","sacrificed","sacrifices","sacrificing"]
[null,719,"sadden","saddened","saddened","saddens","saddening"]
[null,720,"saddle","saddled","saddled","saddles","saddling"]
[null,721,"sag","sagged","sagged","sags","sagging"]
[null,722,"sail","sailed","sailed","sails","sailing"]
[null,723,"sally","sallied","sallied","sallies","sallying"]
[null,724,"salute","saluted","saluted","salutes","saluting"]
[null,725,"salvage","salvaged","salvaged","salvages","salvaging"]
[null,726,"salve","salved","salved","salves","salving"]
[null,727,"sample","sampled","sampled","samples","sampling"]
[null,728,"sanctify","sanctified","sanctified","sanctifies","sanctifying"]
[null,729,"sanction","sanctioned","sanctioned","sanctions","sanctioning"]
[null,730,"sap","sapped","sapped","saps","sapping"]
[null,731,"saponify","saponified","saponified","saponifies","saponifying"]
[null,732,"sash","sashed","sashed","sashes","sashing"]
[null,733,"sashay","sashayed","sashayed","sashays","sashaying"]
[null,734,"sass","sassed","sassed","sasses","sassing"]
[null,735,"sate","sated","sated","sates","sating"]
[null,736,"satiate","satiated","satiated","satiates","satiating"]
[null,737,"satirise","satirised","satirised","satirises","satirising"]
[null,738,"satisfy","satisfied","satisfied","satisfies","satisfying"]
[null,739,"saturate","saturated","saturated","saturates","saturating"]
[null,740,"saunter","sauntered","sauntered","saunters","sauntering"]
[null,741,"save","saved","saved","saves","saving"]
[null,742,"savor","savored","savored","savors","savoring"]
[null,743,"savvy","savvied","savvied","savvies","savvying"]
[null,744,"saw","sawed","sawn","saws","sawing"]
[null,745,"say","said","said","says","saying"]
[null,746,"scab","scabbed","scabbed","scabs","scabbing"]
[null,747,"scabble","scabbled","scabbled","scabbles","scabbling"]
[null,748,"scald","scalded","scalded","scalds","scalding"]
[null,749,"scale","scaled","scaled","scales","scaling"]
[null,750,"scam","scammed","scammed","scams","scamming"]
[null,751,"scan","scanned","scanned","scans","scanning"]
[null,752,"scant","scanted","scanted","scants","scanting"]
[null,753,"scar","scarred","scarred","scars","scarring"]
[null,754,"scare","scared","scared","scares","scaring"]
[null,755,"scarify","scarified","scarified","scarifies","scarifying"]
[null,756,"scarp","scarped","scarped","scarps","scarping"]
[null,757,"scat","scatted","scatted","scats","scatting"]
[null,758,"scatter","scattered","scattered","scatters","scattering"]
[null,759,"scold","scolded","scolded","scolds","scolding"]
[null,760,"scorch","scorched","scorched","scorches","scorching"]
[null,761,"scowl","scowled","scowled","scowls","scowling"]
[null,762,"scrawl","scrawled","scrawled","scrawls","scrawling"]
[null,763,"scream","screamed","screamed","screams","screaming"]
[null,764,"screw","screwed","screwed","screws","screwing"]
[null,765,"scrub","scrubbed","scrubbed","scrubs","scrubbing"]
[null,766,"search","searched","searched","searches","searching"]
[null,767,"seat","seated","seated","seats","seating"]
[null,768,"secure","secured","secured","secures","securing"]
[null,769,"see","saw","seen","sees","seeing"]
[null,770,"seek","sought","sought","seeks","seeking"]
[null,771,"seem","seemed","seemed","seems","seeming"]
[null,772,"seize","seized","seized","seizes","seizing"]
[null,773,"select","selected","selected","selects","selecting"]
[null,774,"sell","sold","sold","sells","selling"]
[null,775,"send","sent","sent","sends","sending"]
[null,776,"sentence","sentenced","sentenced","sentences","sentencing"]
[null,777,"separate","separated","separated","separates","separating"]
[null,778,"set","set","set","sets","setting"]
[null,779,"sever","severed","severed","severs","severing"]
[null,780,"sew","sewed","sewn","sews","sewing"]
[null,781,"shake","shook","shaken","shakes","shaking"]
[null,782,"shape","shaped","shaped","shapes","shaping"]
[null,783,"share","shared","shared","shares","sharing"]
[null,784,"shatter","shattered","shattered","shatters","shattering"]
[null,785,"shave","shove","shaven","shaves","shaving"]
[null,786,"shear","shore","shorn","shears","shearing"]
[null,787,"shed","shed","shed","sheds","shedding"]
[null,788,"shine","shone","shone","shines","shining"]
[null,789,"shirk","shirked","shirked","shirks","shirking"]
[null,790,"shit","shit","shit","shits","shitting"]
[null,791,"shiver","shivered","shivered","shivers","shivering"]
[null,792,"shock","shocked","shocked","shocks","shocking"]
[null,793,"shoe","shod","shod","shoes","shoeing"]
[null,794,"shoot","shot","shot","shoots","shooting"]
[null,795,"shorten","shortened","shortened","shortens","shortening"]
[null,796,"shout","shouted","shouted","shouts","shouting"]
[null,797,"show","showed","shown","shows","showing"]
[null,798,"shrink","shrank","shrunk","shrinks","shrinking"]
[null,799,"shun","shunned","shunned","shuns","shunning"]
[null,800,"shut","shut","shut","shuts","shutting"]
[null,801,"sight","sighted","sighted","sights","sighting"]
[null,802,"signal","signalled","signalled","signals","signalling"]
[null,803,"signify","signified","signified","signifies","signifying"]
[null,804,"sing","sang","sung","sings","singing"]
[null,805,"sink","sank","sunk","sinks","sinking"]
[null,806,"sip","sipped","sipped","sips","sipping"]
[null,807,"sit","sat","sat","sits","sitting"]
[null,808,"ski","skied","skied","skis","skiing"]
[null,809,"skid","skidded","skidded","skids","skidding"]
[null,810,"slam","slammed","slammed","slams","slamming"]
[null,811,"slay","slew","slain","slays","slaying"]
[null,812,"sleep","slept","slept","sleeps","sleeping"]
[null,813,"slide","slid","slid/slide","slides","sliding"]
[null,814,"slim","slimmed","slimmed","slims","slimming"]
[null,815,"sling","slung","slung","slings","slinging"]
[null,816,"slink","slunk","slunk","slinks","slinking"]
[null,817,"slip","slipped","slipped","slips","slipping"]
[null,818,"slit","slit","slit","slits","slitting"]
[null,819,"smash","smashed","smashed","smashes","smashing"]
[null,820,"smell","smelt","smelt","smells","smelling"]
[null,821,"smile","smiled","smiled","smiles","smiling"]
[null,822,"smite","smote","smitten","smites","smiting"]
[null,823,"smooth","smoothed","smoothed","smoothes","smoothing"]
[null,824,"smother","smothered","smothered","smothers","smothering"]
[null,825,"snap","snapped","snapped","snaps","snapping"]
[null,826,"snatch","snatched","snatched","snatches","snatching"]
[null,827,"sneak","sneaked","sneaked","sneaks","sneaking"]
[null,828,"sneeze","sneezed","sneezed","sneezes","sneezing"]
[null,829,"sniff","sniffed","sniffed","sniffs","sniffing"]
[null,830,"soar","soared","soared","soars","soaring"]
[null,831,"sob","sobbed","sobbed","sobs","sobbing"]
[null,832,"solicit","solicited","solicited","solicits","soliciting"]
[null,833,"solve","solved","solved","solves","solving"]
[null,834,"soothe","soothed","soothed","soothes","soothing"]
[null,835,"sort","sorted","sorted","sorts","sorting"]
[null,836,"sow","sowed","sowed","sows","sowing"]
[null,837,"sparkle","sparkled","sparkled","sparkles","sparkling"]
[null,838,"speak","spoke","spoken","speaks","speaking"]
[null,839,"speed","sped","sped","speeds","speeding"]
[null,840,"spell","spelt","spelt","spells","spelling"]
[null,841,"spend","spent","spent","spends","spending"]
[null,842,"spill","spilt","spilt","spills","spilling"]
[null,843,"spin","span/spun","spun","spins","spinning"]
[null,844,"spit","spat/spit","spat/spit","spits","spitting"]
[null,845,"split","split","split","splits","splitting"]
[null,846,"spoil","spoilt","spoilt","spoils","spoiling"]
[null,847,"spray","sprayed","sprayed","sprays","spraying"]
[null,848,"spread","spread","spread","spreads","spreading"]
[null,849,"spring","sprang","sprung","springs","springing"]
[null,850,"sprout","sprouted","sprouted","sprouts","sprouting"]
[null,851,"squeeze","squeezed","squeezed","squeezes","squeezing"]
[null,852,"stand","stood","stood","stands","standing"]
[null,853,"stare","stared","stared","stares","staring"]
[null,854,"start","started","started","starts","starting"]
[null,855,"state","stated","stated","states","stating"]
[null,856]
[null,857,"stay","stayed","stayed","stays","staying"]
[null,858,"steal","stole","stolen","steals","stealing"]
[null,859,"steep","steeped","steeped","steeps","steeping"]
[null,860,"stem","stemmed","stemmed","stems","stemming"]
[null,861,"step","stepped","stepped","steps","stepping"]
[null,862,"sterilize","sterilized","sterilized","sterilizes","sterilizing"]
[null,863,"stick","stuck","stuck","sticks","sticking"]
[null,864,"stimulate","stimulated","stimulated","stimulates","stimulating"]
[null,865,"sting","stung","stung","stings","stinging"]
[null,866,"stink","stank","stunk","stinks","stinking"]
[null,867,"stir","stirred","stirred","stirs","stirring"]
[null,868,"stitch","stitched","stitched","stitches","stitching"]
[null,869,"stoop","stooped","stooped","stoops","stooping"]
[null,870,"stop","stopped","stopped","stops","stopping"]
[null,871,"store","stored","stored","stores","storing"]
[null,872,"strain","strained","strained","strains","straining"]
[null,873,"stray","strayed","strayed","strays","straying"]
[null,874,"stress","stressed","stressed","stresses","stressing"]
[null,875,"stretch","stretched","stretched","stretches","stretching"]
[null,876,"strew","strewed","strewn","strews","strewing"]
[null,877,"stride","strode","stridden","strides","striding"]
[null,878,"strike","struck","struck/stricken","strikes","striking"]
[null,879,"string","strung","strung","strings","stringing"]
[null,880,"strive","strove","striven","strives","striving"]
[null,881,"study","studied","studied","studies","studying"]
[null,882,"submit","submitted","submitted","submits","submitting"]
[null,883,"subscribe","subscribed","subscribed","subscribes","subscribing"]
[null,884,"subtract","subtracted","subtracted","subtracts","subtracting"]
[null,885,"succeed","succeeded","succeeded","succeeds","succeeding"]
[null,886,"suck","sucked","sucked","sucks","sucking"]
[null,887,"suffer","suffered","suffered","suffers","suffering"]
[null,888,"suggest","suggested","suggested","suggests","suggesting"]
[null,889,"summon","summoned","summoned","summons","summoning"]
[null,890,"supply","supplied","supplied","supplies","supplying"]
[null,891,"support","supported","supported","supports","supporting"]
[null,892,"suppose","supposed","supposed","supposes","supposing"]
[null,893,"surge","surged","surged","surges","surging"]
[null,894,"surmise","surmised","surmised","surmises","surmising"]
[null,895,"surpass","surpassed","surpassed","surpasses","surpassing"]
[null,896,"surround","surrounded","surrounded","surrounds","surrounding"]
[null,897,"survey","surveyed","surveyed","surveys","surveying"]
[null,898,"survive","survived","survived","survives","surviving"]
[null,899,"swallow","swallowed","swallowed","swallows","swallowing"]
[null,900,"sway","swayed","swayed","sways","swaying"]
[null,901,"swear","swore","sworn","swears","swearing"]
[null,902,"sweat","sweat","sweat","sweats","sweating"]
[null,903,"sweep","swept","swept","sweeps","sweeping"]
[null,904,"swell","swelled","swollen","swells","swelling"]
[null,905,"swim","swam","swum","swims","swimming"]
[null,906,"swing","swung","swung","swings","swinging"]
[null,907,"swot","swotted","swotted","swots","swotting"]
[null,908,"take","took","taken","takes","taking"]
[null,909,"talk","talked","talked","talks","talking"]
[null,910,"tap","tapped","tapped","taps","tapping"]
[null,911,"taste","tasted","tasted","tastes","tasting"]
[null,912,"tax","taxed","taxed","taxes","taxing"]
[null,913,"teach","taught","taught","teaches","teaching"]
[null,914,"tear","tore","torn","tears","tearing"]
[null,915,"tee","teed","teed","tees","teeing"]
[null,916,"tell","told","told","tells","telling"]
[null,917,"tempt","tempted","tempted","tempts","tempting"]
[null,918,"tend","tended","tended","tends","tending"]
[null,919,"terminate","terminated","terminated","terminates","terminating"]
[null,920,"terrify","terrified","terrified","terrifies","terrifying"]
[null,921,"test","tested","tested","tests","testing"]
[null,922,"thank","thanked","thanked","thanks","thanking"]
[null,923,"think","thought","thought","thinks","thinking"]
[null,924,"thrive","throve","thriven","thrives","thriving"]
[null,925,"throw","threw","thrown","throws","throwing"]
[null,926,"thrust","thrust","thrust","thrusts","thrusting"]
[null,927,"thump","thumped","thumped","thumps","thumping"]
[null,928,"tie","tied","tied","ties","tying"]
[null,929,"tire","tired","tired","tires","tiring"]
[null,930,"toss","tossed","tossed","tosses","tossing"]
[null,931,"touch","touched","touched","touches","touching"]
[null,932,"train","trained","trained","trains","training"]
[null,933,"trample","trampled","trampled","tramples","trampling"]
[null,934,"transfer","transferred","transferred","transfers","transferring"]
[null,935,"transform","transformed","transformed","transforms","transforming"]
[null,936,"translate","translated","translated","translates","translating"]
[null,937,"trap","trapped","trapped","traps","trapping"]
[null,938,"travel","travelled","travelled","travels","travelling"]
[null,939,"tread","trod","trodden","treads","treading"]
[null,940,"treasure","treasured","treasured","treasures","treasuring"]
[null,941,"treat","treated","treated","treats","treating"]
[null,942,"tree","treed","treed","trees","treeing"]
[null,943,"tremble","trembled","trembled","trembles","trembling"]
[null,944,"triumph","triumphed","triumphed","triumphs","triumphing"]
[null,945,"trust","trusted","trusted","trusts","trusting"]
[null,946,"try","tried","tried","tries","trying"]
[null,947,"turn","turned","turned","turns","turning"]
[null,948,"type","typed","typed","types","typing"]
[null,949,"typeset","typeset","typeset","typesets","typesetting"]
[null,950,"understand","understood","understood","understands","understanding"]
[null,951,"undo","undid","undone","undoes","undoing"]
[null,952,"uproot","uprooted","uprooted","uproots","uprooting"]
[null,953,"upset","upset","upset","upsets","upsetting"]
[null,954,"urge","urged","urged","urges","urging"]
[null,955,"use","used","used","uses","using"]
[null,956,"utter","uttered","uttered","utters","uttering"]
[null,957,"value","valued","valued","values","valuing"]
[null,958,"vanish","vanished","vanished","vanishes","vanishing"]
[null,959,"vary","varied","varied","varies","varying"]
[null,960,"verify","verified","verified","verifies","verifying"]
[null,961,"vex","vexed","vexed","vexes","vexing"]
[null,962,"vie","vied","vied","vies","vying"]
[null,963,"view","viewed","viewed","views","viewing"]
[null,964,"violate","violated","violated","violates","violating"]
[null,965,"vomit","vomited","vomited","vomits","vomiting"]
[null,966,"wake","woke","woken","wakes","waking"]
[null,967,"walk","walked","walked","walks","walking"]
[null,968,"wander","wandered","wandered","wanders","wandering"]
[null,969,"want","wanted","wanted","wants","wanting"]
[null,970,"warn","warned","warned","warns","warning"]
[null,971,"waste","wasted","wasted","wastes","wasting"]
[null,972,"watch","watched","watched","watches","watching"]
[null,973,"water","watered","watered","waters","watering"]
[null,974,"wave","waved","waved","waves","waving"]
[null,975,"wax","waxed","waxed","waxes","waxing"]
[null,976,"waylay","waylaid","waylaid","waylays","waylaying"]
[null,977,"wear","wore","worn","wears","wearing"]
[null,978,"weave","wove","woven","weaves","weaving"]
[null,979,"wed","wed","wed","weds","wedding"]
[null,980,"weep","wept","wept","weeps","weeping"]
[null,981,"weigh","weighed","weighed","weighs","weighing"]
[null,982,"welcome","welcomed","welcomed","welcomes","welcoming"]
[null,983,"wend","went","went","wends","wending"]
[null,984,"wet","wet","wet","wets","wetting"]
[null,985,"whip","whipped","whipped","whips","whipping"]
[null,986,"whisper","whispered","whispered","whispers","whispering"]
[null,987,"win","won","won","wins","winning"]
[null,988,"wind","wound","wound","winds","winding"]
[null,989,"wish","wished","wished","wishes","wishing"]
[null,990,"withdraw","withdrew","withdrawn","withdraws","withdrawing"]
[null,991,"work","worked","worked","works","working"]
[null,992,"worry","worried","worried","worries","worrying"]
[null,993,"worship","worshipped","worshipped","worships","worshipping"]
[null,994,"wring","wrung","wrung","wrings","wringing"]
[null,995,"write","wrote","written","writes","writing"]
[null,996,"yawn","yawned","yawned","yawns","yawning"]
[null,997,"yell","yelled","yelled","yells","yelling"]
[null,998,"yield","yielded","yielded","yields","yielding"]
[null,999,"zinc","zincked","zincked","zincs","zincking"]
[null,1000,"zoom","zoomed","zoomed","zooms","zooming"]

{"sheet":"Sheet3","index":3,"n_rows":1010,"n_cols":6,"rows_kept":1010,"cut":false,"hidden":false,"merged":[]}
[]
[]
[]
[]
[]
[]
[]
[]
[]
[]
[1,"abash","abashed","abashed","abashes","abashing"]
[2,"abate","abated","abated","abates","abating"]
[3,"abide","abode","abode","abides","abiding"]
[4,"absorb","absorbed","absorbed","absorbs","absorbing"]
[5,"accept","accepted","accepted","accepts","accepting"]
[6,"accompany","accompanied","accompanied","accompanies","accompanying"]
[7,"ache","ached","ached","aches","aching"]
[8,"achieve","achieved","achieved","achieves","achieving"]
[9,"acquire","acquired","acquired","acquires","acquiring"]
[10,"act","acted","acted","acts","acting"]
[11,"add","added","added","adds","adding"]
[12,"address","addressed","addressed","addresses","addressing"]
[13,"adjust","adjusted","adjusted","adjusts","adjusting"]
[14,"admire","admired","admired","admires","admiring"]
[15,"admit","admitted","admitted","admits","admitting"]
[16,"advise","advised","advised","advises","advising"]
[17,"afford","afforded","afforded","affords","affording"]
[18,"agree","agreed","agreed","agrees","agreeing"]
[19,"alight","alit","alit","alights","alighting"]
[20,"allow","allowed","allowed","allows","allowing"]
[21,"animate","animated","animated","animates","animating"]
[22,"announce","announced","announced","announces","announcing"]
[23,"answer","answered","answered","answers","answering"]
[24,"apologize","apologized","apologized","apologizes","apologizing"]
[25,"appear","appeared","appeared","appears","appearing"]
[26,"applaud","applauded","applauded","applauds","applauding"]
[27,"apply","applied","applied","applies","applying"]
[28,"approach","approached","approached","approaches","approaching"]
[29,"approve","approved","approved","approves","approving"]
[30,"argue","argued","argued","argues","arguing"]
[31,"arise","arose","arisen","arises","arising"]
[32,"arrange","arranged","arranged","arranges","arranging"]
[33,"arrest","arrested","arrested","arrests","arresting"]
[34,"ask","asked","asked","asks","asking"]
[35,"assert","asserted","asserted","asserts","asserting"]
[36,"assort","assorted","assorted","assorts","assorting"]
[37,"astonish","astonished","astonished","astonishes","astonishing"]
[38,"attack","attacked","attacked","attacks","attacking"]
[39,"attend","attended","attended","attends","attending"]
[40,"attract","attracted","attracted","attracts","attracting"]
[41,"audit","audited","audited","audits","auditing"]
[42,"avoid","avoided","avoided","avoids","avoiding"]
[43,"awake","awoke","awoken","awakes","awaking"]
[44,"bang","banged","banged","bangs","banging"]
[45,"banish","banished","banished","banishes","banishing"]
[46,"bash","bashed","bashed","bashes","bashing"]
[47,"bat","batted","batted","bats","batting"]
[48,"be (am,are)","was / were","been","is","being"]
[49,"bear","bore","born","bears","bearing"]
[50,"bear","bore","borne","bears","bearing"]
[51,"beat","beat","beaten","beats","beating"]
[52,"beautify","beautified","beautified","beautifies","beautifying"]
[53,"become","became","become","becomes","becoming"]
[54,"befall","befell","befallen","befalls","befalling"]
[55,"beg","begged","begged","begs","begging"]
[56,"begin","began","begun","begins","beginning"]
[57,"behave","behaved","behaved","behaves","behaving"]
[58,"behold","beheld","beheld","beholds","beholding"]
[59,"believe","believed","believed","believes","believing"]
[60,"belong","belonged","belonged","belongs","belonging"]
[61,"bend","bent","bent","bends","bending"]
[62,"bereave","bereft","bereft","bereaves","bereaving"]
[63,"beseech","besought","besought","beseeches","beseeching"]
[64,"bet","bet","bet","bets","betting"]
[65,"betray","betrayed","betrayed","betrays","betraying"]
[66,"bid","bade","bidden","bids","bidding"]
[67,"bid","bid","bid","bids","bidding"]
[68,"bind","bound","bound","binds","binding"]
[69,"bite","bit","bitten","bites","biting"]
[70,"bleed","bled","bled","bleeds","bleeding"]
[71,"bless","blessed","blessed","blesses","blessing"]
[72,"blossom","blossomed","blossomed","blossoms","blossoming"]
[73,"blow","blew","blown","blows","blowing"]
[74,"blur","blurred","blurred","blurs","blurring"]
[75,"blush","blushed","blushed","blushes","blushing"]
[76,"board","boarded","boarded","boards","boarding"]
[77,"boast","boasted","boasted","boasts","boasting"]
[78,"boil","boiled","boiled","boils","boiling"]
[79,"bow","bowed","bowed","bows","bowing"]
[80,"box","boxed","boxed","boxes","boxing"]
[81,"bray","brayed","brayed","brays","braying"]
[82,"break","broke","broken","breaks","breaking"]
[83,"breathe","breathed","breathed","breathes","breathing"]
[84,"breed","bred","bred","breeds","breeding"]
[85,"bring","brought","brought","brings","bringing"]
[86,"broadcast","broadcast","broadcast","broadcasts","broadcasting"]
[87,"brush","brushed","brushed","brushes","brushing"]
[88,"build","built","built","builds","building"]
[89,"burn","burnt","burnt","burns","burning"]
[90,"burst","burst","burst","bursts","bursting"]
[91,"bury","buried","buried","buries","burying"]
[92,"bust","bust","bust","busts","busting"]
[93,"buy","bought","bought","buys","buying"]
[94,"buzz","buzzed","buzzed","buzzes","buzzing"]
[95,"calculate","calculated","calculated","calculates","calculating"]
[96,"call","called","called","calls","calling"]
[97,"canvass","canvassed","canvassed","canvasses","canvassing"]
[98,"capture","captured","captured","captures","capturing"]
[99,"caress","caressed","caressed","caresses","caressing"]
[100,"carry","carried","carried","carries","carrying"]
[101,"carve","carved","carved","carves","carving"]
[102,"cash","cashed","cashed","cashes","cashing"]
[103,"cast","cast","cast","casts","casting"]
[104,"catch","caught","caught","catches","catching"]
[105,"cause","caused","caused","causes","causing"]
[106,"cease","ceased","ceased","ceases","ceasing"]
[107,"celebrate","celebrated","celebrated","celebrates","celebrating"]
[108,"challenge","challenged","challenged","challenges","challenging"]
[109,"change","changed","changed","changes","changing"]
[110,"charge","charged","charged","charges","charging"]
[111,"chase","chased","chased","chases","chasing"]
[112,"chat","chatted","chatted","chats","chatting"]
[113,"check","checked","checked","checks","checking"]
[114,"cheer","cheered","cheered","cheers","cheering"]
[115,"chew","chewed","chewed","chews","chewing"]
[116,"chide","chid","chid/chidden","chides","chiding"]
[117,"chip","chipped","chipped","chips","chipping"]
[118,"choke","choked","choked","chokes","choking"]
[119,"choose","chose","chosen","chooses","choosing"]
[120,"classify","classified","classified","classifies","classifying"]
[121,"clean","cleaned","cleaned","cleans","cleaning"]
[122,"cleave","clove/cleft","cloven/cleft","cleaves","cleaving"]
[123,"click","clicked","clicked","clicks","clicking"]
[124,"climb","climbed","climbed","climbs","climbing"]
[125,"cling","clung","clung","clings","clinging"]
[126,"close","closed","closed","closes","closing"]
[127,"clothe","clad","clad","clothes","clothing"]
[128,"clutch","clutched","clutched","clutches","clutching"]
[129,"collapse","collapsed","collapsed","collapses","collapsing"]
[130,"collect","collected","collected","collects","collecting"]
[131,"colour","coloured","coloured","colours","colouring"]
[132,"come","came","come","comes","coming"]
[133,"comment","commented","commented","comments","commenting"]
[134,"compare","compared","compared","compares","comparing"]
[135,"compel","compelled","compelled","compels","compelling"]
[136,"compete","competed","competed","competes","competing"]
[137,"complain","complained","complained","complains","complaining"]
[138,"complete","completed","completed","completes","completing"]
[139,"conclude","concluded","concluded","concludes","concluding"]
[140,"conduct","conducted","conducted","conducts","conducting"]
[141,"confess","confessed","confessed","confesses","confessing"]
[142,"confine","confined","confined","confines","confining"]
[143,"confiscate","confiscated","confiscated","confiscates","confiscating"]
[144,"confuse","confused","confused","confuses","confusing"]
[145,"congratulate","congratulated","congratulated","congratulates","congratulating"]
[146,"connect","connected","connected","connects","connecting"]
[147,"connote","connoted","connoted","connotes","connoting"]
[148,"conquer","conquered","conquered","conquers","conquering"]
[149,"consecrate","consecrated","consecrated","consecrates","consecrating"]
[150,"consent","consented","consented","consents","consenting"]
[151,"conserve","conserved","conserved","conserves","conserving"]
[152,"consider","considered","considered","considers","considering"]
[153,"consign","consigned","consigned","consigns","consigning"]
[154,"consist","consisted","consisted","consists","consisting"]
[155,"console","consoled","consoled","consoles","consoling"]
[156,"consort","consorted","consorted","consorts","consorting"]
[157,"conspire","conspired","conspired","conspires","conspiring"]
[158,"constitute","constituted","constituted","constitutes","constituting"]
[159,"constrain","constrained","constrained","constrains","constraining"]
[160,"construct","constructed","constructed","constructs","constructing"]
[161,"construe","construed","construed","construes","construing"]
[162,"consult","consulted","consulted","consults","consulting"]
[163,"contain","contained","contained","contains","containing"]
[164,"contemn","contemned","contemned","contemns","contemning"]
[165,"contend","contended","contended","contends","contending"]
[166,"contest","contested","contested","contests","contesting"]
[167,"continue","continued","continued","continues","continuing"]
[168,"contract","contracted","contracted","contracts","contracting"]
[169,"contradict","contradicted","contradicted","contradicts","contradicting"]
[170,"contrast","contrasted","contrasted","contrasts","contrasting"]
[171,"contribute","contributed","contributed","contributes","contributing"]
[172,"contrive","contrived","contrived","contrives","contriving"]
[173,"control","controlled","controlled","controls","controlling"]
[174,"convene","convened","convened","convenes","convening"]
[175,"converge","converged","converged","converges","converging"]
[176,"converse","conversed","conversed","converses","conversing"]
[177,"convert","converted","converted","converts","converting"]
[178,"convey","conveyed","conveyed","conveys","conveying"]
[179,"convict","convicted","convicted","convicts","convicting"]
[180,"convince","convinced","convinced","convinces","convincing"]
[181,"coo","cooed","cooed","coos","cooing"]
[182,"cook","cooked","cooked","cooks","cooking"]
[183,"cool","cooled","cooled","cools","cooling"]
[184,"co-operate","co-operated","co-operated","co-operates","co-operating"]
[185,"cope","coped","cope","copes","coping"]
[186,"copy","copied","copied","copies","copying"]
[187,"correct","corrected","corrected","corrects","correcting"]
[188,"correspond","corresponded","corresponded","corresponds","corresponding"]
[189,"corrode","corroded","corroded","corrodes","corroding"]
[190,"corrupt","corrupted","corrupted","corrupts","corrupting"]
[191,"cost","cost","cost","costs","costing"]
[192,"cough","coughed","coughed","coughs","coughing"]
[193,"counsel","counselled","counselled","counsels","counselling"]
[194,"count","counted","counted","counts","counting"]
[195,"course","coursed","coursed","courses","coursing"]
[196,"cover","covered","covered","covers","covering"]
[197,"cower","cowered","cowered","cowers","cowering"]
[198,"crack","cracked","cracked","cracks","cracking"]
[199,"crackle","crackled","crackled","crackles","crackling"]
[200,"crash","crashed","crashed","crashes","crashing"]
[201,"crave","craved","craved","craves","craving"]
[202,"create","created","created","creates","creating"]
[203,"creep","crept","crept","creeps","creeping"]
[204,"crib","cribbed","cribbed","cribs","cribbing"]
[205,"cross","crossed","crossed","crosses","crossing"]
[206,"crowd","crowded","crowded","crowds","crowding"]
[207,"crush","crushed","crushed","crushes","crushing"]
[208,"cry","cried","cried","cries","crying"]
[209,"curb","curbed","curbed","curbs","curbing"]
[210,"cure","cured","cured","cures","curing"]
[211,"curve","curved","curved","curves","curving"]
[212,"cut","cut","cut","cuts","cutting"]
[213,"cycle","cycled","cycled","cycles","cycling"]
[214,"damage","damaged","damaged","damages","damaging"]
[215,"damp","damped","damped","damps","damping"]
[216,"dance","danced","danced","dances","dancing"]
[217,"dare","dared","dared","dares","daring"]
[218,"dash","dashed","dashed","dashes","dashing"]
[219,"dazzle","dazzled","dazzled","dazzles","dazzling"]
[220,"deal","dealt","dealt","deals","dealing"]
[221,"decay","decayed","decayed","decays","decaying"]
[222,"decide","decided","decided","decides","deciding"]
[223,"declare","declared","declared","declares","declaring"]
[224,"decorate","decorated","decorated","decorates","decorating"]
[225,"decrease","decreased","decreased","decreases","decreasing"]
[226,"dedicate","dedicated","dedicated","dedicates","dedicating"]
[227,"delay","delayed","delayed","delays","delaying"]
[228,"delete","deleted","deleted","deletes","deleting"]
[229,"deny","denied","denied","denies","denying"]
[230,"depend","depended","depended","depends","depending"]
[231,"deprive","deprived","deprived","deprives","depriving"]
[232,"derive","derived","derived","derives","deriving"]
[233,"describe","described","described","describes","describing"]
[234,"desire","desired","desired","desires","desiring"]
[235,"destroy","destroyed","destroyed","destroys","destroying"]
[236,"detach","detached","detached","detaches","detaching"]
[237,"detect","detected","detected","detects","detecting"]
[238,"determine","determined","determined","determines","determining"]
[239,"develop","developed","developed","develops","developing"]
[240,"die","died","died","dies","dying"]
[241,"differ","differed","differed","differs","differing"]
[242,"dig","dug","dug","digs","digging"]
[243,"digest","digested","digested","digests","digesting"]
[244,"dim","dimmed","dimmed","dims","dimming"]
[245,"diminish","diminished","diminished","diminishes","diminishing"]
[246,"dine","dined","dined","dines","dining"]
[247,"dip","dipped","dipped","dips","dipping"]
[248,"direct","directed","directed","directs","directing"]
[249,"disappear","disappeared","disappeared","disappears","disappearing"]
[250,"discover","discovered","discovered","discovers","discovering"]
[251,"discuss","discussed","discussed","discusses","discussing"]
[252,"disobey","disobeyed","disobeyed","disobeys","disobeying"]
[253,"display","displayed","displayed","displays","displaying"]
[254,"dispose","disposed","disposed","disposes","disposing"]
[255,"distribute","distributed","distributed","distributes","distributing"]
[256,"disturb","disturbed","disturbed","disturbs","disturbing"]
[257,"disuse","disused","disused","disuses","disusing"]
[258,"dive","dived ","dived","dives","diving"]
[259,"divide","divided","divided","divides","dividing"]
[260,"do","did","done","does","doing"]
[261,"donate","donated","donated","donates","donating"]
[262,"download","downloaded","downloaded","downloads","downloading"]
[263,"drag","dragged","dragged","drags","dragging"]
[264,"draw","drew","drawn","draws","drawing"]
[265,"dream","dreamt","dreamt","dreams","dreaming"]
[266,"dress","dressed","dressed","dresses","dressing"]
[267,"drill","drilled","drilled","drills","drilling"]
[268,"drink","drank","drunk","drinks","drinking"]
[269,"drive","drove","driven","drives","driving"]
[270,"drop","dropped","dropped","drops","dropping"]
[271,"dry","dried","dried","dries","drying"]
[272,"dump","dumped","dumped","dumps","dumping"]
[273,"dwell","dwelt","dwelt","dwells","dwelling"]
[274,"dye","dyed","dyed","dyes","dyeing"]
[275,"earn","earned","earned","earns","earning"]
[276,"eat","ate","eaten","eats","eating"]
[277,"educate","educated","educated","educates","educating"]
[278,"empower","empowered","empowered","empowers","empowering"]
[279,"empty","emptied","emptied","empties","emptying"]
[280,"encircle","encircled","encircled","encircles","encircling"]
[281,"encourage","encouraged","encouraged","encourages","encouraging"]
[282,"encroach","encroached","encroached","encroaches","encroaching"]
[283,"endanger","endangered","endangered","endangers","entangling"]
[284,"endorse","endorsed","endorsed","endorses","endorsing"]
[285,"endure","endured","endured","endures","enduring"]
[286,"engrave","engraved","engraved","engraves","engraving"]
[287,"enjoy","enjoyed","enjoyed","enjoys","enjoying"]
[288,"enlarge","enlarged","enlarged","enlarges","enlarging"]
[289,"enlighten","enlightened","enlightened","enlightens","enlightening"]
[290,"enter","entered","entered","enters","entering"]
[291,"envy","envied","envied","envies","envying"]
[292,"erase","erased","erased","erases","erasing"]
[293,"escape","escaped","escaped","escapes","escaping"]
[294,"evaporate","evaporated","evaporated","evaporates","evaporating"]
[295,"exchange","exchanged","exchanged","exchanges","exchanging"]
[296,"exclaim","exclaimed","exclaimed","exclaims","exclaiming"]
[297,"exclude","excluded","excluded","excludes","excluding"]
[298,"exist","existed","existed","exists","existing"]
[299,"expand","expanded","expanded","expands","expanding"]
[300,"expect","expected","expected","expects","expecting"]
[301,"explain","explained","explained","explains","explaining"]
[302,"explore","explored","explored","explores","exploring"]
[303,"express","expressed","expressed","expresses","expressing"]
[304,"extend","extended","extended","extends","extending"]
[305,"eye","eyed","eyed","eyes","eyeing"]
[306,"face","faced","faced","faces","facing"]
[307,"fail","failed","failed","fails","failing"]
[308,"faint","fainted","fainted","faints","fainting"]
[309,"fall","fell","fallen","falls","falling"]
[310,"fan","fanned","fanned","fans","fanning"]
[311,"fancy","fancied","fancied","fancies","fancying"]
[312,"favour","favoured","favoured","favours","favouring"]
[313,"fax","faxed","faxed","faxes","faxing"]
[314,"feed","fed","fed","feeds","feeding"]
[315,"feel","felt","felt","feels","feeling"]
[316,"ferry","ferried","ferried","ferries","ferrying"]
[317,"fetch","fetched","fetched","fetches","fetching"]
[318,"fight","fought","fought","fights","fighting"]
[319,"fill","filled","filled","fills","filling"]
[320,"find","found","found","finds","finding"]
[321,"finish","finished","finished","finishes","finishing"]
[322,"fish","fished","fished","fishes","fishing"]
[323,"fit","fit/fitted","fit/fitted","fits","fitting"]
[324,"fix","fixed","fixed","fixes","fixing"]
[325,"fizz","fizzed","fizzed","fizzes","fizzing"]
[326,"flap","flapped","flapped","flaps","flapping"]
[327,"flash","flashed","flashed","flashes","flashing"]
[328,"flee","fled","fled","flees","fleeing"]
[329,"fling","flung","flung","flings","flinging"]
[330,"float","floated","floated","floats","floating"]
[331,"flop","flopped","flopped","flops","flopping"]
[332,"fly","flew","flown","flies","flying"]
[333,"fold","folded","folded","folds","folding"]
[334,"follow","followed","followed","follows","following"]
[335,"forbid","forbade","forbidden","forbids","forbidding"]
[336,"force","forced","forced","forces","forcing"]
[337,"forecast","forecast","forecast","forecasts","forecasting"]
[338,"foretell","foretold","foretold","foretells","foretelling"]
[339,"forget","forgot","forgotten","forgets","forgetting"]
[340,"forgive","forgave","forgiven","forgives","forgiving"]
[341,"forlese","forlore","forlorn","forlese","forlesing"]
[342,"form","formed","formed","forms","forming"]
[343,"forsake","forsook","forsaken","forsakes","forsaking"]
[344,"found","founded","founded","founds","founding"]
[345,"frame","framed","framed","frames","framing"]
[346,"free","freed","freed","frees","freeing"]
[347,"freeze","froze","frozen","freezes","freezing"]
[348,"frighten","frightened","frightened","frightens","frightening"]
[349,"fry","fried","fried","fries","frying"]
[350,"fulfil","fulfilled","fulfilled","fulfils","fulfilling"]
[351,"gag","gagged","gagged","gags","gagging"]
[352,"gain","gained","gained","gains","gaining"]
[353,"gainsay","gainsaid","gainsaid","gainsays","gainsaying"]
[354,"gash","gashed","gashed","gashes","gashing"]
[355,"gaze","gazed","gazed","gazes","gazing"]
[356,"get","got","got","gets","getting"]
[357,"give","gave","given","gives","giving"]
[358,"glance","glanced","glanced","glances","glancing"]
[359,"glitter","glittered","glittered","glitters","glittering"]
[360,"glow","glowed","glowed","glows","glowing"]
[361,"go","went","gone","goes","going"]
[362,"google","googled","googled","googles","googling"]
[363,"govern","governed","governed","governs","governing"]
[364,"grab","grabbed","grabbed","grabs","grabbing"]
[365,"grade","graded","graded","grades","grading"]
[366,"grant","granted","granted","grants","granting"]
[367,"greet","greeted","greeted","greets","greeting"]
[368,"grind","ground","ground","grinds","grinding"]
[369,"grip","gripped","gripped","grips","gripping"]
[370,"grow","grew","grown","grows","growing"]
[371,"guard","guarded","guarded","guards","guarding"]
[372,"guess","guessed","guessed","guesses","guessing"]
[373,"guide","guided","guided","guides","guiding"]
[374,"handle","handled","handled","handles","handling"]
[375,"hang","hung","hung","hangs","hanging"]
[376,"happen","happened","happened","happens","happening"]
[377,"harm","harmed","harmed","harms","harming"]
[378,"hatch","hatched","hatched","hatches","hatching"]
[379,"hate","hated","hated","hates","hating"]
[380,"have","had","had","has","having"]
[381,"heal","healed","healed","heals","healing"]
[382,"hear","heard","heard","hears","hearing"]
[383,"heave","hove","hove","heaves","heaving"]
[384,"help","helped","helped","helps","helping"]
[385,"hew","hewed","hewn","hews","hewing"]
[386,"hide","hid","hidden","hides","hiding"]
[387,"hinder","hindered","hindered","hinders","hindering"]
[388,"hiss","hissed","hissed","hisses","hissing"]
[389,"hit","hit","hit","hits","hitting"]
[390,"hoax","hoaxed","hoaxed","hoaxes","hoaxing"]
[391,"hold","held","held","holds","holding"]
[392,"hop","hopped","hopped","hops","hopping"]
[393,"hope","hoped","hoped","hopes","hoping"]
[394,"horrify","horrified","horrified","horrifies","horrifying"]
[395,"hug","hugged","hugged","hugs","hugging"]
[396,"hum","hummed","hummed","hums","humming"]
[397,"humiliate","humiliated","humiliated","humiliates","humiliating"]
[398,"hunt","hunted","hunted","hunts","hunting"]
[399,"hurl","hurled","hurled","hurls","hurling"]
[400,"hurry","hurried","hurried","hurries","hurrying"]
[401,"hurt","hurt","hurt","hurts","hurting"]
[402,"hush","hushed","hushed","hushes","hushing"]
[403,"hustle","hustled","hustled","hustles","hustling"]
[404,"hypnotize","hypnotized","hypnotized","hypnotizes","hypnotizing"]
[405,"idealize","idealized","idealized","idealizes","idealizing"]
[406,"identify","identified","identified","identifies","identifying"]
[407,"idolize","idolized","idolized","idolizes","idolizing"]
[408,"ignite","ignited","ignited","ignites","igniting"]
[409,"ignore","ignored","ignored","ignores","ignoring"]
[410,"ill-treat","ill-treated","ill-treated","ill-treats","ill-treating"]
[411,"illuminate","illuminated","illuminated","illuminates","illuminating"]
[412,"illumine","illumined","illumined","illumines","illumining"]
[413,"illustrate","illustrated","illustrated","illustrates","illustrating"]
[414,"imagine","imagined","imagined","imagines","imagining"]
[415,"imbibe","imbibed","imbibed","imbibes","imbibing"]
[416,"imitate","imitated","imitated","imitates","imitating"]
[417,"immerse","immersed","immersed","immerses","immersing"]
[418,"immolate","immolated","immolated","immolates","immolating"]
[419,"immure","immured","immured","immures","immuring"]
[420,"impair","impaired","impaired","impairs","impairing"]
[421,"impart","imparted","imparted","imparts","imparting"]
[422,"impeach","impeached","impeached","impeaches","impeaching"]
[423,"impede","impeded","impeded","impedes","impeding"]
[424,"impel","impelled","impelled","impels","impelling"]
[425,"impend","impended","impended","impends","impending"]
[426,"imperil","imperilled","imperilled","imperils","imperilling"]
[427,"impinge","impinged","impinged","impinges","impinging"]
[428,"implant","implanted","implanted","implants","implanting"]
[429,"implicate","implicated","implicated","implicates","implicating"]
[430,"implode","imploded","imploded","implodes","imploding"]
[431,"implore","implored","implored","implores","imploring"]
[432,"imply","implied","implied","implies","implying"]
[433,"import","imported","imported","imports","importing"]
[434,"impose","imposed","imposed","imposes","imposing"]
[435,"impress","impressed","impressed","impresses","impressing"]
[436,"imprint","imprinted","imprinted","imprints","imprinting"]
[437,"imprison","imprisoned","imprisoned","imprisons","imprisoning"]
[438,"improve","improved","improved","improves","improving"]
[439,"inaugurate","inaugurated","inaugurated","inaugurates","inaugurating"]
[440,"incise","incised","incised","incises","incising"]
[441,"include","included","included","includes","including"]
[442,"increase","increased","increased","increases","increasing"]
[443,"inculcate","inculcated","inculcated","inculcates","inculcating"]
[444,"indent","indented","indented","indents","indenting"]
[445,"indicate","indicated","indicated","indicates","indicating"]
[446,"induce","induced","induced","induces","inducing"]
[447,"indulge","indulged","indulged","indulges","indulging"]
[448,"infect","infected","infected","infects","infecting"]
[449,"infest","infested","infested","infests","infesting"]
[450,"inflame","inflamed","inflamed","inflames","inflaming"]
[451,"inflate","inflated","inflated","inflates","inflating"]
[452,"inflect","inflected","inflected","inflects","inflecting"]
[453,"inform","informed","informed","informs","informing"]
[454,"infringe","infringed","infringed","infringes","infringing"]
[455,"infuse","infused","infused","infuses","infusing"]
[456,"ingest","ingested","ingested","ingests","ingesting"]
[457,"inhabit","inhabited","inhabited","inhabits","inhabiting"]
[458,"inhale","inhaled","inhaled","inhales","inhaling"]
[459,"inherit","inherited","inherited","inherits","inheriting"]
[460,"initiate","initiated","initiated","initiates","initiating"]
[461,"inject","injected","injected","injects","injecting"]
[462,"injure","injured","injured","injures","injuring"]
[463,"inlay","inlaid","inlaid","inlays","inlaying"]
[464,"innovate","innovated","innovated","innovates","innovating"]
[465,"input","input","input","inputs","inputting"]
[466,"inquire","inquired","inquired","inquires","inquiring"]
[467,"inscribe","inscribed","inscribed","inscribes","inscribing"]
[468,"insert","inserted","inserted","inserts","inserting"]
[469,"inspect","inspected","inspected","inspects","inspecting"]
[470,"inspire","inspired","inspired","inspires","inspiring"]
[471,"install","installed","installed","installs","installing"]
[472,"insult","insulted","insulted","insults","insulting"]
[473,"insure","insured","insured","insures","insuring"]
[474,"integrate","integrated","integrated","integrates","integrating"]
[475,"introduce","introduced","introduced","introduces","introducing"]
[476,"invent","invented","invented","invents","inventing"]
[477,"invite","invited","invited","invites","inviting"]
[478,"join","joined","joined","joins","joining"]
[479,"jump","jumped","jumped","jumps","jumping"]
[480,"justify","justified","justified","justifies","justifying"]
[481,"keep","kept","kept","keeps","keeping"]
[482,"kick","kicked","kicked","kicks","kicking"]
[483,"kid","kidded","kidded","kids","kidding"]
[484,"kill","killed","killed","kills","killing"]
[485,"kiss","kissed","kissed","kisses","kissing"]
[486,"kneel","knelt","knelt","kneels","kneeling"]
[487,"knit","knit","knit","knits","knitting"]
[488,"knock","knocked","knocked","knocks","knocking"]
[489,"know","knew","known","knows","knowing"]
[490,"lade","laded","laden","lades","lading"]
[491,"land","landed","landed","lands","landing"]
[492,"last","lasted","lasted","lasts","lasting"]
[493,"latch","latched","latched","latches","latching"]
[494,"laugh","laughed","laughed","laughs","laughing"]
[495,"lay","laid","laid","lays","laying"]
[496,"lead","led","led","leads","leading"]
[497,"leak","leaked","leaked","leaks","leaking"]
[498,"lean","leant","leant","leans","leaning"]
[499,"leap","leapt","leapt","leaps","leaping"]
[500,"learn","learnt","learnt","learns","learning"]
[501,"leave","left","left","leaves","leaving"]
[502,"leer","leered","leered","leers","leering"]
[503,"lend","lent","lent","lends","lending"]
[504,"let","let","let","lets","letting"]
[505,"lick","licked","licked","licks","licking"]
[506,"lie","lay","lain","lies","lying"]
[507,"lie","lied","lied","lies","lying"]
[508,"lift","lifted","lifted","lifts","lifting"]
[509,"light","lit","lit","lights","lighting"]
[510,"like","liked","liked","likes","liking"]
[511,"limp","limped","limped","limps","limping"]
[512,"listen","listened","listened","listens","listening"]
[513,"live","lived","lived","lives","living"]
[514,"look","looked","looked","looks","looking"]
[515,"lose","lost","lost","loses","losing"]
[516,"love","loved","loved","loves","loving"]
[517,"magnify","magnified","magnified","magnifies","magnifying"]
[518,"maintain","maintained","maintained","maintains","maintaining"]
[519,"make","made","made","makes","making"]
[520,"manage","managed","managed","manages","managing"]
[521,"march","marched","marched","marches","marching"]
[522,"mark","marked","marked","marks","marking"]
[523,"marry","married","married","marries","marrying"]
[524,"mash","mashed","mashed","mashes","mashing"]
[525,"match","matched","matched","matches","matching"]
[526,"matter","mattered","mattered","matters","mattering"]
[527,"mean","meant","meant","means","meaning"]
[528,"measure","measured","measured","measures","measuring"]
[529,"meet","met","met","meets","meeting"]
[530,"melt","melted","melted","melts","melting"]
[531,"merge","merged","merged","merges","merging"]
[532,"mew","mewed","mewed","mews","mewing"]
[533,"migrate","migrated","migrated","migrates","migrating"]
[534,"milk","milked","milked","milks","milking"]
[535,"mind","minded","minded","minds","minding"]
[536,"mislead","misled","misled","misleads","misleading"]
[537,"miss","missed","missed","misses","missing"]
[538,"mistake","mistook","mistaken","mistakes","mistaking"]
[539,"misuse","misused","misused","misuses","misusing"]
[540,"mix","mixed","mixed","mixes","mixing"]
[541,"moan","moaned","moaned","moans","moaning"]
[542,"modify","modified","modified","modifies","modifying"]
[543,"moo","mooed","mooed","moos","mooing"]
[544,"motivate","motivated","motivated","motivates","motivating"]
[545,"mould","moulded","moulded","moulds","moulding"]
[546,"moult","moulted","moulted","moults","moulting"]
[547,"move","moved","moved","moves","moving"]
[548,"mow","mowed","mown","mows","mowing"]
[549,"multiply","multiplied","multiplied","multiplies","multiplying"]
[550,"murmur","murmured","murmured","murmurs","murmuring"]
[551,"nail","nailed","nailed","nails","nailing"]
[552,"nap","napped","napped","naps","napping"]
[553,"need","needed","needed","needs","needing"]
[554,"neglect","neglected","neglected","neglects","neglecting"]
[555,"nip","nipped","nipped","nips","nipping"]
[556,"nod","nodded","nodded","nods","nodding"]
[557,"note","noted","noted","notes","noting"]
[558,"notice","noticed","noticed","notices","noticing"]
[559,"notify","notified","notified","notifies","notifying"]
[560,"nourish","nourished","nourished","nourishes","nourishing"]
[561,"nurse","nursed","nursed","nurses","nursing"]
[562,"obey","obeyed","obeyed","obeys","obeying"]
[563,"oblige","obliged","obliged","obliges","obliging"]
[564,"observe","observed","observed","observes","observing"]
[565,"obstruct","obstructed","obstructed","obstructs","obstructing"]
[566,"obtain","obtained","obtained","obtains","obtaining"]
[567,"occupy","occupied","occupied","occupies","occupying"]
[568,"occur","occurred","occurred","occurs","occurring"]
[569,"offer","offered","offered","offers","offering"]
[570,"offset","offset","offset","offsets","offsetting"]
[571,"omit","omitted","omitted","omits","omitting"]
[572,"ooze","oozed","oozed","oozes","oozing"]
[573,"open","opened","opened","opens","opening"]
[574,"operate","operated","operated","operates","operating"]
[575,"opine","opined","opined","opines","opining"]
[576,"oppress","oppressed","oppressed","oppresses","oppressing"]
[577,"opt","opted","opted","opts","opting"]
[578,"optimize","optimized","optimized","optimizes","optimizing"]
[579,"order","ordered","ordered","orders","ordering"]
[580,"organize","organized","organized","organizes","organizing"]
[581,"originate","originated","originated","originates","originating"]
[582,"output","output","output","outputs","outputting"]
[583,"overflow","overflowed","overflowed","overflows","overflowing"]
[584,"overtake","overtook","overtaken","overtakes","overtaking"]
[585,"owe","owed","owed","owes","owing"]
[586,"own","owned","owned","owns","owning"]
[587,"pacify","pacified","pacified","pacifies","pacifying"]
[588,"paint","painted","painted","paints","painting"]
[589,"pardon","pardoned","pardoned","pardons","pardoning"]
[590,"part","parted","parted","parts","parting"]
[591,"partake","partook","partaken","partakes","partaking"]
[592,"participate","participated","participated","participates","participating"]
[593,"pass","passed","passed","passes","passing"]
[594,"paste","pasted","pasted","pastes","pasting"]
[595,"pat","patted","patted","pats","patting"]
[596,"patch","patched","patched","patches","patching"]
[597,"pause","paused","paused","pauses","pausing"]
[598,"pay","paid","paid","pays","paying"]
[599,"peep","peeped","peeped","peeps","peeping"]
[600,"perish","perished","perished","perishes","perishing"]
[601,"permit","permitted","permitted","permits","permitting"]
[602,"persuade","persuaded","persuaded","persuades","persuading"]
[603,"phone","phoned","phoned","phones","phoning"]
[604,"place","placed","placed","places","placing"]
[605,"plan","planned","planned","plans","planning"]
[606,"play","played","played","plays","playing"]
[607,"plead","pled","pled","pleads","pleading"]
[608,"please","pleased","pleased","pleases","pleasing"]
[609,"plod","plodded","plodded","plods","plodding"]
[610,"plot","plotted","plotted","plots","plotting"]
[611,"pluck","plucked","plucked","plucks","plucking"]
[612,"ply","plied","plied","plies","plying"]
[613,"point","pointed","pointed","points","pointing"]
[614,"polish","polished","polished","polishes","polishing"]
[615,"pollute","polluted","polluted","pollutes","polluting"]
[616,"ponder","pondered","pondered","ponders","pondering"]
[617,"pour","poured","poured","pours","pouring"]
[618,"pout","pouted","pouted","pouts","pouting"]
[619,"practise","practised","practised","practises","practising"]
[620,"praise","praised","praised","praises","praising"]
[621,"pray","prayed","prayed","prays","praying"]
[622,"preach","preached","preached","preaches","preaching"]
[623,"prefer","preferred","preferred","prefers","preferring"]
[624,"prepare","prepared","prepared","prepares","preparing"]
[625,"prescribe","prescribed","prescribed","prescribes","prescribing"]
[626,"present","presented","presented","presents","presenting"]
[627,"preserve","preserved","preserved","preserves","preserving"]
[628,"preset","preset","preset","presets","presetting"]
[629,"preside","presided","presided","presides","presiding"]
[630,"press","pressed","pressed","presses","pressing"]
[631,"pretend","pretended","pretended","pretends","pretending"]
[632,"prevent","prevented","prevented","prevents","preventing"]
[633,"print","printed","printed","prints","printing"]
[634,"proceed","proceeded","proceeded","proceeds","proceeding"]
[635,"produce","produced","produced","produces","producing"]
[636,"progress","progressed","progressed","progresses","progressing"]
[637,"prohibit","prohibited","prohibited","prohibits","prohibiting"]
[638,"promise","promised","promised","promises","promising"]
[639,"propose","proposed","proposed","proposes","proposing"]
[640,"prosecute","prosecuted","prosecuted","prosecutes","prosecuting"]
[641,"protect","protected","protected","protects","protecting"]
[642,"prove","proved","proved","proves","proving"]
[643,"provide","provided","provided","provides","providing"]
[644,"pull","pulled","pulled","pulls","pulling"]
[645,"punish","punished","punished","punishes","punishing"]
[646,"purify","purified","purified","purifies","purifying"]
[647,"push","pushed","pushed","pushes","pushing"]
[648,"put","put","put","puts","putting"]
[649,"qualify","qualified","qualified","qualifies","qualifying"]
[650,"quarrel","quarrelled","quarrelled","quarrels","quarrelling"]
[651,"question","questioned","questioned","questions","questioning"]
[652,"quit","quit","quit","quits","quitting"]
[653,"race","raced","raced","races","racing"]
[654,"rain","rained","rained","rains","raining"]
[655,"rattle","rattled","rattled","rattles","rattling"]
[656,"reach","reached","reached","reaches","reaching"]
[657,"read","read","read","reads","reading"]
[658,"realize","realized","realized","realizes","realizing"]
[659,"rebuild","rebuilt","rebuilt","rebuilds","rebuilding"]
[660,"recall","recalled","recalled","recalls","recalling"]
[661,"recast","recast","recast","recasts","recasting"]
[662,"receive","received","received","receives","receiving"]
[663,"recite","recited","recited","recites","reciting"]
[664,"recognize","recognized","recognized","recognizes","recognizing"]
[665,"recollect","recollected","recollected","recollects","recollecting"]
[666,"recur","recurred","recurred","recurs","recurring"]
[667,"redo","redid","redone","redoes","redoing"]
[668,"reduce","reduced","reduced","reduces","reducing"]
[669,"refer","referred","referred","refers","referring"]
[670,"reflect","reflected","reflected","reflects","reflecting"]
[671,"refuse","refused","refused","refuses","refusing"]
[672,"regard","regarded","regarded","regards","regarding"]
[673,"regret","regretted","regretted","regrets","regretting"]
[674,"relate","related","related","relates","relating"]
[675,"relax","relaxed","relaxed","relaxes","relaxing"]
[676,"rely","relied","relied","relies","relying"]
[677,"remain","remained","remained","remains","remaining"]
[678,"remake","remade","remade","remakes","remaking"]
[679,"remove","removed","removed","removes","removing"]
[680,"rend","rent","rent","rends","rending"]
[681,"renew","renewed","renewed","renews","renewing"]
[682,"renounce","renounced","renounced","renounces","renouncing"]
[683,"repair","repaired","repaired","repairs","repairing"]
[684,"repeat","repeated","repeated","repeats","repeating"]
[685,"replace","replaced","replaced","replaces","replacing"]
[686,"reply","replied","replied","replies","replying"]
[687,"report","reported","reported","reports","reporting"]
[688,"request","requested","requested","requests","requesting"]
[689,"resell","resold","resold","resells","reselling"]
[690,"resemble","resembled","resembled","resembles","resembling"]
[691,"reset","reset","reset","resets","resetting"]
[692,"resist","resisted","resisted","resists","resisting"]
[693,"resolve","resolved","resolved","resolves","resolving"]
[694,"respect","respected","respected","respects","respecting"]
[695,"rest","rested","rested","rests","resting"]
[696,"restrain","restrained","restrained","restrains","restraining"]
[697,"retain","retained","retained","retains","retaining"]
[698,"retch","retched","retched","retches","retching"]
[699,"retire","retired","retired","retires","retiring"]
[700,"return","returned","returned","returns","returning"]
[701,"reuse","reused","reused","reuses","reusing"]
[702,"review","reviewed","reviewed","reviews","reviewing"]
[703,"rewind","rewound","rewound","rewinds","rewinding"]
[704,"rid","rid","rid","rids","ridding"]
[705,"ride","rode","ridden","rides","riding"]
[706,"ring","rang","rung","rings","ringing"]
[707,"rise","rose","risen","rises","rising"]
[708,"roar","roared","roared","roars","roaring"]
[709,"rob","robbed","robbed","robs","robbing"]
[710,"roll","rolled","rolled","rolls","rolling"]
[711,"rot","rotted","rotted","rots","rotting"]
[712,"rub","rubbed","rubbed","rubs","rubbing"]
[713,"rule","ruled","ruled","rules","ruling"]
[714,"run","ran","run","runs","running"]
[715,"rush","rushed","rushed","rushes","rushing"]
[716,"sabotage","sabotaged","sabotaged","sabotages","sabotaging"]
[717,"sack","sacked","sacked","sacks","sacking"]
[718,"sacrifice","sacrificed","sacrificed","sacrifices","sacrificing"]
[719,"sadden","saddened","saddened","saddens","saddening"]
[720,"saddle","saddled","saddled","saddles","saddling"]
[721,"sag","sagged","sagged","sags","sagging"]
[722,"sail","sailed","sailed","sails","sailing"]
[723,"sally","sallied","sallied","sallies","sallying"]
[724,"salute","saluted","saluted","salutes","saluting"]
[725,"salvage","salvaged","salvaged","salvages","salvaging"]
[726,"salve","salved","salved","salves","salving"]
[727,"sample","sampled","sampled","samples","sampling"]
[728,"sanctify","sanctified","sanctified","sanctifies","sanctifying"]
[729,"sanction","sanctioned","sanctioned","sanctions","sanctioning"]
[730,"sap","sapped","sapped","saps","sapping"]
[731,"saponify","saponified","saponified","saponifies","saponifying"]
[732,"sash","sashed","sashed","sashes","sashing"]
[733,"sashay","sashayed","sashayed","sashays","sashaying"]
[734,"sass","sassed","sassed","sasses","sassing"]
[735,"sate","sated","sated","sates","sating"]
[736,"satiate","satiated","satiated","satiates","satiating"]
[737,"satirise","satirised","satirised","satirises","satirising"]
[738,"satisfy","satisfied","satisfied","satisfies","satisfying"]
[739,"saturate","saturated","saturated","saturates","saturating"]
[740,"saunter","sauntered","sauntered","saunters","sauntering"]
[741,"save","saved","saved","saves","saving"]
[742,"savor","savored","savored","savors","savoring"]
[743,"savvy","savvied","savvied","savvies","savvying"]
[744,"saw","sawed","sawn","saws","sawing"]
[745,"say","said","said","says","saying"]
[746,"scab","scabbed","scabbed","scabs","scabbing"]
[747,"scabble","scabbled","scabbled","scabbles","scabbling"]
[748,"scald","scalded","scalded","scalds","scalding"]
[749,"scale","scaled","scaled","scales","scaling"]
[750,"scam","scammed","scammed","scams","scamming"]
[751,"scan","scanned","scanned","scans","scanning"]
[752,"scant","scanted","scanted","scants","scanting"]
[753,"scar","scarred","scarred","scars","scarring"]
[754,"scare","scared","scared","scares","scaring"]
[755,"scarify","scarified","scarified","scarifies","scarifying"]
[756,"scarp","scarped","scarped","scarps","scarping"]
[757,"scat","scatted","scatted","scats","scatting"]
[758,"scatter","scattered","scattered","scatters","scattering"]
[759,"scold","scolded","scolded","scolds","scolding"]
[760,"scorch","scorched","scorched","scorches","scorching"]
[761,"scowl","scowled","scowled","scowls","scowling"]
[762,"scrawl","scrawled","scrawled","scrawls","scrawling"]
[763,"scream","screamed","screamed","screams","screaming"]
[764,"screw","screwed","screwed","screws","screwing"]
[765,"scrub","scrubbed","scrubbed","scrubs","scrubbing"]
[766,"search","searched","searched","searches","searching"]
[767,"seat","seated","seated","seats","seating"]
[768,"secure","secured","secured","secures","securing"]
[769,"see","saw","seen","sees","seeing"]
[770,"seek","sought","sought","seeks","seeking"]
[771,"seem","seemed","seemed","seems","seeming"]
[772,"seize","seized","seized","seizes","seizing"]
[773,"select","selected","selected","selects","selecting"]
[774,"sell","sold","sold","sells","selling"]
[775,"send","sent","sent","sends","sending"]
[776,"sentence","sentenced","sentenced","sentences","sentencing"]
[777,"separate","separated","separated","separates","separating"]
[778,"set","set","set","sets","setting"]
[779,"sever","severed","severed","severs","severing"]
[780,"sew","sewed","sewn","sews","sewing"]
[781,"shake","shook","shaken","shakes","shaking"]
[782,"shape","shaped","shaped","shapes","shaping"]
[783,"share","shared","shared","shares","sharing"]
[784,"shatter","shattered","shattered","shatters","shattering"]
[785,"shave","shove","shaven","shaves","shaving"]
[786,"shear","shore","shorn","shears","shearing"]
[787,"shed","shed","shed","sheds","shedding"]
[788,"shine","shone","shone","shines","shining"]
[789,"shirk","shirked","shirked","shirks","shirking"]
[790,"shit","shit","shit","shits","shitting"]
[791,"shiver","shivered","shivered","shivers","shivering"]
[792,"shock","shocked","shocked","shocks","shocking"]
[793,"shoe","shod","shod","shoes","shoeing"]
[794,"shoot","shot","shot","shoots","shooting"]
[795,"shorten","shortened","shortened","shortens","shortening"]
[796,"shout","shouted","shouted","shouts","shouting"]
[797,"show","showed","shown","shows","showing"]
[798,"shrink","shrank","shrunk","shrinks","shrinking"]
[799,"shun","shunned","shunned","shuns","shunning"]
[800,"shut","shut","shut","shuts","shutting"]
[801,"sight","sighted","sighted","sights","sighting"]
[802,"signal","signalled","signalled","signals","signalling"]
[803,"signify","signified","signified","signifies","signifying"]
[804,"sing","sang","sung","sings","singing"]
[805,"sink","sank","sunk","sinks","sinking"]
[806,"sip","sipped","sipped","sips","sipping"]
[807,"sit","sat","sat","sits","sitting"]
[808,"ski","skied","skied","skis","skiing"]
[809,"skid","skidded","skidded","skids","skidding"]
[810,"slam","slammed","slammed","slams","slamming"]
[811,"slay","slew","slain","slays","slaying"]
[812,"sleep","slept","slept","sleeps","sleeping"]
[813,"slide","slid","slid/slide","slides","sliding"]
[814,"slim","slimmed","slimmed","slims","slimming"]
[815,"sling","slung","slung","slings","slinging"]
[816,"slink","slunk","slunk","slinks","slinking"]
[817,"slip","slipped","slipped","slips","slipping"]
[818,"slit","slit","slit","slits","slitting"]
[819,"smash","smashed","smashed","smashes","smashing"]
[820,"smell","smelt","smelt","smells","smelling"]
[821,"smile","smiled","smiled","smiles","smiling"]
[822,"smite","smote","smitten","smites","smiting"]
[823,"smooth","smoothed","smoothed","smoothes","smoothing"]
[824,"smother","smothered","smothered","smothers","smothering"]
[825,"snap","snapped","snapped","snaps","snapping"]
[826,"snatch","snatched","snatched","snatches","snatching"]
[827,"sneak","sneaked","sneaked","sneaks","sneaking"]
[828,"sneeze","sneezed","sneezed","sneezes","sneezing"]
[829,"sniff","sniffed","sniffed","sniffs","sniffing"]
[830,"soar","soared","soared","soars","soaring"]
[831,"sob","sobbed","sobbed","sobs","sobbing"]
[832,"solicit","solicited","solicited","solicits","soliciting"]
[833,"solve","solved","solved","solves","solving"]
[834,"soothe","soothed","soothed","soothes","soothing"]
[835,"sort","sorted","sorted","sorts","sorting"]
[836,"sow","sowed","sowed","sows","sowing"]
[837,"sparkle","sparkled","sparkled","sparkles","sparkling"]
[838,"speak","spoke","spoken","speaks","speaking"]
[839,"speed","sped","sped","speeds","speeding"]
[840,"spell","spelt","spelt","spells","spelling"]
[841,"spend","spent","spent","spends","spending"]
[842,"spill","spilt","spilt","spills","spilling"]
[843,"spin","span/spun","spun","spins","spinning"]
[844,"spit","spat/spit","spat/spit","spits","spitting"]
[845,"split","split","split","splits","splitting"]
[846,"spoil","spoilt","spoilt","spoils","spoiling"]
[847,"spray","sprayed","sprayed","sprays","spraying"]
[848,"spread","spread","spread","spreads","spreading"]
[849,"spring","sprang","sprung","springs","springing"]
[850,"sprout","sprouted","sprouted","sprouts","sprouting"]
[851,"squeeze","squeezed","squeezed","squeezes","squeezing"]
[852,"stand","stood","stood","stands","standing"]
[853,"stare","stared","stared","stares","staring"]
[854,"start","started","started","starts","starting"]
[855,"state","stated","stated","states","stating"]
[856]
[857,"stay","stayed","stayed","stays","staying"]
[858,"steal","stole","stolen","steals","stealing"]
[859,"steep","steeped","steeped","steeps","steeping"]
[860,"stem","stemmed","stemmed","stems","stemming"]
[861,"step","stepped","stepped","steps","stepping"]
[862,"sterilize","sterilized","sterilized","sterilizes","sterilizing"]
[863,"stick","stuck","stuck","sticks","sticking"]
[864,"stimulate","stimulated","stimulated","stimulates","stimulating"]
[865,"sting","stung","stung","stings","stinging"]
[866,"stink","stank","stunk","stinks","stinking"]
[867,"stir","stirred","stirred","stirs","stirring"]
[868,"stitch","stitched","stitched","stitches","stitching"]
[869,"stoop","stooped","stooped","stoops","stooping"]
[870,"stop","stopped","stopped","stops","stopping"]
[871,"store","stored","stored","stores","storing"]
[872,"strain","strained","strained","strains","straining"]
[873,"stray","strayed","strayed","strays","straying"]
[874,"stress","stressed","stressed","stresses","stressing"]
[875,"stretch","stretched","stretched","stretches","stretching"]
[876,"strew","strewed","strewn","strews","strewing"]
[877,"stride","strode","stridden","strides","striding"]
[878,"strike","struck","struck/stricken","strikes","striking"]
[879,"string","strung","strung","strings","stringing"]
[880,"strive","strove","striven","strives","striving"]
[881,"study","studied","studied","studies","studying"]
[882,"submit","submitted","submitted","submits","submitting"]
[883,"subscribe","subscribed","subscribed","subscribes","subscribing"]
[884,"subtract","subtracted","subtracted","subtracts","subtracting"]
[885,"succeed","succeeded","succeeded","succeeds","succeeding"]
[886,"suck","sucked","sucked","sucks","sucking"]
[887,"suffer","suffered","suffered","suffers","suffering"]
[888,"suggest","suggested","suggested","suggests","suggesting"]
[889,"summon","summoned","summoned","summons","summoning"]
[890,"supply","supplied","supplied","supplies","supplying"]
[891,"support","supported","supported","supports","supporting"]
[892,"suppose","supposed","supposed","supposes","supposing"]
[893,"surge","surged","surged","surges","surging"]
[894,"surmise","surmised","surmised","surmises","surmising"]
[895,"surpass","surpassed","surpassed","surpasses","surpassing"]
[896,"surround","surrounded","surrounded","surrounds","surrounding"]
[897,"survey","surveyed","surveyed","surveys","surveying"]
[898,"survive","survived","survived","survives","surviving"]
[899,"swallow","swallowed","swallowed","swallows","swallowing"]
[900,"sway","swayed","swayed","sways","swaying"]
[901,"swear","swore","sworn","swears","swearing"]
[902,"sweat","sweat","sweat","sweats","sweating"]
[903,"sweep","swept","swept","sweeps","sweeping"]
[904,"swell","swelled","swollen","swells","swelling"]
[905,"swim","swam","swum","swims","swimming"]
[906,"swing","swung","swung","swings","swinging"]
[907,"swot","swotted","swotted","swots","swotting"]
[908,"take","took","taken","takes","taking"]
[909,"talk","talked","talked","talks","talking"]
[910,"tap","tapped","tapped","taps","tapping"]
[911,"taste","tasted","tasted","tastes","tasting"]
[912,"tax","taxed","taxed","taxes","taxing"]
[913,"teach","taught","taught","teaches","teaching"]
[914,"tear","tore","torn","tears","tearing"]
[915,"tee","teed","teed","tees","teeing"]
[916,"tell","told","told","tells","telling"]
[917,"tempt","tempted","tempted","tempts","tempting"]
[918,"tend","tended","tended","tends","tending"]
[919,"terminate","terminated","terminated","terminates","terminating"]
[920,"terrify","terrified","terrified","terrifies","terrifying"]
[921,"test","tested","tested","tests","testing"]
[922,"thank","thanked","thanked","thanks","thanking"]
[923,"think","thought","thought","thinks","thinking"]
[924,"thrive","throve","thriven","thrives","thriving"]
[925,"throw","threw","thrown","throws","throwing"]
[926,"thrust","thrust","thrust","thrusts","thrusting"]
[927,"thump","thumped","thumped","thumps","thumping"]
[928,"tie","tied","tied","ties","tying"]
[929,"tire","tired","tired","tires","tiring"]
[930,"toss","tossed","tossed","tosses","tossing"]
[931,"touch","touched","touched","touches","touching"]
[932,"train","trained","trained","trains","training"]
[933,"trample","trampled","trampled","tramples","trampling"]
[934,"transfer","transferred","transferred","transfers","transferring"]
[935,"transform","transformed","transformed","transforms","transforming"]
[936,"translate","translated","translated","translates","translating"]
[937,"trap","trapped","trapped","traps","trapping"]
[938,"travel","travelled","travelled","travels","travelling"]
[939,"tread","trod","trodden","treads","treading"]
[940,"treasure","treasured","treasured","treasures","treasuring"]
[941,"treat","treated","treated","treats","treating"]
[942,"tree","treed","treed","trees","treeing"]
[943,"tremble","trembled","trembled","trembles","trembling"]
[944,"triumph","triumphed","triumphed","triumphs","triumphing"]
[945,"trust","trusted","trusted","trusts","trusting"]
[946,"try","tried","tried","tries","trying"]
[947,"turn","turned","turned","turns","turning"]
[948,"type","typed","typed","types","typing"]
[949,"typeset","typeset","typeset","typesets","typesetting"]
[950,"understand","understood","understood","understands","understanding"]
[951,"undo","undid","undone","undoes","undoing"]
[952,"uproot","uprooted","uprooted","uproots","uprooting"]
[953,"upset","upset","upset","upsets","upsetting"]
[954,"urge","urged","urged","urges","urging"]
[955,"use","used","used","uses","using"]
[956,"utter","uttered","uttered","utters","uttering"]
[957,"value","valued","valued","values","valuing"]
[958,"vanish","vanished","vanished","vanishes","vanishing"]
[959,"vary","varied","varied","varies","varying"]
[960,"verify","verified","verified","verifies","verifying"]
[961,"vex","vexed","vexed","vexes","vexing"]
[962,"vie","vied","vied","vies","vying"]
[963,"view","viewed","viewed","views","viewing"]
[964,"violate","violated","violated","violates","violating"]
[965,"vomit","vomited","vomited","vomits","vomiting"]
[966,"wake","woke","woken","wakes","waking"]
[967,"walk","walked","walked","walks","walking"]
[968,"wander","wandered","wandered","wanders","wandering"]
[969,"want","wanted","wanted","wants","wanting"]
[970,"warn","warned","warned","warns","warning"]
[971,"waste","wasted","wasted","wastes","wasting"]
[972,"watch","watched","watched","watches","watching"]
[973,"water","watered","watered","waters","watering"]
[974,"wave","waved","waved","waves","waving"]
[975,"wax","waxed","waxed","waxes","waxing"]
[976,"waylay","waylaid","waylaid","waylays","waylaying"]
[977,"wear","wore","worn","wears","wearing"]
[978,"weave","wove","woven","weaves","weaving"]
[979,"wed","wed","wed","weds","wedding"]
[980,"weep","wept","wept","weeps","weeping"]
[981,"weigh","weighed","weighed","weighs","weighing"]
[982,"welcome","welcomed","welcomed","welcomes","welcoming"]
[983,"wend","went","went","wends","wending"]
[984,"wet","wet","wet","wets","wetting"]
[985,"whip","whipped","whipped","whips","whipping"]
[986,"whisper","whispered","whispered","whispers","whispering"]
[987,"win","won","won","wins","winning"]
[988,"wind","wound","wound","winds","winding"]
[989,"wish","wished","wished","wishes","wishing"]
[990,"withdraw","withdrew","withdrawn","withdraws","withdrawing"]
[991,"work","worked","worked","works","working"]
[992,"worry","worried","worried","worries","worrying"]
[993,"worship","worshipped","worshipped","worships","worshipping"]
[994,"wring","wrung","wrung","wrings","wringing"]
[995,"write","wrote","written","writes","writing"]
[996,"yawn","yawned","yawned","yawns","yawning"]
[997,"yell","yelled","yelled","yells","yelling"]
[998,"yield","yielded","yielded","yields","yielding"]
[999,"zinc","zincked","zincked","zincs","zincking"]
[1000,"zoom","zoomed","zoomed","zooms","zooming"]

{"sheet":"Sheet1 (2)","index":4,"n_rows":1007,"n_cols":7,"rows_kept":1007,"cut":false,"hidden":false,"merged":[]}
[]
[null,"S.No.","Base Form","Past Form","Past Participle Form","s / es/ ies","‘ing’ form"]
[]
[]
[]
[]
[null,null,null,null,null,"accepts","accepting"]
["s",1,"abash","abashed","abashed"]
[null,2,"abate","abated","abated"]
["s",3,"abide","abode","abode"]
["s",4,"absorb","absorbed","absorbed","abides","abiding"]
[null,5,"accept","accepted","accepted"]
[null,6,"accompany","accompanied","accompanied","accompanies","accompanying"]
[null,7,"ache","ached","ached","aches","aching"]
[null,8,"achieve","achieved","achieved","achieves","achieving"]
[null,9,"acquire","acquired","acquired","acquires","acquiring"]
[null,10,"act","acted","acted","acts","acting"]
[null,11,"add","added","added","adds","adding"]
[null,12,"address","addressed","addressed","addresses","addressing"]
[null,13,"adjust","adjusted","adjusted","adjusts","adjusting"]
[null,14,"admire","admired","admired","admires","admiring"]
[null,15,"admit","admitted","admitted","admits","admitting"]
[null,16,"advise","advised","advised","advises","advising"]
[null,17,"afford","afforded","afforded","affords","affording"]
[null,18,"agree","agreed","agreed","agrees","agreeing"]
[null,19,"alight","alit","alit","alights","alighting"]
[null,20,"allow","allowed","allowed","allows","allowing"]
[null,21,"animate","animated","animated","animates","animating"]
[null,22,"announce","announced","announced","announces","announcing"]
[null,23,"answer","answered","answered","answers","answering"]
[null,24,"apologize","apologized","apologized","apologizes","apologizing"]
[null,25,"appear","appeared","appeared","appears","appearing"]
[null,26,"applaud","applauded","applauded","applauds","applauding"]
[null,27,"apply","applied","applied","applies","applying"]
[null,28,"approach","approached","approached","approaches","approaching"]
[null,29,"approve","approved","approved","approves","approving"]
[null,30,"argue","argued","argued","argues","arguing"]
[null,31,"arise","arose","arisen","arises","arising"]
[null,32,"arrange","arranged","arranged","arranges","arranging"]
[null,33,"arrest","arrested","arrested","arrests","arresting"]
[null,34,"ask","asked","asked","asks","asking"]
[null,35,"assert","asserted","asserted","asserts","asserting"]
[null,36,"assort","assorted","assorted","assorts","assorting"]
[null,37,"astonish","astonished","astonished","astonishes","astonishing"]
[null,38,"attack","attacked","attacked","attacks","attacking"]
[null,39,"attend","attended","attended","attends","attending"]
[null,40,"attract","attracted","attracted","attracts","attracting"]
[null,41,"audit","audited","audited","audits","auditing"]
[null,42,"avoid","avoided","avoided","avoids","avoiding"]
[null,43,"awake","awoke","awoken","awakes","awaking"]
[null,44,"bang","banged","banged","bangs","banging"]
[null,45,"banish","banished","banished","banishes","banishing"]
[null,46,"bash","bashed","bashed","bashes","bashing"]
[null,47,"bat","batted","batted","bats","batting"]
[null,48,"be (am,are)","was / were","been","is","being"]
[null,49,"bear","bore","born","bears","bearing"]
[null,50,"bear","bore","borne","bears","bearing"]
[null,51,"beat","beat","beaten","beats","beating"]
[null,52,"beautify","beautified","beautified","beautifies","beautifying"]
[null,53,"become","became","become","becomes","becoming"]
[null,54,"befall","befell","befallen","befalls","befalling"]
[null,55,"beg","begged","begged","begs","begging"]
[null,56,"begin","began","begun","begins","beginning"]
[null,57,"behave","behaved","behaved","behaves","behaving"]
[null,58,"behold","beheld","beheld","beholds","beholding"]
[null,59,"believe","believed","believed","believes","believing"]
[null,60,"belong","belonged","belonged","belongs","belonging"]
[null,61,"bend","bent","bent","bends","bending"]
[null,62,"bereave","bereft","bereft","bereaves","bereaving"]
[null,63,"beseech","besought","besought","beseeches","beseeching"]
[null,64,"bet","bet","bet","bets","betting"]
[null,65,"betray","betrayed","betrayed","betrays","betraying"]
[null,66,"bid","bade","bidden","bids","bidding"]
[null,67,"bid","bid","bid","bids","bidding"]
[null,68,"bind","bound","bound","binds","binding"]
[null,69,"bite","bit","bitten","bites","biting"]
[null,70,"bleed","bled","bled","bleeds","bleeding"]
[null,71,"bless","blessed","blessed","blesses","blessing"]
[null,72,"blossom","blossomed","blossomed","blossoms","blossoming"]
[null,73,"blow","blew","blown","blows","blowing"]
[null,74,"blur","blurred","blurred","blurs","blurring"]
[null,75,"blush","blushed","blushed","blushes","blushing"]
[null,76,"board","boarded","boarded","boards","boarding"]
[null,77,"boast","boasted","boasted","boasts","boasting"]
[null,78,"boil","boiled","boiled","boils","boiling"]
[null,79,"bow","bowed","bowed","bows","bowing"]
[null,80,"box","boxed","boxed","boxes","boxing"]
[null,81,"bray","brayed","brayed","brays","braying"]
[null,82,"break","broke","broken","breaks","breaking"]
[null,83,"breathe","breathed","breathed","breathes","breathing"]
[null,84,"breed","bred","bred","breeds","breeding"]
[null,85,"bring","brought","brought","brings","bringing"]
[null,86,"broadcast","broadcast","broadcast","broadcasts","broadcasting"]
[null,87,"brush","brushed","brushed","brushes","brushing"]
[null,88,"build","built","built","builds","building"]
[null,89,"burn","burnt","burnt","burns","burning"]
[null,90,"burst","burst","burst","bursts","bursting"]
[null,91,"bury","buried","buried","buries","burying"]
[null,92,"bust","bust","bust","busts","busting"]
[null,93,"buy","bought","bought","buys","buying"]
[null,94,"buzz","buzzed","buzzed","buzzes","buzzing"]
[null,95,"calculate","calculated","calculated","calculates","calculating"]
[null,96,"call","called","called","calls","calling"]
[null,97,"canvass","canvassed","canvassed","canvasses","canvassing"]
[null,98,"capture","captured","captured","captures","capturing"]
[null,99,"caress","caressed","caressed","caresses","caressing"]
[null,100,"carry","carried","carried","carries","carrying"]
[null,101,"carve","carved","carved","carves","carving"]
[null,102,"cash","cashed","cashed","cashes","cashing"]
[null,103,"cast","cast","cast","casts","casting"]
[null,104,"catch","caught","caught","catches","catching"]
[null,105,"cause","caused","caused","causes","causing"]
[null,106,"cease","ceased","ceased","ceases","ceasing"]
[null,107,"celebrate","celebrated","celebrated","celebrates","celebrating"]
[null,108,"challenge","challenged","challenged","challenges","challenging"]
[null,109,"change","changed","changed","changes","changing"]
[null,110,"charge","charged","charged","charges","charging"]
[null,111,"chase","chased","chased","chases","chasing"]
[null,112,"chat","chatted","chatted","chats","chatting"]
[null,113,"check","checked","checked","checks","checking"]
[null,114,"cheer","cheered","cheered","cheers","cheering"]
[null,115,"chew","chewed","chewed","chews","chewing"]
[null,116,"chide","chid","chid/chidden","chides","chiding"]
[null,117,"chip","chipped","chipped","chips","chipping"]
[null,118,"choke","choked","choked","chokes","choking"]
[null,119,"choose","chose","chosen","chooses","choosing"]
[null,120,"classify","classified","classified","classifies","classifying"]
[null,121,"clean","cleaned","cleaned","cleans","cleaning"]
[null,122,"cleave","clove/cleft","cloven/cleft","cleaves","cleaving"]
[null,123,"click","clicked","clicked","clicks","clicking"]
[null,124,"climb","climbed","climbed","climbs","climbing"]
[null,125,"cling","clung","clung","clings","clinging"]
[null,126,"close","closed","closed","closes","closing"]
[null,127,"clothe","clad","clad","clothes","clothing"]
[null,128,"clutch","clutched","clutched","clutches","clutching"]
[null,129,"collapse","collapsed","collapsed","collapses","collapsing"]
[null,130,"collect","collected","collected","collects","collecting"]
[null,131,"colour","coloured","coloured","colours","colouring"]
[null,132,"come","came","come","comes","coming"]
[null,133,"comment","commented","commented","comments","commenting"]
[null,134,"compare","compared","compared","compares","comparing"]
[null,135,"compel","compelled","compelled","compels","compelling"]
[null,136,"compete","competed","competed","competes","competing"]
[null,137,"complain","complained","complained","complains","complaining"]
[null,138,"complete","completed","completed","completes","completing"]
[null,139,"conclude","concluded","concluded","concludes","concluding"]
[null,140,"conduct","conducted","conducted","conducts","conducting"]
[null,141,"confess","confessed","confessed","confesses","confessing"]
[null,142,"confine","confined","confined","confines","confining"]
[null,143,"confiscate","confiscated","confiscated","confiscates","confiscating"]
[null,144,"confuse","confused","confused","confuses","confusing"]
[null,145,"congratulate","congratulated","congratulated","congratulates","congratulating"]
[null,146,"connect","connected","connected","connects","connecting"]
[null,147,"connote","connoted","connoted","connotes","connoting"]
[null,148,"conquer","conquered","conquered","conquers","conquering"]
[null,149,"consecrate","consecrated","consecrated","consecrates","consecrating"]
[null,150,"consent","consented","consented","consents","consenting"]
[null,151,"conserve","conserved","conserved","conserves","conserving"]
[null,152,"consider","considered","considered","considers","considering"]
[null,153,"consign","consigned","consigned","consigns","consigning"]
[null,154,"consist","consisted","consisted","consists","consisting"]
[null,155,"console","consoled","consoled","consoles","consoling"]
[null,156,"consort","consorted","consorted","consorts","consorting"]
[null,157,"conspire","conspired","conspired","conspires","conspiring"]
[null,158,"constitute","constituted","constituted","constitutes","constituting"]
[null,159,"constrain","constrained","constrained","constrains","constraining"]
[null,160,"construct","constructed","constructed","constructs","constructing"]
[null,161,"construe","construed","construed","construes","construing"]
[null,162,"consult","consulted","consulted","consults","consulting"]
[null,163,"contain","contained","contained","contains","containing"]
[null,164,"contemn","contemned","contemned","contemns","contemning"]
[null,165,"contend","contended","contended","contends","contending"]
[null,166,"contest","contested","contested","contests","contesting"]
[null,167,"continue","continued","continued","continues","continuing"]
[null,168,"contract","contracted","contracted","contracts","contracting"]
[null,169,"contradict","contradicted","contradicted","contradicts","contradicting"]
[null,170,"contrast","contrasted","contrasted","contrasts","contrasting"]
[null,171,"contribute","contributed","contributed","contributes","contributing"]
[null,172,"contrive","contrived","contrived","contrives","contriving"]
[null,173,"control","controlled","controlled","controls","controlling"]
[null,174,"convene","convened","convened","convenes","convening"]
[null,175,"converge","converged","converged","converges","converging"]
[null,176,"converse","conversed","conversed","converses","conversing"]
[null,177,"convert","converted","converted","converts","converting"]
[null,178,"convey","conveyed","conveyed","conveys","conveying"]
[null,179,"convict","convicted","convicted","convicts","convicting"]
[null,180,"convince","convinced","convinced","convinces","convincing"]
[null,181,"coo","cooed","cooed","coos","cooing"]
[null,182,"cook","cooked","cooked","cooks","cooking"]
[null,183,"cool","cooled","cooled","cools","cooling"]
[null,184,"co-operate","co-operated","co-operated","co-operates","co-operating"]
[null,185,"cope","coped","cope","copes","coping"]
[null,186,"copy","copied","copied","copies","copying"]
[null,187,"correct","corrected","corrected","corrects","correcting"]
[null,188,"correspond","corresponded","corresponded","corresponds","corresponding"]
[null,189,"corrode","corroded","corroded","corrodes","corroding"]
[null,190,"corrupt","corrupted","corrupted","corrupts","corrupting"]
[null,191,"cost","cost","cost","costs","costing"]
[null,192,"cough","coughed","coughed","coughs","coughing"]
[null,193,"counsel","counselled","counselled","counsels","counselling"]
[null,194,"count","counted","counted","counts","counting"]
[null,195,"course","coursed","coursed","courses","coursing"]
[null,196,"cover","covered","covered","covers","covering"]
[null,197,"cower","cowered","cowered","cowers","cowering"]
[null,198,"crack","cracked","cracked","cracks","cracking"]
[null,199,"crackle","crackled","crackled","crackles","crackling"]
[null,200,"crash","crashed","crashed","crashes","crashing"]
[null,201,"crave","craved","craved","craves","craving"]
[null,202,"create","created","created","creates","creating"]
[null,203,"creep","crept","crept","creeps","creeping"]
[null,204,"crib","cribbed","cribbed","cribs","cribbing"]
[null,205,"cross","crossed","crossed","crosses","crossing"]
[null,206,"crowd","crowded","crowded","crowds","crowding"]
[null,207,"crush","crushed","crushed","crushes","crushing"]
[null,208,"cry","cried","cried","cries","crying"]
[null,209,"curb","curbed","curbed","curbs","curbing"]
[null,210,"cure","cured","cured","cures","curing"]
[null,211,"curve","curved","curved","curves","curving"]
[null,212,"cut","cut","cut","cuts","cutting"]
[null,213,"cycle","cycled","cycled","cycles","cycling"]
[null,214,"damage","damaged","damaged","damages","damaging"]
[null,215,"damp","damped","damped","damps","damping"]
[null,216,"dance","danced","danced","dances","dancing"]
[null,217,"dare","dared","dared","dares","daring"]
[null,218,"dash","dashed","dashed","dashes","dashing"]
[null,219,"dazzle","dazzled","dazzled","dazzles","dazzling"]
[null,220,"deal","dealt","dealt","deals","dealing"]
[null,221,"decay","decayed","decayed","decays","decaying"]
[null,222,"decide","decided","decided","decides","deciding"]
[null,223,"declare","declared","declared","declares","declaring"]
[null,224,"decorate","decorated","decorated","decorates","decorating"]
[null,225,"decrease","decreased","decreased","decreases","decreasing"]
[null,226,"dedicate","dedicated","dedicated","dedicates","dedicating"]
[null,227,"delay","delayed","delayed","delays","delaying"]
[null,228,"delete","deleted","deleted","deletes","deleting"]
[null,229,"deny","denied","denied","denies","denying"]
[null,230,"depend","depended","depended","depends","depending"]
[null,231,"deprive","deprived","deprived","deprives","depriving"]
[null,232,"derive","derived","derived","derives","deriving"]
[null,233,"describe","described","described","describes","describing"]
[null,234,"desire","desired","desired","desires","desiring"]
[null,235,"destroy","destroyed","destroyed","destroys","destroying"]
[null,236,"detach","detached","detached","detaches","detaching"]
[null,237,"detect","detected","detected","detects","detecting"]
[null,238,"determine","determined","determined","determines","determining"]
[null,239,"develop","developed","developed","develops","developing"]
[null,240,"die","died","died","dies","dying"]
[null,241,"differ","differed","differed","differs","differing"]
[null,242,"dig","dug","dug","digs","digging"]
[null,243,"digest","digested","digested","digests","digesting"]
[null,244,"dim","dimmed","dimmed","dims","dimming"]
[null,245,"diminish","diminished","diminished","diminishes","diminishing"]
[null,246,"dine","dined","dined","dines","dining"]
[null,247,"dip","dipped","dipped","dips","dipping"]
[null,248,"direct","directed","directed","directs","directing"]
[null,249,"disappear","disappeared","disappeared","disappears","disappearing"]
[null,250,"discover","discovered","discovered","discovers","discovering"]
[null,251,"discuss","discussed","discussed","discusses","discussing"]
[null,252,"disobey","disobeyed","disobeyed","disobeys","disobeying"]
[null,253,"display","displayed","displayed","displays","displaying"]
[null,254,"dispose","disposed","disposed","disposes","disposing"]
[null,255,"distribute","distributed","distributed","distributes","distributing"]
[null,256,"disturb","disturbed","disturbed","disturbs","disturbing"]
[null,257,"disuse","disused","disused","disuses","disusing"]
[null,258,"dive","dived ","dived","dives","diving"]
[null,259,"divide","divided","divided","divides","dividing"]
[null,260,"do","did","done","does","doing"]
[null,261,"donate","donated","donated","donates","donating"]
[null,262,"download","downloaded","downloaded","downloads","downloading"]
[null,263,"drag","dragged","dragged","drags","dragging"]
[null,264,"draw","drew","drawn","draws","drawing"]
[null,265,"dream","dreamt","dreamt","dreams","dreaming"]
[null,266,"dress","dressed","dressed","dresses","dressing"]
[null,267,"drill","drilled","drilled","drills","drilling"]
[null,268,"drink","drank","drunk","drinks","drinking"]
[null,269,"drive","drove","driven","drives","driving"]
[null,270,"drop","dropped","dropped","drops","dropping"]
[null,271,"dry","dried","dried","dries","drying"]
[null,272,"dump","dumped","dumped","dumps","dumping"]
[null,273,"dwell","dwelt","dwelt","dwells","dwelling"]
[null,274,"dye","dyed","dyed","dyes","dyeing"]
[null,275,"earn","earned","earned","earns","earning"]
[null,276,"eat","ate","eaten","eats","eating"]
[null,277,"educate","educated","educated","educates","educating"]
[null,278,"empower","empowered","empowered","empowers","empowering"]
[null,279,"empty","emptied","emptied","empties","emptying"]
[null,280,"encircle","encircled","encircled","encircles","encircling"]
[null,281,"encourage","encouraged","encouraged","encourages","encouraging"]
[null,282,"encroach","encroached","encroached","encroaches","encroaching"]
[null,283,"endanger","endangered","endangered","endangers","entangling"]
[null,284,"endorse","endorsed","endorsed","endorses","endorsing"]
[null,285,"endure","endured","endured","endures","enduring"]
[null,286,"engrave","engraved","engraved","engraves","engraving"]
[null,287,"enjoy","enjoyed","enjoyed","enjoys","enjoying"]
[null,288,"enlarge","enlarged","enlarged","enlarges","enlarging"]
[null,289,"enlighten","enlightened","enlightened","enlightens","enlightening"]
[null,290,"enter","entered","entered","enters","entering"]
[null,291,"envy","envied","envied","envies","envying"]
[null,292,"erase","erased","erased","erases","erasing"]
[null,293,"escape","escaped","escaped","escapes","escaping"]
[null,294,"evaporate","evaporated","evaporated","evaporates","evaporating"]
[null,295,"exchange","exchanged","exchanged","exchanges","exchanging"]
[null,296,"exclaim","exclaimed","exclaimed","exclaims","exclaiming"]
[null,297,"exclude","excluded","excluded","excludes","excluding"]
[null,298,"exist","existed","existed","exists","existing"]
[null,299,"expand","expanded","expanded","expands","expanding"]
[null,300,"expect","expected","expected","expects","expecting"]
[null,301,"explain","explained","explained","explains","explaining"]
[null,302,"explore","explored","explored","explores","exploring"]
[null,303,"express","expressed","expressed","expresses","expressing"]
[null,304,"extend","extended","extended","extends","extending"]
[null,305,"eye","eyed","eyed","eyes","eyeing"]
[null,306,"face","faced","faced","faces","facing"]
[null,307,"fail","failed","failed","fails","failing"]
[null,308,"faint","fainted","fainted","faints","fainting"]
[null,309,"fall","fell","fallen","falls","falling"]
[null,310,"fan","fanned","fanned","fans","fanning"]
[null,311,"fancy","fancied","fancied","fancies","fancying"]
[null,312,"favour","favoured","favoured","favours","favouring"]
[null,313,"fax","faxed","faxed","faxes","faxing"]
[null,314,"feed","fed","fed","feeds","feeding"]
[null,315,"feel","felt","felt","feels","feeling"]
[null,316,"ferry","ferried","ferried","ferries","ferrying"]
[null,317,"fetch","fetched","fetched","fetches","fetching"]
[null,318,"fight","fought","fought","fights","fighting"]
[null,319,"fill","filled","filled","fills","filling"]
[null,320,"find","found","found","finds","finding"]
[null,321,"finish","finished","finished","finishes","finishing"]
[null,322,"fish","fished","fished","fishes","fishing"]
[null,323,"fit","fit/fitted","fit/fitted","fits","fitting"]
[null,324,"fix","fixed","fixed","fixes","fixing"]
[null,325,"fizz","fizzed","fizzed","fizzes","fizzing"]
[null,326,"flap","flapped","flapped","flaps","flapping"]
[null,327,"flash","flashed","flashed","flashes","flashing"]
[null,328,"flee","fled","fled","flees","fleeing"]
[null,329,"fling","flung","flung","flings","flinging"]
[null,330,"float","floated","floated","floats","floating"]
[null,331,"flop","flopped","flopped","flops","flopping"]
[null,332,"fly","flew","flown","flies","flying"]
[null,333,"fold","folded","folded","folds","folding"]
[null,334,"follow","followed","followed","follows","following"]
[null,335,"forbid","forbade","forbidden","forbids","forbidding"]
[null,336,"force","forced","forced","forces","forcing"]
[null,337,"forecast","forecast","forecast","forecasts","forecasting"]
[null,338,"foretell","foretold","foretold","foretells","foretelling"]
[null,339,"forget","forgot","forgotten","forgets","forgetting"]
[null,340,"forgive","forgave","forgiven","forgives","forgiving"]
[null,341,"forlese","forlore","forlorn","forlese","forlesing"]
[null,342,"form","formed","formed","forms","forming"]
[null,343,"forsake","forsook","forsaken","forsakes","forsaking"]
[null,344,"found","founded","founded","founds","founding"]
[null,345,"frame","framed","framed","frames","framing"]
[null,346,"free","freed","freed","frees","freeing"]
[null,347,"freeze","froze","frozen","freezes","freezing"]
[null,348,"frighten","frightened","frightened","frightens","frightening"]
[null,349,"fry","fried","fried","fries","frying"]
[null,350,"fulfil","fulfilled","fulfilled","fulfils","fulfilling"]
[null,351,"gag","gagged","gagged","gags","gagging"]
[null,352,"gain","gained","gained","gains","gaining"]
[null,353,"gainsay","gainsaid","gainsaid","gainsays","gainsaying"]
[null,354,"gash","gashed","gashed","gashes","gashing"]
[null,355,"gaze","gazed","gazed","gazes","gazing"]
[null,356,"get","got","got","gets","getting"]
[null,357,"give","gave","given","gives","giving"]
[null,358,"glance","glanced","glanced","glances","glancing"]
[null,359,"glitter","glittered","glittered","glitters","glittering"]
[null,360,"glow","glowed","glowed","glows","glowing"]
[null,361,"go","went","gone","goes","going"]
[null,362,"google","googled","googled","googles","googling"]
[null,363,"govern","governed","governed","governs","governing"]
[null,364,"grab","grabbed","grabbed","grabs","grabbing"]
[null,365,"grade","graded","graded","grades","grading"]
[null,366,"grant","granted","granted","grants","granting"]
[null,367,"greet","greeted","greeted","greets","greeting"]
[null,368,"grind","ground","ground","grinds","grinding"]
[null,369,"grip","gripped","gripped","grips","gripping"]
[null,370,"grow","grew","grown","grows","growing"]
[null,371,"guard","guarded","guarded","guards","guarding"]
[null,372,"guess","guessed","guessed","guesses","guessing"]
[null,373,"guide","guided","guided","guides","guiding"]
[null,374,"handle","handled","handled","handles","handling"]
[null,375,"hang","hung","hung","hangs","hanging"]
[null,376,"happen","happened","happened","happens","happening"]
[null,377,"harm","harmed","harmed","harms","harming"]
[null,378,"hatch","hatched","hatched","hatches","hatching"]
[null,379,"hate","hated","hated","hates","hating"]
[null,380,"have","had","had","has","having"]
[null,381,"heal","healed","healed","heals","healing"]
[null,382,"hear","heard","heard","hears","hearing"]
[null,383,"heave","hove","hove","heaves","heaving"]
[null,384,"help","helped","helped","helps","helping"]
[null,385,"hew","hewed","hewn","hews","hewing"]
[null,386,"hide","hid","hidden","hides","hiding"]
[null,387,"hinder","hindered","hindered","hinders","hindering"]
[null,388,"hiss","hissed","hissed","hisses","hissing"]
[null,389,"hit","hit","hit","hits","hitting"]
[null,390,"hoax","hoaxed","hoaxed","hoaxes","hoaxing"]
[null,391,"hold","held","held","holds","holding"]
[null,392,"hop","hopped","hopped","hops","hopping"]
[null,393,"hope","hoped","hoped","hopes","hoping"]
[null,394,"horrify","horrified","horrified","horrifies","horrifying"]
[null,395,"hug","hugged","hugged","hugs","hugging"]
[null,396,"hum","hummed","hummed","hums","humming"]
[null,397,"humiliate","humiliated","humiliated","humiliates","humiliating"]
[null,398,"hunt","hunted","hunted","hunts","hunting"]
[null,399,"hurl","hurled","hurled","hurls","hurling"]
[null,400,"hurry","hurried","hurried","hurries","hurrying"]
[null,401,"hurt","hurt","hurt","hurts","hurting"]
[null,402,"hush","hushed","hushed","hushes","hushing"]
[null,403,"hustle","hustled","hustled","hustles","hustling"]
[null,404,"hypnotize","hypnotized","hypnotized","hypnotizes","hypnotizing"]
[null,405,"idealize","idealized","idealized","idealizes","idealizing"]
[null,406,"identify","identified","identified","identifies","identifying"]
[null,407,"idolize","idolized","idolized","idolizes","idolizing"]
[null,408,"ignite","ignited","ignited","ignites","igniting"]
[null,409,"ignore","ignored","ignored","ignores","ignoring"]
[null,410,"ill-treat","ill-treated","ill-treated","ill-treats","ill-treating"]
[null,411,"illuminate","illuminated","illuminated","illuminates","illuminating"]
[null,412,"illumine","illumined","illumined","illumines","illumining"]
[null,413,"illustrate","illustrated","illustrated","illustrates","illustrating"]
[null,414,"imagine","imagined","imagined","imagines","imagining"]
[null,415,"imbibe","imbibed","imbibed","imbibes","imbibing"]
[null,416,"imitate","imitated","imitated","imitates","imitating"]
[null,417,"immerse","immersed","immersed","immerses","immersing"]
[null,418,"immolate","immolated","immolated","immolates","immolating"]
[null,419,"immure","immured","immured","immures","immuring"]
[null,420,"impair","impaired","impaired","impairs","impairing"]
[null,421,"impart","imparted","imparted","imparts","imparting"]
[null,422,"impeach","impeached","impeached","impeaches","impeaching"]
[null,423,"impede","impeded","impeded","impedes","impeding"]
[null,424,"impel","impelled","impelled","impels","impelling"]
[null,425,"impend","impended","impended","impends","impending"]
[null,426,"imperil","imperilled","imperilled","imperils","imperilling"]
[null,427,"impinge","impinged","impinged","impinges","impinging"]
[null,428,"implant","implanted","implanted","implants","implanting"]
[null,429,"implicate","implicated","implicated","implicates","implicating"]
[null,430,"implode","imploded","imploded","implodes","imploding"]
[null,431,"implore","implored","implored","implores","imploring"]
[null,432,"imply","implied","implied","implies","implying"]
[null,433,"import","imported","imported","imports","importing"]
[null,434,"impose","imposed","imposed","imposes","imposing"]
[null,435,"impress","impressed","impressed","impresses","impressing"]
[null,436,"imprint","imprinted","imprinted","imprints","imprinting"]
[null,437,"imprison","imprisoned","imprisoned","imprisons","imprisoning"]
[null,438,"improve","improved","improved","improves","improving"]
[null,439,"inaugurate","inaugurated","inaugurated","inaugurates","inaugurating"]
[null,440,"incise","incised","incised","incises","incising"]
[null,441,"include","included","included","includes","including"]
[null,442,"increase","increased","increased","increases","increasing"]
[null,443,"inculcate","inculcated","inculcated","inculcates","inculcating"]
[null,444,"indent","indented","indented","indents","indenting"]
[null,445,"indicate","indicated","indicated","indicates","indicating"]
[null,446,"induce","induced","induced","induces","inducing"]
[null,447,"indulge","indulged","indulged","indulges","indulging"]
[null,448,"infect","infected","infected","infects","infecting"]
[null,449,"infest","infested","infested","infests","infesting"]
[null,450,"inflame","inflamed","inflamed","inflames","inflaming"]
[null,451,"inflate","inflated","inflated","inflates","inflating"]
[null,452,"inflect","inflected","inflected","inflects","inflecting"]
[null,453,"inform","informed","informed","informs","informing"]
[null,454,"infringe","infringed","infringed","infringes","infringing"]
[null,455,"infuse","infused","infused","infuses","infusing"]
[null,456,"ingest","ingested","ingested","ingests","ingesting"]
[null,457,"inhabit","inhabited","inhabited","inhabits","inhabiting"]
[null,458,"inhale","inhaled","inhaled","inhales","inhaling"]
[null,459,"inherit","inherited","inherited","inherits","inheriting"]
[null,460,"initiate","initiated","initiated","initiates","initiating"]
[null,461,"inject","injected","injected","injects","injecting"]
[null,462,"injure","injured","injured","injures","injuring"]
[null,463,"inlay","inlaid","inlaid","inlays","inlaying"]
[null,464,"innovate","innovated","innovated","innovates","innovating"]
[null,465,"input","input","input","inputs","inputting"]
[null,466,"inquire","inquired","inquired","inquires","inquiring"]
[null,467,"inscribe","inscribed","inscribed","inscribes","inscribing"]
[null,468,"insert","inserted","inserted","inserts","inserting"]
[null,469,"inspect","inspected","inspected","inspects","inspecting"]
[null,470,"inspire","inspired","inspired","inspires","inspiring"]
[null,471,"install","installed","installed","installs","installing"]
[null,472,"insult","insulted","insulted","insults","insulting"]
[null,473,"insure","insured","insured","insures","insuring"]
[null,474,"integrate","integrated","integrated","integrates","integrating"]
[null,475,"introduce","introduced","introduced","introduces","introducing"]
[null,476,"invent","invented","invented","invents","inventing"]
[null,477,"invite","invited","invited","invites","inviting"]
[null,478,"join","joined","joined","joins","joining"]
[null,479,"jump","jumped","jumped","jumps","jumping"]
[null,480,"justify","justified","justified","justifies","justifying"]
[null,481,"keep","kept","kept","keeps","keeping"]
[null,482,"kick","kicked","kicked","kicks","kicking"]
[null,483,"kid","kidded","kidded","kids","kidding"]
[null,484,"kill","killed","killed","kills","killing"]
[null,485,"kiss","kissed","kissed","kisses","kissing"]
[null,486,"kneel","knelt","knelt","kneels","kneeling"]
[null,487,"knit","knit","knit","knits","knitting"]
[null,488,"knock","knocked","knocked","knocks","knocking"]
[null,489,"know","knew","known","knows","knowing"]
[null,490,"lade","laded","laden","lades","lading"]
[null,491,"land","landed","landed","lands","landing"]
[null,492,"last","lasted","lasted","lasts","lasting"]
[null,493,"latch","latched","latched","latches","latching"]
[null,494,"laugh","laughed","laughed","laughs","laughing"]
[null,495,"lay","laid","laid","lays","laying"]
[null,496,"lead","led","led","leads","leading"]
[null,497,"leak","leaked","leaked","leaks","leaking"]
[null,498,"lean","leant","leant","leans","leaning"]
[null,499,"leap","leapt","leapt","leaps","leaping"]
[null,500,"learn","learnt","learnt","learns","learning"]
[null,501,"leave","left","left","leaves","leaving"]
[null,502,"leer","leered","leered","leers","leering"]
[null,503,"lend","lent","lent","lends","lending"]
[null,504,"let","let","let","lets","letting"]
[null,505,"lick","licked","licked","licks","licking"]
[null,506,"lie","lay","lain","lies","lying"]
[null,507,"lie","lied","lied","lies","lying"]
[null,508,"lift","lifted","lifted","lifts","lifting"]
[null,509,"light","lit","lit","lights","lighting"]
[null,510,"like","liked","liked","likes","liking"]
[null,511,"limp","limped","limped","limps","limping"]
[null,512,"listen","listened","listened","listens","listening"]
[null,513,"live","lived","lived","lives","living"]
[null,514,"look","looked","looked","looks","looking"]
[null,515,"lose","lost","lost","loses","losing"]
[null,516,"love","loved","loved","loves","loving"]
[null,517,"magnify","magnified","magnified","magnifies","magnifying"]
[null,518,"maintain","maintained","maintained","maintains","maintaining"]
[null,519,"make","made","made","makes","making"]
[null,520,"manage","managed","managed","manages","managing"]
[null,521,"march","marched","marched","marches","marching"]
[null,522,"mark","marked","marked","marks","marking"]
[null,523,"marry","married","married","marries","marrying"]
[null,524,"mash","mashed","mashed","mashes","mashing"]
[null,525,"match","matched","matched","matches","matching"]
[null,526,"matter","mattered","mattered","matters","mattering"]
[null,527,"mean","meant","meant","means","meaning"]
[null,528,"measure","measured","measured","measures","measuring"]
[null,529,"meet","met","met","meets","meeting"]
[null,530,"melt","melted","melted","melts","melting"]
[null,531,"merge","merged","merged","merges","merging"]
[null,532,"mew","mewed","mewed","mews","mewing"]
[null,533,"migrate","migrated","migrated","migrates","migrating"]
[null,534,"milk","milked","milked","milks","milking"]
[null,535,"mind","minded","minded","minds","minding"]
[null,536,"mislead","misled","misled","misleads","misleading"]
[null,537,"miss","missed","missed","misses","missing"]
[null,538,"mistake","mistook","mistaken","mistakes","mistaking"]
[null,539,"misuse","misused","misused","misuses","misusing"]
[null,540,"mix","mixed","mixed","mixes","mixing"]
[null,541,"moan","moaned","moaned","moans","moaning"]
[null,542,"modify","modified","modified","modifies","modifying"]
[null,543,"moo","mooed","mooed","moos","mooing"]
[null,544,"motivate","motivated","motivated","motivates","motivating"]
[null,545,"mould","moulded","moulded","moulds","moulding"]
[null,546,"moult","moulted","moulted","moults","moulting"]
[null,547,"move","moved","moved","moves","moving"]
[null,548,"mow","mowed","mown","mows","mowing"]
[null,549,"multiply","multiplied","multiplied","multiplies","multiplying"]
[null,550,"murmur","murmured","murmured","murmurs","murmuring"]
[null,551,"nail","nailed","nailed","nails","nailing"]
[null,552,"nap","napped","napped","naps","napping"]
[null,553,"need","needed","needed","needs","needing"]
[null,554,"neglect","neglected","neglected","neglects","neglecting"]
[null,555,"nip","nipped","nipped","nips","nipping"]
[null,556,"nod","nodded","nodded","nods","nodding"]
[null,557,"note","noted","noted","notes","noting"]
[null,558,"notice","noticed","noticed","notices","noticing"]
[null,559,"notify","notified","notified","notifies","notifying"]
[null,560,"nourish","nourished","nourished","nourishes","nourishing"]
[null,561,"nurse","nursed","nursed","nurses","nursing"]
[null,562,"obey","obeyed","obeyed","obeys","obeying"]
[null,563,"oblige","obliged","obliged","obliges","obliging"]
[null,564,"observe","observed","observed","observes","observing"]
[null,565,"obstruct","obstructed","obstructed","obstructs","obstructing"]
[null,566,"obtain","obtained","obtained","obtains","obtaining"]
[null,567,"occupy","occupied","occupied","occupies","occupying"]
[null,568,"occur","occurred","occurred","occurs","occurring"]
[null,569,"offer","offered","offered","offers","offering"]
[null,570,"offset","offset","offset","offsets","offsetting"]
[null,571,"omit","omitted","omitted","omits","omitting"]
[null,572,"ooze","oozed","oozed","oozes","oozing"]
[null,573,"open","opened","opened","opens","opening"]
[null,574,"operate","operated","operated","operates","operating"]
[null,575,"opine","opined","opined","opines","opining"]
[null,576,"oppress","oppressed","oppressed","oppresses","oppressing"]
[null,577,"opt","opted","opted","opts","opting"]
[null,578,"optimize","optimized","optimized","optimizes","optimizing"]
[null,579,"order","ordered","ordered","orders","ordering"]
[null,580,"organize","organized","organized","organizes","organizing"]
[null,581,"originate","originated","originated","originates","originating"]
[null,582,"output","output","output","outputs","outputting"]
[null,583,"overflow","overflowed","overflowed","overflows","overflowing"]
[null,584,"overtake","overtook","overtaken","overtakes","overtaking"]
[null,585,"owe","owed","owed","owes","owing"]
[null,586,"own","owned","owned","owns","owning"]
[null,587,"pacify","pacified","pacified","pacifies","pacifying"]
[null,588,"paint","painted","painted","paints","painting"]
[null,589,"pardon","pardoned","pardoned","pardons","pardoning"]
[null,590,"part","parted","parted","parts","parting"]
[null,591,"partake","partook","partaken","partakes","partaking"]
[null,592,"participate","participated","participated","participates","participating"]
[null,593,"pass","passed","passed","passes","passing"]
[null,594,"paste","pasted","pasted","pastes","pasting"]
[null,595,"pat","patted","patted","pats","patting"]
[null,596,"patch","patched","patched","patches","patching"]
[null,597,"pause","paused","paused","pauses","pausing"]
[null,598,"pay","paid","paid","pays","paying"]
[null,599,"peep","peeped","peeped","peeps","peeping"]
[null,600,"perish","perished","perished","perishes","perishing"]
[null,601,"permit","permitted","permitted","permits","permitting"]
[null,602,"persuade","persuaded","persuaded","persuades","persuading"]
[null,603,"phone","phoned","phoned","phones","phoning"]
[null,604,"place","placed","placed","places","placing"]
[null,605,"plan","planned","planned","plans","planning"]
[null,606,"play","played","played","plays","playing"]
[null,607,"plead","pled","pled","pleads","pleading"]
[null,608,"please","pleased","pleased","pleases","pleasing"]
[null,609,"plod","plodded","plodded","plods","plodding"]
[null,610,"plot","plotted","plotted","plots","plotting"]
[null,611,"pluck","plucked","plucked","plucks","plucking"]
[null,612,"ply","plied","plied","plies","plying"]
[null,613,"point","pointed","pointed","points","pointing"]
[null,614,"polish","polished","polished","polishes","polishing"]
[null,615,"pollute","polluted","polluted","pollutes","polluting"]
[null,616,"ponder","pondered","pondered","ponders","pondering"]
[null,617,"pour","poured","poured","pours","pouring"]
[null,618,"pout","pouted","pouted","pouts","pouting"]
[null,619,"practise","practised","practised","practises","practising"]
[null,620,"praise","praised","praised","praises","praising"]
[null,621,"pray","prayed","prayed","prays","praying"]
[null,622,"preach","preached","preached","preaches","preaching"]
[null,623,"prefer","preferred","preferred","prefers","preferring"]
[null,624,"prepare","prepared","prepared","prepares","preparing"]
[null,625,"prescribe","prescribed","prescribed","prescribes","prescribing"]
[null,626,"present","presented","presented","presents","presenting"]
[null,627,"preserve","preserved","preserved","preserves","preserving"]
[null,628,"preset","preset","preset","presets","presetting"]
[null,629,"preside","presided","presided","presides","presiding"]
[null,630,"press","pressed","pressed","presses","pressing"]
[null,631,"pretend","pretended","pretended","pretends","pretending"]
[null,632,"prevent","prevented","prevented","prevents","preventing"]
[null,633,"print","printed","printed","prints","printing"]
[null,634,"proceed","proceeded","proceeded","proceeds","proceeding"]
[null,635,"produce","produced","produced","produces","producing"]
[null,636,"progress","progressed","progressed","progresses","progressing"]
[null,637,"prohibit","prohibited","prohibited","prohibits","prohibiting"]
[null,638,"promise","promised","promised","promises","promising"]
[null,639,"propose","proposed","proposed","proposes","proposing"]
[null,640,"prosecute","prosecuted","prosecuted","prosecutes","prosecuting"]
[null,641,"protect","protected","protected","protects","protecting"]
[null,642,"prove","proved","proved","proves","proving"]
[null,643,"provide","provided","provided","provides","providing"]
[null,644,"pull","pulled","pulled","pulls","pulling"]
[null,645,"punish","punished","punished","punishes","punishing"]
[null,646,"purify","purified","purified","purifies","purifying"]
[null,647,"push","pushed","pushed","pushes","pushing"]
[null,648,"put","put","put","puts","putting"]
[null,649,"qualify","qualified","qualified","qualifies","qualifying"]
[null,650,"quarrel","quarrelled","quarrelled","quarrels","quarrelling"]
[null,651,"question","questioned","questioned","questions","questioning"]
[null,652,"quit","quit","quit","quits","quitting"]
[null,653,"race","raced","raced","races","racing"]
[null,654,"rain","rained","rained","rains","raining"]
[null,655,"rattle","rattled","rattled","rattles","rattling"]
[null,656,"reach","reached","reached","reaches","reaching"]
[null,657,"read","read","read","reads","reading"]
[null,658,"realize","realized","realized","realizes","realizing"]
[null,659,"rebuild","rebuilt","rebuilt","rebuilds","rebuilding"]
[null,660,"recall","recalled","recalled","recalls","recalling"]
[null,661,"recast","recast","recast","recasts","recasting"]
[null,662,"receive","received","received","receives","receiving"]
[null,663,"recite","recited","recited","recites","reciting"]
[null,664,"recognize","recognized","recognized","recognizes","recognizing"]
[null,665,"recollect","recollected","recollected","recollects","recollecting"]
[null,666,"recur","recurred","recurred","recurs","recurring"]
[null,667,"redo","redid","redone","redoes","redoing"]
[null,668,"reduce","reduced","reduced","reduces","reducing"]
[null,669,"refer","referred","referred","refers","referring"]
[null,670,"reflect","reflected","reflected","reflects","reflecting"]
[null,671,"refuse","refused","refused","refuses","refusing"]
[null,672,"regard","regarded","regarded","regards","regarding"]
[null,673,"regret","regretted","regretted","regrets","regretting"]
[null,674,"relate","related","related","relates","relating"]
[null,675,"relax","relaxed","relaxed","relaxes","relaxing"]
[null,676,"rely","relied","relied","relies","relying"]
[null,677,"remain","remained","remained","remains","remaining"]
[null,678,"remake","remade","remade","remakes","remaking"]
[null,679,"remove","removed","removed","removes","removing"]
[null,680,"rend","rent","rent","rends","rending"]
[null,681,"renew","renewed","renewed","renews","renewing"]
[null,682,"renounce","renounced","renounced","renounces","renouncing"]
[null,683,"repair","repaired","repaired","repairs","repairing"]
[null,684,"repeat","repeated","repeated","repeats","repeating"]
[null,685,"replace","replaced","replaced","replaces","replacing"]
[null,686,"reply","replied","replied","replies","replying"]
[null,687,"report","reported","reported","reports","reporting"]
[null,688,"request","requested","requested","requests","requesting"]
[null,689,"resell","resold","resold","resells","reselling"]
[null,690,"resemble","resembled","resembled","resembles","resembling"]
[null,691,"reset","reset","reset","resets","resetting"]
[null,692,"resist","resisted","resisted","resists","resisting"]
[null,693,"resolve","resolved","resolved","resolves","resolving"]
[null,694,"respect","respected","respected","respects","respecting"]
[null,695,"rest","rested","rested","rests","resting"]
[null,696,"restrain","restrained","restrained","restrains","restraining"]
[null,697,"retain","retained","retained","retains","retaining"]
[null,698,"retch","retched","retched","retches","retching"]
[null,699,"retire","retired","retired","retires","retiring"]
[null,700,"return","returned","returned","returns","returning"]
[null,701,"reuse","reused","reused","reuses","reusing"]
[null,702,"review","reviewed","reviewed","reviews","reviewing"]
[null,703,"rewind","rewound","rewound","rewinds","rewinding"]
[null,704,"rid","rid","rid","rids","ridding"]
[null,705,"ride","rode","ridden","rides","riding"]
[null,706,"ring","rang","rung","rings","ringing"]
[null,707,"rise","rose","risen","rises","rising"]
[null,708,"roar","roared","roared","roars","roaring"]
[null,709,"rob","robbed","robbed","robs","robbing"]
[null,710,"roll","rolled","rolled","rolls","rolling"]
[null,711,"rot","rotted","rotted","rots","rotting"]
[null,712,"rub","rubbed","rubbed","rubs","rubbing"]
[null,713,"rule","ruled","ruled","rules","ruling"]
[null,714,"run","ran","run","runs","running"]
[null,715,"rush","rushed","rushed","rushes","rushing"]
[null,716,"sabotage","sabotaged","sabotaged","sabotages","sabotaging"]
[null,717,"sack","sacked","sacked","sacks","sacking"]
[null,718,"sacrifice","sacrificed","sacrificed","sacrifices","sacrificing"]
[null,719,"sadden","saddened","saddened","saddens","saddening"]
[null,720,"saddle","saddled","saddled","saddles","saddling"]
[null,721,"sag","sagged","sagged","sags","sagging"]
[null,722,"sail","sailed","sailed","sails","sailing"]
[null,723,"sally","sallied","sallied","sallies","sallying"]
[null,724,"salute","saluted","saluted","salutes","saluting"]
[null,725,"salvage","salvaged","salvaged","salvages","salvaging"]
[null,726,"salve","salved","salved","salves","salving"]
[null,727,"sample","sampled","sampled","samples","sampling"]
[null,728,"sanctify","sanctified","sanctified","sanctifies","sanctifying"]
[null,729,"sanction","sanctioned","sanctioned","sanctions","sanctioning"]
[null,730,"sap","sapped","sapped","saps","sapping"]
[null,731,"saponify","saponified","saponified","saponifies","saponifying"]
[null,732,"sash","sashed","sashed","sashes","sashing"]
[null,733,"sashay","sashayed","sashayed","sashays","sashaying"]
[null,734,"sass","sassed","sassed","sasses","sassing"]
[null,735,"sate","sated","sated","sates","sating"]
[null,736,"satiate","satiated","satiated","satiates","satiating"]
[null,737,"satirise","satirised","satirised","satirises","satirising"]
[null,738,"satisfy","satisfied","satisfied","satisfies","satisfying"]
[null,739,"saturate","saturated","saturated","saturates","saturating"]
[null,740,"saunter","sauntered","sauntered","saunters","sauntering"]
[null,741,"save","saved","saved","saves","saving"]
[null,742,"savor","savored","savored","savors","savoring"]
[null,743,"savvy","savvied","savvied","savvies","savvying"]
[null,744,"saw","sawed","sawn","saws","sawing"]
[null,745,"say","said","said","says","saying"]
[null,746,"scab","scabbed","scabbed","scabs","scabbing"]
[null,747,"scabble","scabbled","scabbled","scabbles","scabbling"]
[null,748,"scald","scalded","scalded","scalds","scalding"]
[null,749,"scale","scaled","scaled","scales","scaling"]
[null,750,"scam","scammed","scammed","scams","scamming"]
[null,751,"scan","scanned","scanned","scans","scanning"]
[null,752,"scant","scanted","scanted","scants","scanting"]
[null,753,"scar","scarred","scarred","scars","scarring"]
[null,754,"scare","scared","scared","scares","scaring"]
[null,755,"scarify","scarified","scarified","scarifies","scarifying"]
[null,756,"scarp","scarped","scarped","scarps","scarping"]
[null,757,"scat","scatted","scatted","scats","scatting"]
[null,758,"scatter","scattered","scattered","scatters","scattering"]
[null,759,"scold","scolded","scolded","scolds","scolding"]
[null,760,"scorch","scorched","scorched","scorches","scorching"]
[null,761,"scowl","scowled","scowled","scowls","scowling"]
[null,762,"scrawl","scrawled","scrawled","scrawls","scrawling"]
[null,763,"scream","screamed","screamed","screams","screaming"]
[null,764,"screw","screwed","screwed","screws","screwing"]
[null,765,"scrub","scrubbed","scrubbed","scrubs","scrubbing"]
[null,766,"search","searched","searched","searches","searching"]
[null,767,"seat","seated","seated","seats","seating"]
[null,768,"secure","secured","secured","secures","securing"]
[null,769,"see","saw","seen","sees","seeing"]
[null,770,"seek","sought","sought","seeks","seeking"]
[null,771,"seem","seemed","seemed","seems","seeming"]
[null,772,"seize","seized","seized","seizes","seizing"]
[null,773,"select","selected","selected","selects","selecting"]
[null,774,"sell","sold","sold","sells","selling"]
[null,775,"send","sent","sent","sends","sending"]
[null,776,"sentence","sentenced","sentenced","sentences","sentencing"]
[null,777,"separate","separated","separated","separates","separating"]
[null,778,"set","set","set","sets","setting"]
[null,779,"sever","severed","severed","severs","severing"]
[null,780,"sew","sewed","sewn","sews","sewing"]
[null,781,"shake","shook","shaken","shakes","shaking"]
[null,782,"shape","shaped","shaped","shapes","shaping"]
[null,783,"share","shared","shared","shares","sharing"]
[null,784,"shatter","shattered","shattered","shatters","shattering"]
[null,785,"shave","shove","shaven","shaves","shaving"]
[null,786,"shear","shore","shorn","shears","shearing"]
[null,787,"shed","shed","shed","sheds","shedding"]
[null,788,"shine","shone","shone","shines","shining"]
[null,789,"shirk","shirked","shirked","shirks","shirking"]
[null,790,"shit","shit","shit","shits","shitting"]
[null,791,"shiver","shivered","shivered","shivers","shivering"]
[null,792,"shock","shocked","shocked","shocks","shocking"]
[null,793,"shoe","shod","shod","shoes","shoeing"]
[null,794,"shoot","shot","shot","shoots","shooting"]
[null,795,"shorten","shortened","shortened","shortens","shortening"]
[null,796,"shout","shouted","shouted","shouts","shouting"]
[null,797,"show","showed","shown","shows","showing"]
[null,798,"shrink","shrank","shrunk","shrinks","shrinking"]
[null,799,"shun","shunned","shunned","shuns","shunning"]
[null,800,"shut","shut","shut","shuts","shutting"]
[null,801,"sight","sighted","sighted","sights","sighting"]
[null,802,"signal","signalled","signalled","signals","signalling"]
[null,803,"signify","signified","signified","signifies","signifying"]
[null,804,"sing","sang","sung","sings","singing"]
[null,805,"sink","sank","sunk","sinks","sinking"]
[null,806,"sip","sipped","sipped","sips","sipping"]
[null,807,"sit","sat","sat","sits","sitting"]
[null,808,"ski","skied","skied","skis","skiing"]
[null,809,"skid","skidded","skidded","skids","skidding"]
[null,810,"slam","slammed","slammed","slams","slamming"]
[null,811,"slay","slew","slain","slays","slaying"]
[null,812,"sleep","slept","slept","sleeps","sleeping"]
[null,813,"slide","slid","slid/slide","slides","sliding"]
[null,814,"slim","slimmed","slimmed","slims","slimming"]
[null,815,"sling","slung","slung","slings","slinging"]
[null,816,"slink","slunk","slunk","slinks","slinking"]
[null,817,"slip","slipped","slipped","slips","slipping"]
[null,818,"slit","slit","slit","slits","slitting"]
[null,819,"smash","smashed","smashed","smashes","smashing"]
[null,820,"smell","smelt","smelt","smells","smelling"]
[null,821,"smile","smiled","smiled","smiles","smiling"]
[null,822,"smite","smote","smitten","smites","smiting"]
[null,823,"smooth","smoothed","smoothed","smoothes","smoothing"]
[null,824,"smother","smothered","smothered","smothers","smothering"]
[null,825,"snap","snapped","snapped","snaps","snapping"]
[null,826,"snatch","snatched","snatched","snatches","snatching"]
[null,827,"sneak","sneaked","sneaked","sneaks","sneaking"]
[null,828,"sneeze","sneezed","sneezed","sneezes","sneezing"]
[null,829,"sniff","sniffed","sniffed","sniffs","sniffing"]
[null,830,"soar","soared","soared","soars","soaring"]
[null,831,"sob","sobbed","sobbed","sobs","sobbing"]
[null,832,"solicit","solicited","solicited","solicits","soliciting"]
[null,833,"solve","solved","solved","solves","solving"]
[null,834,"soothe","soothed","soothed","soothes","soothing"]
[null,835,"sort","sorted","sorted","sorts","sorting"]
[null,836,"sow","sowed","sowed","sows","sowing"]
[null,837,"sparkle","sparkled","sparkled","sparkles","sparkling"]
[null,838,"speak","spoke","spoken","speaks","speaking"]
[null,839,"speed","sped","sped","speeds","speeding"]
[null,840,"spell","spelt","spelt","spells","spelling"]
[null,841,"spend","spent","spent","spends","spending"]
[null,842,"spill","spilt","spilt","spills","spilling"]
[null,843,"spin","span/spun","spun","spins","spinning"]
[null,844,"spit","spat/spit","spat/spit","spits","spitting"]
[null,845,"split","split","split","splits","splitting"]
[null,846,"spoil","spoilt","spoilt","spoils","spoiling"]
[null,847,"spray","sprayed","sprayed","sprays","spraying"]
[null,848,"spread","spread","spread","spreads","spreading"]
[null,849,"spring","sprang","sprung","springs","springing"]
[null,850,"sprout","sprouted","sprouted","sprouts","sprouting"]
[null,851,"squeeze","squeezed","squeezed","squeezes","squeezing"]
[null,852,"stand","stood","stood","stands","standing"]
[null,853,"stare","stared","stared","stares","staring"]
[null,854,"start","started","started","starts","starting"]
[null,855,"state","stated","stated","states","stating"]
[null,856]
[null,857,"stay","stayed","stayed","stays","staying"]
[null,858,"steal","stole","stolen","steals","stealing"]
[null,859,"steep","steeped","steeped","steeps","steeping"]
[null,860,"stem","stemmed","stemmed","stems","stemming"]
[null,861,"step","stepped","stepped","steps","stepping"]
[null,862,"sterilize","sterilized","sterilized","sterilizes","sterilizing"]
[null,863,"stick","stuck","stuck","sticks","sticking"]
[null,864,"stimulate","stimulated","stimulated","stimulates","stimulating"]
[null,865,"sting","stung","stung","stings","stinging"]
[null,866,"stink","stank","stunk","stinks","stinking"]
[null,867,"stir","stirred","stirred","stirs","stirring"]
[null,868,"stitch","stitched","stitched","stitches","stitching"]
[null,869,"stoop","stooped","stooped","stoops","stooping"]
[null,870,"stop","stopped","stopped","stops","stopping"]
[null,871,"store","stored","stored","stores","storing"]
[null,872,"strain","strained","strained","strains","straining"]
[null,873,"stray","strayed","strayed","strays","straying"]
[null,874,"stress","stressed","stressed","stresses","stressing"]
[null,875,"stretch","stretched","stretched","stretches","stretching"]
[null,876,"strew","strewed","strewn","strews","strewing"]
[null,877,"stride","strode","stridden","strides","striding"]
[null,878,"strike","struck","struck/stricken","strikes","striking"]
[null,879,"string","strung","strung","strings","stringing"]
[null,880,"strive","strove","striven","strives","striving"]
[null,881,"study","studied","studied","studies","studying"]
[null,882,"submit","submitted","submitted","submits","submitting"]
[null,883,"subscribe","subscribed","subscribed","subscribes","subscribing"]
[null,884,"subtract","subtracted","subtracted","subtracts","subtracting"]
[null,885,"succeed","succeeded","succeeded","succeeds","succeeding"]
[null,886,"suck","sucked","sucked","sucks","sucking"]
[null,887,"suffer","suffered","suffered","suffers","suffering"]
[null,888,"suggest","suggested","suggested","suggests","suggesting"]
[null,889,"summon","summoned","summoned","summons","summoning"]
[null,890,"supply","supplied","supplied","supplies","supplying"]
[null,891,"support","supported","supported","supports","supporting"]
[null,892,"suppose","supposed","supposed","supposes","supposing"]
[null,893,"surge","surged","surged","surges","surging"]
[null,894,"surmise","surmised","surmised","surmises","surmising"]
[null,895,"surpass","surpassed","surpassed","surpasses","surpassing"]
[null,896,"surround","surrounded","surrounded","surrounds","surrounding"]
[null,897,"survey","surveyed","surveyed","surveys","surveying"]
[null,898,"survive","survived","survived","survives","surviving"]
[null,899,"swallow","swallowed","swallowed","swallows","swallowing"]
[null,900,"sway","swayed","swayed","sways","swaying"]
[null,901,"swear","swore","sworn","swears","swearing"]
[null,902,"sweat","sweat","sweat","sweats","sweating"]
[null,903,"sweep","swept","swept","sweeps","sweeping"]
[null,904,"swell","swelled","swollen","swells","swelling"]
[null,905,"swim","swam","swum","swims","swimming"]
[null,906,"swing","swung","swung","swings","swinging"]
[null,907,"swot","swotted","swotted","swots","swotting"]
[null,908,"take","took","taken","takes","taking"]
[null,909,"talk","talked","talked","talks","talking"]
[null,910,"tap","tapped","tapped","taps","tapping"]
[null,911,"taste","tasted","tasted","tastes","tasting"]
[null,912,"tax","taxed","taxed","taxes","taxing"]
[null,913,"teach","taught","taught","teaches","teaching"]
[null,914,"tear","tore","torn","tears","tearing"]
[null,915,"tee","teed","teed","tees","teeing"]
[null,916,"tell","told","told","tells","telling"]
[null,917,"tempt","tempted","tempted","tempts","tempting"]
[null,918,"tend","tended","tended","tends","tending"]
[null,919,"terminate","terminated","terminated","terminates","terminating"]
[null,920,"terrify","terrified","terrified","terrifies","terrifying"]
[null,921,"test","tested","tested","tests","testing"]
[null,922,"thank","thanked","thanked","thanks","thanking"]
[null,923,"think","thought","thought","thinks","thinking"]
[null,924,"thrive","throve","thriven","thrives","thriving"]
[null,925,"throw","threw","thrown","throws","throwing"]
[null,926,"thrust","thrust","thrust","thrusts","thrusting"]
[null,927,"thump","thumped","thumped","thumps","thumping"]
[null,928,"tie","tied","tied","ties","tying"]
[null,929,"tire","tired","tired","tires","tiring"]
[null,930,"toss","tossed","tossed","tosses","tossing"]
[null,931,"touch","touched","touched","touches","touching"]
[null,932,"train","trained","trained","trains","training"]
[null,933,"trample","trampled","trampled","tramples","trampling"]
[null,934,"transfer","transferred","transferred","transfers","transferring"]
[null,935,"transform","transformed","transformed","transforms","transforming"]
[null,936,"translate","translated","translated","translates","translating"]
[null,937,"trap","trapped","trapped","traps","trapping"]
[null,938,"travel","travelled","travelled","travels","travelling"]
[null,939,"tread","trod","trodden","treads","treading"]
[null,940,"treasure","treasured","treasured","treasures","treasuring"]
[null,941,"treat","treated","treated","treats","treating"]
[null,942,"tree","treed","treed","trees","treeing"]
[null,943,"tremble","trembled","trembled","trembles","trembling"]
[null,944,"triumph","triumphed","triumphed","triumphs","triumphing"]
[null,945,"trust","trusted","trusted","trusts","trusting"]
[null,946,"try","tried","tried","tries","trying"]
[null,947,"turn","turned","turned","turns","turning"]
[null,948,"type","typed","typed","types","typing"]
[null,949,"typeset","typeset","typeset","typesets","typesetting"]
[null,950,"understand","understood","understood","understands","understanding"]
[null,951,"undo","undid","undone","undoes","undoing"]
[null,952,"uproot","uprooted","uprooted","uproots","uprooting"]
[null,953,"upset","upset","upset","upsets","upsetting"]
[null,954,"urge","urged","urged","urges","urging"]
[null,955,"use","used","used","uses","using"]
[null,956,"utter","uttered","uttered","utters","uttering"]
[null,957,"value","valued","valued","values","valuing"]
[null,958,"vanish","vanished","vanished","vanishes","vanishing"]
[null,959,"vary","varied","varied","varies","varying"]
[null,960,"verify","verified","verified","verifies","verifying"]
[null,961,"vex","vexed","vexed","vexes","vexing"]
[null,962,"vie","vied","vied","vies","vying"]
[null,963,"view","viewed","viewed","views","viewing"]
[null,964,"violate","violated","violated","violates","violating"]
[null,965,"vomit","vomited","vomited","vomits","vomiting"]
[null,966,"wake","woke","woken","wakes","waking"]
[null,967,"walk","walked","walked","walks","walking"]
[null,968,"wander","wandered","wandered","wanders","wandering"]
[null,969,"want","wanted","wanted","wants","wanting"]
[null,970,"warn","warned","warned","warns","warning"]
[null,971,"waste","wasted","wasted","wastes","wasting"]
[null,972,"watch","watched","watched","watches","watching"]
[null,973,"water","watered","watered","waters","watering"]
[null,974,"wave","waved","waved","waves","waving"]
[null,975,"wax","waxed","waxed","waxes","waxing"]
[null,976,"waylay","waylaid","waylaid","waylays","waylaying"]
[null,977,"wear","wore","worn","wears","wearing"]
[null,978,"weave","wove","woven","weaves","weaving"]
[null,979,"wed","wed","wed","weds","wedding"]
[null,980,"weep","wept","wept","weeps","weeping"]
[null,981,"weigh","weighed","weighed","weighs","weighing"]
[null,982,"welcome","welcomed","welcomed","welcomes","welcoming"]
[null,983,"wend","went","went","wends","wending"]
[null,984,"wet","wet","wet","wets","wetting"]
[null,985,"whip","whipped","whipped","whips","whipping"]
[null,986,"whisper","whispered","whispered","whispers","whispering"]
[null,987,"win","won","won","wins","winning"]
[null,988,"wind","wound","wound","winds","winding"]
[null,989,"wish","wished","wished","wishes","wishing"]
[null,990,"withdraw","withdrew","withdrawn","withdraws","withdrawing"]
[null,991,"work","worked","worked","works","working"]
[null,992,"worry","worried","worried","worries","worrying"]
[null,993,"worship","worshipped","worshipped","worships","worshipping"]
[null,994,"wring","wrung","wrung","wrings","wringing"]
[null,995,"write","wrote","written","writes","writing"]
[null,996,"yawn","yawned","yawned","yawns","yawning"]
[null,997,"yell","yelled","yelled","yells","yelling"]
[null,998,"yield","yielded","yielded","yields","yielding"]
[null,999,"zinc","zincked","zincked","zincs","zincking"]
[null,1000,"zoom","zoomed","zoomed","zooms","zooming"]

{"sheet":"all","index":5,"n_rows":401,"n_cols":4,"rows_kept":401,"cut":false,"hidden":false,"merged":[]}
[]
[null,"Infinitive","Simple Past","Past Participle"]
[null,"A"]
[null,"arise","arose","arisen"]
[null,"awake","awakened / awoke","awakened / awoken"]
[null,"B"]
[null,"backslide","backslid","backslidden / backslid"]
[null,"be","was, were","been"]
[null,"bear","bore","born / borne"]
[null,"beat","beat","beaten / beat"]
[null,"become","became","become"]
[null,"begin","began","begun"]
[null,"bend","bent","bent"]
[null,"bet","bet / betted [?]","bet / betted [?]"]
[null,"bid (farewell)","bid / bade","bidden"]
[null,"bid (offer amount)","bid","bid"]
[null,"bind","bound","bound"]
[null,"bite","bit","bitten"]
[null,"bleed","bled","bled"]
[null,"blow","blew","blown"]
[null,"break","broke","broken"]
[null,"breed","bred","bred"]
[null,"bring","brought","brought"]
[null,"broadcast","broadcast / broadcasted","broadcast / broadcasted"]
[null,"browbeat","browbeat","browbeaten / browbeat"]
[null,"build","built","built"]
[null,"burn","burned / burnt [?]","burned / burnt [?]"]
[null,"burst","burst","burst"]
[null,"bust","busted / bust","busted / bust"]
[null,"buy","bought","bought"]
[null,"C"]
[null,"cast","cast","cast"]
[null,"catch","caught","caught"]
[null,"choose","chose","chosen"]
[null,"cling","clung","clung"]
[null,"clothe","clothed / clad [?]","clothed / clad [?]"]
[null,"come","came","come"]
[null,"cost","cost","cost"]
[null,"creep","crept","crept"]
[null,"crossbreed","crossbred","crossbred"]
[null,"cut","cut","cut"]
[null,"D"]
[null,"daydream","daydreamed / daydreamt [?]","daydreamed / daydreamt [?]"]
[null,"deal","dealt","dealt"]
[null,"dig","dug","dug"]
[null,"disprove","disproved","disproved / disproven"]
[null,"dive (jump head-first)","dove / dived","dived"]
[null,"dive (scuba diving)","dived / dove","dived"]
[null,"do","did","done"]
[null,"draw","drew","drawn"]
[null,"dream","dreamed / dreamt [?]","dreamed / dreamt [?]"]
[null,"drink","drank","drunk"]
[null,"drive","drove","driven"]
[null,"dwell","dwelt / dwelled [?]","dwelt / dwelled [?]"]
[null,"E"]
[null,"eat","ate","eaten"]
[null,"F"]
[null,"fall","fell","fallen"]
[null,"feed","fed","fed"]
[null,"feel","felt","felt"]
[null,"fight","fought","fought"]
[null,"find","found","found"]
[null,"fit (tailor, change size)","fitted / fit [?]","fitted / fit [?]"]
[null,"fit (be right size)","fit / fitted [?]","fit / fitted [?]"]
[null,"flee","fled","fled"]
[null,"fling","flung","flung"]
[null,"fly","flew","flown"]
[null,"forbid","forbade","forbidden"]
[null,"forecast","forecast","forecast"]
[null,"forego (also forgo)","forewent","foregone"]
[null,"foresee","foresaw","foreseen"]
[null,"foretell","foretold","foretold"]
[null,"forget","forgot","forgotten / forgot [?]"]
[null,"forgive","forgave","forgiven"]
[null,"forsake","forsook","forsaken"]
[null,"freeze","froze","frozen"]
[null,"frostbite","frostbit","frostbitten"]
[null,"G"]
[null,"get","got","gotten / got [?]"]
[null,"give","gave","given"]
[null,"go","went","gone"]
[null,"grind","ground","ground"]
[null,"grow","grew","grown"]
[null,"H"]
[null,"hand-feed","hand-fed","hand-fed"]
[null,"handwrite","handwrote","handwritten"]
[null,"hang","hung","hung"]
[null,"have","had","had"]
[null,"hear","heard","heard"]
[null,"hew","hewed","hewn / hewed"]
[null,"hide","hid","hidden"]
[null,"hit","hit","hit"]
[null,"hold","held","held"]
[null,"hurt","hurt","hurt"]
[null,"I"]
[null,"inbreed","inbred","inbred"]
[null,"inlay","inlaid","inlaid"]
[null,"input","input / inputted","input / inputted"]
[null,"interbreed","interbred","interbred"]
[null,"interweave","interwove / interweaved","interwoven / interweaved"]
[null,"interwind","interwound","interwound"]
[null,"J"]
[null,"jerry-build","jerry-built","jerry-built"]
[null,"K"]
[null,"keep","kept","kept"]
[null,"kneel","knelt / kneeled","knelt / kneeled"]
[null,"knit","knitted / knit","knitted / knit"]
[null,"know","knew","known"]
[null,"L"]
[null,"lay","laid","laid"]
[null,"lead","led","led"]
[null,"lean","leaned / leant [?]","leaned / leant [?]"]
[null,"leap","leaped / leapt [?]","leaped / leapt [?]"]
[null,"learn","learned / learnt [?]","learned / learnt [?]"]
[null,"leave","left","left"]
[null,"lend","lent","lent"]
[null,"let","let","let"]
[null,"lie","lay","lain"]
[null,"lie (not tell truth) REGULAR","lied","lied"]
[null,"light","lit / lighted","lit / lighted"]
[null,"lip-read","lip-read","lip-read"]
[null,"lose","lost","lost"]
[null,"M"]
[null,"make","made","made"]
[null,"mean","meant","meant"]
[null,"meet","met","met"]
[null,"miscast","miscast","miscast"]
[null,"misdeal","misdealt","misdealt"]
[null,"misdo","misdid","misdone"]
[null,"mishear","misheard","misheard"]
[null,"mislay","mislaid","mislaid"]
[null,"mislead","misled","misled"]
[null,"mislearn","mislearned / mislearnt [?]","mislearned / mislearnt [?]"]
[null,"misread","misread","misread"]
[null,"misset","misset","misset"]
[null,"misspeak","misspoke","misspoken"]
[null,"misspell","misspelled / misspelt [?]","misspelled / misspelt [?]"]
[null,"misspend","misspent","misspent"]
[null,"mistake","mistook","mistaken"]
[null,"misteach","mistaught","mistaught"]
[null,"misunderstand","misunderstood","misunderstood"]
[null,"miswrite","miswrote","miswritten"]
[null,"mow","mowed","mowed / mown"]
[null,"N"]
[null,"No irregular verbs beginning with \"N.\""]
[null,"O"]
[null,"offset","offset","offset"]
[null,"outbid","outbid","outbid"]
[null,"outbreed","outbred","outbred"]
[null,"outdo","outdid","outdone"]
[null,"outdraw","outdrew","outdrawn"]
[null,"outdrink","outdrank","outdrunk"]
[null,"outdrive","outdrove","outdriven"]
[null,"outfight","outfought","outfought"]
[null,"outfly","outflew","outflown"]
[null,"outgrow","outgrew","outgrown"]
[null,"outleap","outleaped / outleapt [?]","outleaped / outleapt [?]"]
[null,"outlie (not tell truth) REGULAR","outlied","outlied"]
[null,"outride","outrode","outridden"]
[null,"outrun","outran","outrun"]
[null,"outsell","outsold","outsold"]
[null,"outshine","outshined / outshone [?]","outshined / outshone [?]"]
[null,"outshoot","outshot","outshot"]
[null,"outsing","outsang","outsung"]
[null,"outsit","outsat","outsat"]
[null,"outsleep","outslept","outslept"]
[null,"outsmell","outsmelled / outsmelt [?]","outsmelled / outsmelt [?]"]
[null,"outspeak","outspoke","outspoken"]
[null,"outspeed","outsped","outsped"]
[null,"outspend","outspent","outspent"]
[null,"outswear","outswore","outsworn"]
[null,"outswim","outswam","outswum"]
[null,"outthink","outthought","outthought"]
[null,"outthrow","outthrew","outthrown"]
[null,"outwrite","outwrote","outwritten"]
[null,"overbid","overbid","overbid"]
[null,"overbreed","overbred","overbred"]
[null,"overbuild","overbuilt","overbuilt"]
[null,"overbuy","overbought","overbought"]
[null,"overcome","overcame","overcome"]
[null,"overdo","overdid","overdone"]
[null,"overdraw","overdrew","overdrawn"]
[null,"overdrink","overdrank","overdrunk"]
[null,"overeat","overate","overeaten"]
[null,"overfeed","overfed","overfed"]
[null,"overhang","overhung","overhung"]
[null,"overhear","overheard","overheard"]
[null,"overlay","overlaid","overlaid"]
[null,"overpay","overpaid","overpaid"]
[null,"override","overrode","overridden"]
[null,"overrun","overran","overrun"]
[null,"oversee","oversaw","overseen"]
[null,"oversell","oversold","oversold"]
[null,"oversew","oversewed","oversewn / oversewed"]
[null,"overshoot","overshot","overshot"]
[null,"oversleep","overslept","overslept"]
[null,"overspeak","overspoke","overspoken"]
[null,"overspend","overspent","overspent"]
[null,"overspill","overspilled / overspilt [?]","overspilled / overspilt [?]"]
[null,"overtake","overtook","overtaken"]
[null,"overthink","overthought","overthought"]
[null,"overthrow","overthrew","overthrown"]
[null,"overwind","overwound","overwound"]
[null,"overwrite","overwrote","overwritten"]
[null,"P"]
[null,"partake","partook","partaken"]
[null,"pay","paid","paid"]
[null,"plead","pleaded / pled","pleaded / pled"]
[null,"prebuild","prebuilt","prebuilt"]
[null,"predo","predid","predone"]
[null,"premake","premade","premade"]
[null,"prepay","prepaid","prepaid"]
[null,"presell","presold","presold"]
[null,"preset","preset","preset"]
[null,"preshrink","preshrank","preshrunk"]
[null,"proofread","proofread","proofread"]
[null,"prove","proved","proven / proved"]
[null,"put","put","put"]
[null,"Q"]
[null,"quick-freeze","quick-froze","quick-frozen"]
[null,"quit","quit / quitted [?]","quit / quitted [?]"]
[null,"R"]
[null,"read","read (sounds like \"red\")","read (sounds like \"red\")"]
[null,"reawake","reawoke","reawaken"]
[null,"rebid","rebid","rebid"]
[null,"rebind","rebound","rebound"]
[null,"rebroadcast","rebroadcast / rebroadcasted","rebroadcast / rebroadcasted"]
[null,"rebuild","rebuilt","rebuilt"]
[null,"recast","recast","recast"]
[null,"recut","recut","recut"]
[null,"redeal","redealt","redealt"]
[null,"redo","redid","redone"]
[null,"redraw","redrew","redrawn"]
[null,"refit (replace parts)","refit / refitted [?]","refit / refitted [?]"]
[null,"refit (retailor)","refitted / refit [?]","refitted / refit [?]"]
[null,"regrind","reground","reground"]
[null,"regrow","regrew","regrown"]
[null,"rehang","rehung","rehung"]
[null,"rehear","reheard","reheard"]
[null,"reknit","reknitted / reknit","reknitted / reknit"]
[null,"relay (for example tiles)","relaid","relaid"]
[null,"relay (pass along) REGULAR","relayed","relayed"]
[null,"relearn","relearned / relearnt [?]","relearned / relearnt [?]"]
[null,"relight","relit / relighted","relit / relighted"]
[null,"remake","remade","remade"]
[null,"repay","repaid","repaid"]
[null,"reread","reread","reread"]
[null,"rerun","reran","rerun"]
[null,"resell","resold","resold"]
[null,"resend","resent","resent"]
[null,"reset","reset","reset"]
[null,"resew","resewed","resewn / resewed"]
[null,"retake","retook","retaken"]
[null,"reteach","retaught","retaught"]
[null,"retear","retore","retorn"]
[null,"retell","retold","retold"]
[null,"rethink","rethought","rethought"]
[null,"retread","retread","retread"]
[null,"retrofit","retrofitted / retrofit [?]","retrofitted / retrofit [?]"]
[null,"rewake","rewoke / rewaked","rewaken / rewaked"]
[null,"rewear","rewore","reworn"]
[null,"reweave","rewove / reweaved","rewoven / reweaved"]
[null,"rewed","rewed / rewedded","rewed / rewedded"]
[null,"rewet","rewet / rewetted [?]","rewet / rewetted [?]"]
[null,"rewin","rewon","rewon"]
[null,"rewind","rewound","rewound"]
[null,"rewrite","rewrote","rewritten"]
[null,"rid","rid","rid"]
[null,"ride","rode","ridden"]
[null,"ring","rang","rung"]
[null,"rise","rose","risen"]
[null,"roughcast","roughcast","roughcast"]
[null,"run","ran","run"]
[null,"S"]
[null,"sand-cast","sand-cast","sand-cast"]
[null,"saw","sawed","sawed / sawn"]
[null,"say","said","said"]
[null,"see","saw","seen"]
[null,"seek","sought","sought"]
[null,"sell","sold","sold"]
[null,"send","sent","sent"]
[null,"set","set","set"]
[null,"sew","sewed","sewn / sewed"]
[null,"shake","shook","shaken"]
[null,"shave","shaved","shaved / shaven"]
[null,"shear","sheared","sheared / shorn"]
[null,"shed","shed","shed"]
[null,"shine","shined / shone [?]","shined / shone [?]"]
[null,"shit","shit / shat / shitted","shit/ shat / shitted"]
[null,"shoot","shot","shot"]
[null,"show","showed","shown / showed"]
[null,"shrink","shrank / shrunk","shrunk"]
[null,"shut","shut","shut"]
[null,"sight-read","sight-read","sight-read"]
[null,"sing","sang","sung"]
[null,"sink","sank / sunk","sunk"]
[null,"sit","sat","sat"]
[null,"slay (kill)","slew / slayed","slain / slayed"]
[null,"slay (amuse) REGULAR","slayed","slayed"]
[null,"sleep","slept","slept"]
[null,"slide","slid","slid"]
[null,"sling","slung","slung"]
[null,"slink","slinked / slunk","slinked / slunk"]
[null,"slit","slit","slit"]
[null,"smell","smelled / smelt [?]","smelled / smelt [?]"]
[null,"sneak","sneaked / snuck","sneaked / snuck"]
[null,"sow","sowed","sown / sowed"]
[null,"speak","spoke","spoken"]
[null,"speed","sped / speeded","sped / speeded"]
[null,"spell","spelled / spelt [?]","spelled / spelt [?]"]
[null,"spend","spent","spent"]
[null,"spill","spilled / spilt [?]","spilled / spilt [?]"]
[null,"spin","spun","spun"]
[null,"spit","spit / spat","spit / spat"]
[null,"split","split","split"]
[null,"spoil","spoiled / spoilt [?]","spoiled / spoilt [?]"]
[null,"spoon-feed","spoon-fed","spoon-fed"]
[null,"spread","spread","spread"]
[null,"spring","sprang / sprung","sprung"]
[null,"stand","stood","stood"]
[null,"steal","stole","stolen"]
[null,"stick","stuck","stuck"]
[null,"sting","stung","stung"]
[null,"stink","stunk / stank","stunk"]
[null,"strew","strewed","strewn / strewed"]
[null,"stride","strode","stridden"]
[null,"strike (delete)","struck","stricken"]
[null,"strike (hit)","struck","struck / stricken"]
[null,"string","strung","strung"]
[null,"strive","strove / strived","striven / strived"]
[null,"sublet","sublet","sublet"]
[null,"sunburn","sunburned / sunburnt [?]","sunburned / sunburnt [?]"]
[null,"swear","swore","sworn"]
[null,"sweat","sweat / sweated","sweat / sweated"]
[null,"sweep","swept","swept"]
[null,"swell","swelled","swollen / swelled"]
[null,"swim","swam","swum"]
[null,"swing","swung","swung"]
[null,"T"]
[null,"take","took","taken"]
[null,"teach","taught","taught"]
[null,"tear","tore","torn"]
[null,"telecast","telecast","telecast"]
[null,"tell","told","told"]
[null,"test-drive","test-drove","test-driven"]
[null,"test-fly","test-flew","test-flown"]
[null,"think","thought","thought"]
[null,"throw","threw","thrown"]
[null,"thrust","thrust","thrust"]
[null,"tread","trod","trodden / trod"]
[null,"typecast","typecast","typecast"]
[null,"typeset","typeset","typeset"]
[null,"typewrite","typewrote","typewritten"]
[null,"U"]
[null,"unbend","unbent","unbent"]
[null,"unbind","unbound","unbound"]
[null,"unclothe","unclothed / unclad [?]","unclothed / unclad [?]"]
[null,"underbid","underbid","underbid"]
[null,"undercut","undercut","undercut"]
[null,"underfeed","underfed","underfed"]
[null,"undergo","underwent","undergone"]
[null,"underlie","underlay","underlain"]
[null,"undersell","undersold","undersold"]
[null,"underspend","underspent","underspent"]
[null,"understand","understood","understood"]
[null,"undertake","undertook","undertaken"]
[null,"underwrite","underwrote","underwritten"]
[null,"undo","undid","undone"]
[null,"unfreeze","unfroze","unfrozen"]
[null,"unhang","unhung","unhung"]
[null,"unhide","unhid","unhidden"]
[null,"unknit","unknitted / unknit","unknitted / unknit"]
[null,"unlearn","unlearned / unlearnt [?]","unlearned / unlearnt [?]"]
[null,"unsew","unsewed","unsewn / unsewed"]
[null,"unsling","unslung","unslung"]
[null,"unspin","unspun","unspun"]
[null,"unstick","unstuck","unstuck"]
[null,"unstring","unstrung","unstrung"]
[null,"unweave","unwove / unweaved","unwoven / unweaved"]
[null,"unwind","unwound","unwound"]
[null,"uphold","upheld","upheld"]
[null,"upset","upset","upset"]
[null,"V"]
[null,"No commonly used irregular verbs beginning with \"V.\""]
[null,"To view our extended dictionary including rare and antiquated forms, Click Here."]
[null,"W"]
[null,"wake","woke / waked","woken / waked"]
[null,"waylay","waylaid","waylaid"]
[null,"wear","wore","worn"]
[null,"weave","wove / weaved","woven / weaved"]
[null,"wed","wed / wedded","wed / wedded"]
[null,"weep","wept","wept"]
[null,"wet","wet / wetted [?]","wet / wetted [?]"]
[null,"whet  REGULAR","whetted","whetted"]
[null,"win","won","won"]
[null,"wind","wound","wound"]
[null,"withdraw","withdrew","withdrawn"]
[null,"withhold","withheld","withheld"]
[null,"withstand","withstood","withstood"]
[null,"wring","wrung","wrung"]
[null,"write","wrote","written"]